Workbook

Sheet RegSchLookup (hidden)
A1: Regional District | B1: School 1 | C1: School 2 | D1: School 3 | E1: School 4 | F1: School 5 | G1: School 6 | H1: School 7 | I1: School 8 | J1: School 9 | K1: School 10 | L1: School 11 | M1: School 12
A2: Andover Regional School District | B2: Andover Borough | C2: Andover Township
A3: Black Horse Pike Regional School District | B3: Bellmawr Borough | C3: Gloucester Township | D3: Runnemede Borough
A4: Bordentown Regional School District | B4: Bordentown City | C4: Bordentown Township | D4: Fieldsboro Borough
A5: Bridgewater-Raritan Regional School District | B5: Bridgewater Township | C5: Raritan Borough
A6: Buena Regional School District | B6: Buena Borough | C6: Buena Vista Township
A7: Caldwell-West Caldwell Consolidated School District | B7: Caldwell Borough | C7: West Caldwell Township
A8: Carlstadt-East Rutherford Regional High School | B8: Carlstadt Borough | C8: East Rutherford Borough
A9: Central Regional School District | B9: Berkeley Township | C9: Island Heights Borough | D9: Ocean Gate Borough | E9: Seaside Heights Borough | F9: Seaside Park Borough
A10: Chatham School District | B10: Chatham Borough | C10: Chatham Township
A11: Chester Township Consolidated School District | B11: Chester Borough | C11: Chester Township
A12: Clearview Regional School District | B12: Harrison Township | C12: Mantua Township
A13: Clinton-Glen Gardner School District | B13: Clinton Town | C13: Glen Gardner Borough
A14: Cumberland Regional High School | B14: Deerfield Township | C14: Fairfield Township (Cumberland) | D14: Greenwich Township (Cumberland) | E14: Hopewell Township (Cumberland) | F14: Shiloh Borough | G14: Stow Creek Township | H14: Upper Deerfield Township
A15: Delaware Valley Regional High School | B15: Alexandria Township | C15: Frenchtown Borough | D15: Holland Township | E15: Kingwood Township | F15: Milford Borough
A16: Delsea Regional School District | B16: Elk Township | C16: Franklin Township (Gloucester)
A17: East Windsor Regional School District | B17: East Windsor Township | C17: Hightstown Borough
A18: Eastern Camden County Regional High School | B18: Berlin Borough | C18: Gibbsboro Borough | D18: Voorhees Township
A19: Flemington-Raritan Regional School District | B19: Flemington Borough | C19: Raritan Township
A20: Freehold Regional High School District | B20: Colts Neck Township | C20: Englishtown Borough | D20: Farmingdale Borough | E20: Freehold Borough | F20: Freehold Township | G20: Howell Township | H20: Manalapan Township | I20: Marlboro Township
A21: Gateway Regional School District | B21: National Park Borough | C21: Wenonah Borough | D21: Westville Borough | E21: Woodbury Heights Borough
A22: Great Meadows Regional School District | B22: Independence Township | C22: Liberty Township
A23: Greater Egg Harbor Regional High School | B23: Egg Harbor City | C23: Galloway Township | D23: Hamilton Township (Atlantic) | E23: Mullica Township
A24: Hanover Park Regional High School District | B24: East Hanover Township | C24: Florham Park Borough | D24: Hanover Township
A25: Henry Hudson Regional High School | B25: Atlantic Highlands Borough | C25: Highlands Borough
A26: High Point Regional High School | B26: Branchville Borough | C26: Frankford Township | D26: Lafayette Township | E26: Sussex Borough | F26: Wantage Township
A27: Hopewell Valley Regional School District | B27: Hopewell Borough | C27: Hopewell Township (Mercer) | D27: Pennington Borough
A28: Hunterdon Central Regional High School | B28: Delaware Township | C28: East Amwell Township | D28: Flemington Borough | E28: Raritan Township | F28: Readington Township
A29: Kingsway Regional School District | B29: East Greenwich Township | C29: South Harrison Township | D29: Swedesboro Borough | E29: Woolwich Township
A30: Kittatinny Regional High School | B30: Fredon Township | C30: Hampton Township | D30: Sandyston Township | E30: Stillwater Township | F30: Walpack Township
A31: Lakeland Regional High School | B31: Ringwood Borough | C31: Wanaque Borough
A32: Lenape Regional High School District | B32: Evesham Township | C32: Medford Lakes Borough | D32: Medford Township | E32: Mount Laurel Township | F32: Shamong Township | G32: Southampton Township | H32: Tabernacle Township | I32: Woodland Township
A33: Lenape Valley Regional High School | B33: Byram Township | C33: Netcong Borough | D33: Stanhope Borough
A34: Long Beach Island Consolidated School District | B34: Barnegat Light Borough | C34: Harvey Cedars Borough | D34: Long Beach Township | E34: Ship Bottom Borough | F34: Surf City Borough
A35: Lower Cape May Regional High School | B35: Cape May City | C35: Lower Township | D35: West Cape May Borough
A36: Mainland Regional High School | B36: Linwood City | C36: Northfield City | D36: Somers Point City
A37: Manalapan-Englishtown Regional School District | B37: Englishtown Borough | C37: Manalapan Township
A38: Matawan-Aberdeen Regional School District | B38: Aberdeen Township | C38: Matawan Borough
A39: Monmouth Regional High School District | B39: Eatontown Borough | C39: Shrewsbury Township | D39: Tinton Falls Borough
A40: Montgomery Township School District | B40: Montgomery Township | C40: Rocky Hill Borough
A41: Morris Hills Regional School District | B41: Denville Township | C41: Rockaway Borough | D41: Rockaway Township | E41: Wharton Borough
A42: Morris Regional School District | B42: Morris Township | C42: Morristown Town
A43: New Hanover Consolidated School District | B43: New Hanover Township | C43: Wrightstown Borough
A44: North Hunterdon Regional High School | B44: Bethlehem Township | C44: Califon Borough | D44: Clinton Town | E44: Clinton Township | F44: Franklin Township (Hunterdon) | G44: Glen Gardner Borough | H44: Hampton Borough | I44: High Bridge Borough | J44: Lebanon Borough | K44: Lebanon Township | L44: Tewksbury Township | M44: Union Township (Hunterdon)
A45: North Warren Regional School District | B45: Blairstown Township | C45: Frelinghuysen Township | D45: Hardwick Township | E45: Knowlton Township
A46: Northern Burlington County Regional School District | B46: Chesterfield Township | C46: Mansfield Township (Burlington) | D46: North Hanover Township | E46: Springfield Township (Burlington)
A47: Northern Highlands Regional High School | B47: Allendale Borough | C47: Upper Saddle River Borough
A48: Northern Valley Regional High School | B48: Closter Borough | C48: Demarest Borough | D48: Harrington Park Borough Haworth Borough | E48: Haworth Borough | F48: Northvale Borough | G48: Norwood Borough | H48: Old Tappan Borough
A49: Ocean Township Consolidated School District | B49: Loch Arbour Village | C49: Ocean Township (Monmouth)
A50: Pascack Valley Regional High School | B50: Hillsdale Borough | C50: Montvale Borough | D50: River Vale Township | E50: Woodcliff Lake Borough
A51: Passaic County Manchester Regional High School | B51: Haledon Borough | C51: North Haledon Borough | D51: Prospect Park Borough
A52: Passaic Valley Regional High School | B52: Little Falls Township | C52: Totowa Borough | D52: Woodland Park Borough
A53: Penns Grove-Carneys Point Regional School District | B53: Carneys Point Township | C53: Penns Grove Borough
A54: Pinelands Regional School Distrct | B54: Bass River Township | C54: Eagleswood Township | D54: Little Egg Harbor Township | E54: Tuckerton Borough
A55: Ramapo Indian Hills Regional High School | B55: Franklin Lakes Borough | C55: Oakland Borough | D55: Wyckoff Township
A56: Rancocas Valley Regional High School | B56: Eastampton Township | C56: Hainesport Township | D56: Lumberton Township | E56: Mount Holly Township | F56: Westampton Township
A57: Red Bank Regional High School | B57: Little Silver Borough | C57: Red Bank Borough | D57: Shrewsbury Borough
A58: River Dell Regional School District | B58: Oradell Borough | C58: River Edge Borough
A59: Rumson-Fair Haven Regional High School | B59: Fair Haven Borough | C59: Rumson Borough
A60: Sandyston-Walpack Consolidated School District | B60: Sandyston Township | C60: Walpack Township
A61: Scotch Plains-Fanwood Regional School District | B61: Fanwood Borough | C61: Scotch Plains Township
A62: Shore Regional High School | B62: Monmouth Beach Borough | C62: Oceanport Borough | D62: Sea Bright Borough | E62: West Long Branch Borough
A63: Somerset Hills Regional School District | B63: Bernardsville Borough | C63: Far Hills Borough | D63: Peapack-Gladstone Borough
A64: South Hunterdon Regional School District | B64: Lambertville Borough | C64: Stockton Borough | D64: West Amwell Borough
A65: South Orange-Maplewood Consolidated School District | B65: Maplewood Township | C65: South Orange Village
A66: Southern Regional School District | B66: Barnegat Light Borough | C66: Beach Haven Borough | D66: Harvey Cedars Borough | E66: Long Beach Township | F66: Ship Bottom Borough | G66: Stafford Township | H66: Surf City Borough
A67: Spotswood-Helmetta Consolidated School District | B67: Helmetta Borough | C67: Spotswood Borough
A68: Sterling High School | B68: Magnolia Borough | C68: Somerdale Borough | D68: Stratford Borough
A69: Sussex-Wantage Regional School Distrct | B69: Sussex Borough | C69: Wantage Township
A70: Swedesboro-Woolwich Consolidated School District | B70: Swedesboro Borough | C70: Woolwich Township
A71: Tinton Falls School District | B71: Shrewsbury Township | C71: Tinton Falls Borough
A72: Toms River Regional School District | B72: Beachwood Borough | C72: Pine Beach Borough | D72: South Toms River Borough | E72: Toms River Township
A73: Upper Freehold Regional School District | B73: Allentown Borough | C73: Upper Freehold Township
A74: Wallkill Valley Regional High School | B74: Franklin Borough | C74: Hamburg Borough | D74: Hardyston Township | E74: Ogdensburg Borough
A75: Warren Hills Regional School District | B75: Franklin Township (Warren) | C75: Mansfield Township (Warren) | D75: Washington Borough (Warren) | E75: Washington Township (Warren)
A76: Watchung Hills Regional High School | B76: Long Hill Township | C76: Warren Township | D76: Watchung Borough
A77: West Essex Regional School District | B77: Essex Fells Borough | C77: Fairfield Township (Essex) | D77: North Caldwell Borough | E77: Roseland Borough
A78: West Morris Regional High School District | B78: Chester Borough | C78: Chester Township | D78: Mendham Borough | E78: Mendham Township | F78: Washington Township (Morris)
A79: West Windsor-Plainsboro Regional School District | B79: Plainsboro Township | C79: West Windsor Township
A80: Westwood Regional School District | B80: Washington Township (Bergen) | C80: Westwood Borough
A81: Woodstown-Pilesgrove Regional School District | B81: Pilesgrove Township | C81: Woodstown Borough

Sheet Muni (hidden)
A1: ENTITY NAME | B1: CODE | C1: COUNTY | D1: 2023 | E1: 2024 | F1: 2025 | G1: 3-YEAR AVERAGE | H1: SCHOOL | I1: UTILITY | K1: SCHOOL % | M1: Regional School Name
A2: Aberdeen Township | B2: 1330 | C2: Monmouth | D2: 3125890785 | E2: 3454220882 | F2: 3702594301 | G2: =AVERAGE(D2:F2) -> 3427568656
A3: Absecon City | B3: 0101 | C3: Atlantic | D3: 948766396 | E3: 1059538473 | F3: 1160915724 | G3: =AVERAGE(D3:F3) -> 1056406864 | K3: 0 | M3: Black Horse Pike Regional School District
A4: Alexandria Township | B4: 1001 | C4: Hunterdon | D4: 963637307 | E4: 1023378027 | F4: 1133448600 | G4: 1040154645 | H4: Type I | I4: Arena | K4: 0.025 | M4: Bordentown Regional School District
A5: Allamuchy Township | B5: 2101 | C5: Warren | D5: 908686619 | E5: 1004087945 | F5: 1112384900 | G5: 1008386488 | H5: Type II | I5: Affordable Housing | K5: 0.03 | M5: Bridgewater-Raritan Regional School District
A6: Allendale Borough | B6: 0201 | C6: Bergen | D6: 2210697687 | E6: 2448582994 | F6: 2731131007 | G6: 2463470563 | I6: Airport | K6: 0.035 | M6: Buena Regional School District
A7: Allenhurst Borough | B7: 1301 | C7: Monmouth | D7: 1461222836 | E7: 1462314264 | F7: 1366413725 | G7: 1429983608 | I7: Beach | K7: 0.04 | M7: Caldwell-West Caldwell Consolidated School District
A8: Allentown Borough | B8: 1302 | C8: Monmouth | D8: 247591026 | E8: 290113947 | F8: 313396355 | G8: 283700442.7 | I8: Electric | M8: Carlstadt-East Rutherford Regional High School
A9: Alloway Township | B9: 1701 | C9: Salem | D9: 389360960 | E9: 406222772 | F9: 430319546 | G9: 408634426 | I9: Golf Course | M9: Central Regional School District
A10: Alpha Borough | B10: 2102 | C10: Warren | D10: 275308421 | E10: 315051334 | F10: 387283336 | G10: 325881030.3 | I10: Harbor | M10: Chatham School District
A11: Alpine Borough | B11: 0202 | C11: Bergen | D11: 2050352136 | E11: 2091566133 | F11: 2087734830 | G11: 2076551033 | I11: Ice Rink | M11: Chester Township Consolidated School District
A12: Andover Borough | B12: 1901 | C12: Sussex | D12: 83403009 | E12: 94112207 | F12: 96528559 | G12: 91347925 | I12: Marina | M12: Clearview Regional School District
A13: Andover Township | B13: 1902 | C13: Sussex | D13: 918694059 | E13: 1022235610 | F13: 1133475036 | G13: 1024801568 | I13: Parking | M13: Clinton-Glen Gardner School District
A14: Asbury Park City | B14: 1303 | C14: Monmouth | D14: 2800143553 | E14: 3212152473 | F14: 3391414736 | G14: 3134570254 | I14: Recreation | M14: Cumberland Regional High School
A15: Atlantic City | B15: 0102 | C15: Atlantic | D15: 3448065018 | E15: 3702839432 | F15: 4146520385 | G15: 3765808278 | I15: Sewer | M15: Delaware Valley Regional High School
A16: Atlantic County | B16: 0100 | C16: Atlantic | D16: 45466690306 | E16: 50966763923 | F16: 56834682700 | G16: =AVERAGE(D16:F16) -> 5.108937898e+10 | I16: Solid Waste | M16: Delsea Regional School District
A17: Atlantic Highlands Borough | B17: 1304 | C17: Monmouth | D17: 1178354088 | E17: 1273730593 | F17: 1477086306 | G17: 1309723662 | I17: Stormwater | M17: East Windsor Regional School District
A18: Audubon Borough | B18: 0401 | C18: Camden | D18: 978049415 | E18: 1055827842 | F18: 1171807579 | G18: 1068561612 | I18: Swimming Pool | M18: Eastern Camden County Regional High School
A19: Audubon Park Borough | B19: 0402 | C19: Camden | D19: 20722795 | E19: 20722795 | F19: 20722795 | G19: 20722795 | I19: Water | M19: Flemington-Raritan Regional School District
A20: Avalon Borough | B20: 0501 | C20: Cape May | D20: 15944352184 | E20: 17323253528 | F20: 18523202100 | G20: 17263602604 | I20: Water & Sewer | M20: Freehold Regional High School District
A21: Avon-by-the-Sea Borough | B21: 1305 | C21: Monmouth | D21: 1538744186 | E21: 1799980029 | F21: 2076025337 | G21: 1804916517 | I21: Other | M21: Gateway Regional School District
A22: Barnegat Light Borough | B22: 1501 | C22: Ocean | D22: 1717464338 | E22: 1979872907 | F22: 2053498192 | G22: 1916945146 | M22: Great Meadows Regional School District
A23: Barnegat Township | B23: 1533 | C23: Ocean | D23: 4055988867 | E23: 4514819713 | F23: 4938696937 | G23: 4503168506 | M23: Greater Egg Harbor Regional High School
A24: Barrington Borough | B24: 0403 | C24: Camden | D24: 739497459 | E24: 816895837 | F24: 878992385 | G24: 811795227 | M24: Hanover Park Regional High School District
A25: Bass River Township | B25: 0301 | C25: Burlington | D25: 225787922 | E25: 246997741 | F25: 258761737 | G25: 243849133.3 | M25: Henry Hudson Regional High School
A26: Bay Head Borough | B26: 1502 | C26: Ocean | D26: 2457873223 | E26: 2859005640 | F26: 3001546800 | G26: 2772808554 | M26: High Point Regional High School
A27: Bayonne City | B27: 0901 | C27: Hudson | D27: 9911202022 | E27: 10833452449 | F27: 11369805347 | G27: 1.070481994e+10 | M27: Hopewell Valley Regional School District
A28: Beach Haven Borough | B28: 1503 | C28: Ocean | D28: 3691558778 | E28: 4064535847 | F28: 4441249195 | G28: 4065781273 | M28: Hunterdon Central Regional High School
A29: Beachwood Borough | B29: 1504 | C29: Ocean | D29: 1337524365 | E29: 1476397187 | F29: 1598173587 | G29: 1470698380 | M29: Kingsway Regional School District
A30: Bedminster Township | B30: 1801 | C30: Somerset | D30: 2677135694 | E30: 2733574308 | F30: 2981479242 | G30: 2797396415 | M30: Kittatinny Regional High School
A31: Belleville Township | B31: 0701 | C31: Essex | D31: 4193145253 | E31: 4763242036 | F31: 5258207509 | G31: 4738198266 | M31: Lakeland Regional High School
A32: Bellmawr Borough | B32: 0404 | C32: Camden | D32: 1016548427 | E32: 1093710823 | F32: 1311103835 | G32: 1140454362 | M32: Lenape Regional High School District
A33: Belmar Borough | B33: 1306 | C33: Monmouth | D33: 2593724280 | E33: 2920742698 | F33: 3253214582 | G33: 2922560520 | M33: Lenape Valley Regional High School
A34: Belvidere Town | B34: 2103 | C34: Warren | D34: 232850755 | E34: 276130030 | F34: 323953906 | G34: 277644897 | M34: Long Beach Island Consolidated School District
A35: Bergen County | B35: 0200 | C35: Bergen | D35: 226534364876 | E35: 244335496283 | F35: 262975476857 | G35: 244615112672 | M35: Lower Cape May Regional High School
A36: Bergenfield Borough | B36: 0203 | C36: Bergen | D36: 4090610419 | E36: 4644599932 | F36: 4989042580 | G36: 4574750977 | M36: Mainland Regional High School
A37: Berkeley Heights Township | B37: 2001 | C37: Union | D37: 3986580542 | E37: 4416365516 | F37: 5211003694 | G37: 4537983251 | M37: Manalapan-Englishtown Regional School District
A38: Berkeley Township | B38: 1505 | C38: Ocean | D38: 8530244253 | E38: 9321660273 | F38: 10278600000 | G38: 9376834842 | M38: Matawan-Aberdeen Regional School District
A39: Berlin Borough | B39: 0405 | C39: Camden | D39: 994312789 | E39: 1106959840 | F39: 1213167844 | G39: 1104813491 | M39: Monmouth Regional High School District
A40: Berlin Township | B40: 0406 | C40: Camden | D40: 883385665 | E40: 999120762 | F40: 1111664264 | G40: 998056897 | M40: Montgomery Township School District
A41: Bernards Township | B41: 1802 | C41: Somerset | D41: 8106165936 | E41: 8987168496 | F41: 9776151283 | G41: 8956495238 | M41: Morris Hills Regional School District
A42: Bernardsville Borough | B42: 1803 | C42: Somerset | D42: 2492803825 | E42: 2645695425 | F42: 2870037563 | G42: 2669512271 | M42: Morris Regional School District
A43: Bethlehem Township | B43: 1002 | C43: Hunterdon | D43: 734739111 | E43: 771491820 | F43: 838224839 | G43: 781485256.7 | M43: New Hanover Consolidated School District
A44: Beverly City | B44: 0302 | C44: Burlington | D44: 162041012 | E44: 191818704 | F44: 208625318 | G44: 187495011.3 | M44: North Hunterdon Regional High School
A45: Blairstown Township | B45: 2104 | C45: Warren | D45: 961040808 | E45: 1022147488 | F45: 1103242634 | G45: 1028810310 | M45: North Warren Regional School District
A46: Bloomfield Township | B46: 0702 | C46: Essex | D46: 6871381125 | E46: 7676477513 | F46: 8351512744 | G46: 7633123794 | M46: Northern Burlington County Regional School District
A47: Bloomingdale Borough | B47: 1601 | C47: Passaic | D47: 1168897016 | E47: 1231240675 | F47: 1361117559 | G47: 1253751750 | M47: Northern Highlands Regional High School
A48: Bloomsbury Borough | B48: 1003 | C48: Hunterdon | D48: 119859250 | E48: 134959218 | F48: 138237598 | G48: 131018688.7 | M48: Northern Valley Regional High School
A49: Bogota Borough | B49: 0204 | C49: Bergen | D49: 1080136333 | E49: 1259146116 | F49: 1409291164 | G49: 1249524538 | M49: Ocean Township Consolidated School District
A50: Boonton Town | B50: 1401 | C50: Morris | D50: 1522262969 | E50: 1626029994 | F50: 1753124407 | G50: 1633805790 | M50: Pascack Valley Regional High School
A51: Boonton Township | B51: 1402 | C51: Morris | D51: 1084469393 | E51: 1123625515 | F51: 1265979284 | G51: 1158024731 | M51: Passaic County Manchester Regional High School
A52: Bordentown City | B52: 0303 | C52: Burlington | D52: 476574659 | E52: 532796716 | F52: 582714675 | G52: 530695350 | M52: Passaic Valley Regional High School
A53: Bordentown Township | B53: 0304 | C53: Burlington | D53: 2079807658 | E53: 2214803718 | F53: 2382289637 | G53: 2225633671 | M53: Penns Grove-Carneys Point Regional School District
A54: Bound Brook Borough | B54: 1804 | C54: Somerset | D54: 1168381736 | E54: 1275972393 | F54: 1418518872 | G54: 1287624334 | M54: Pinelands Regional School Distrct
A55: Bradley Beach Borough | B55: 1307 | C55: Monmouth | D55: 2119677824 | E55: 2330816023 | F55: 2559090269 | G55: 2336528039 | M55: Ramapo Indian Hills Regional High School
A56: Branchburg Township | B56: 1805 | C56: Somerset | D56: 4239021623 | E56: 4700796858 | F56: 5416868392 | G56: 4785562291 | M56: Rancocas Valley Regional High School
A57: Branchville Borough | B57: 1903 | C57: Sussex | D57: 148681381 | E57: 156956197 | F57: 163108135 | G57: 156248571 | M57: Red Bank Regional High School
A58: Brick Township | B58: 1506 | C58: Ocean | D58: 16132824304 | E58: 17870579588 | F58: 19271966552 | G58: 1.775845681e+10 | M58: River Dell Regional School District
A59: Bridgeton City | B59: 0601 | C59: Cumberland | D59: 697739822 | E59: 767782186 | F59: 867978076 | G59: 777833361.3 | M59: Rumson-Fair Haven Regional High School
A60: Bridgewater Township | B60: 1806 | C60: Somerset | D60: 11053771638 | E60: 12110063913 | F60: 13186688077 | G60: 1.211684121e+10 | M60: Sandyston-Walpack Consolidated School District
A61: Brielle Borough | B61: 1308 | C61: Monmouth | D61: 2295564906 | E61: 2490323456 | F61: 2770952366 | G61: 2518946909 | M61: Scotch Plains-Fanwood Regional School District
A62: Brigantine City | B62: 0103 | C62: Atlantic | D62: 5471013223 | E62: 6290058665 | F62: 6801825619 | G62: 6187632502 | M62: Shore Regional High School
A63: Brooklawn Borough | B63: 0407 | C63: Camden | D63: 160453622 | E63: 185932264 | F63: 224643405 | G63: 190343097 | M63: Somerset Hills Regional School District
A64: Buena Borough | B64: 0104 | C64: Atlantic | D64: 338398603 | E64: 366000877 | F64: 421340841 | G64: 375246773.7 | M64: South Hunterdon Regional School District
A65: Buena Vista Township | B65: 0105 | C65: Atlantic | D65: 789443221 | E65: 893600730 | F65: 982482329 | G65: 888508760 | M65: South Orange-Maplewood Consolidated School District
A66: Burlington City | B66: 0305 | C66: Burlington | D66: 793930242 | E66: 900162584 | F66: 959234884 | G66: 884442570 | M66: Southern Regional School District
A67: Burlington County | B67: 0300 | C67: Burlington | D67: 63683279578 | E67: 70348911191 | F67: 77291607103 | G67: =AVERAGE(D67:F67) -> 7.044126596e+10 | M67: Spotswood-Helmetta Consolidated School District
A68: Burlington Township | B68: 0306 | C68: Burlington | D68: 3489804622 | E68: 3698860649 | F68: 4361141306 | G68: 3849935526 | M68: Sterling High School
A69: Butler Borough | B69: 1403 | C69: Morris | D69: 1291226850 | E69: 1412028759 | F69: 1547029885 | G69: 1416761831 | M69: Sussex-Wantage Regional School Distrct
A70: Byram Township | B70: 1904 | C70: Sussex | D70: 1286876250 | E70: 1442348511 | F70: 1597748624 | G70: 1442324462 | M70: Swedesboro-Woolwich Consolidated School District
A71: Caldwell Borough | B71: 0703 | C71: Essex | D71: 1423615175 | E71: 1514927142 | F71: 1637874654 | G71: 1525472324 | M71: Tinton Falls School District
A72: Califon Borough | B72: 1004 | C72: Hunterdon | D72: 180957862 | E72: 199646463 | F72: 211072075 | G72: 197225466.7 | M72: Toms River Regional School District
A73: Camden City | B73: 0408 | C73: Camden | D73: 2259409836 | E73: 2597514395 | F73: 2947620028 | G73: 2601514753 | M73: Upper Freehold Regional School District
A74: Camden County | B74: 0400 | C74: Camden | D74: 53053211756 | E74: 58421422444 | F74: 65030735803 | G74: 5.883512333e+10 | M74: Wallkill Valley Regional High School
A75: Cape May City | B75: 0502 | C75: Cape May | D75: 4773553004 | E75: 5582839985 | F75: 5957428290 | G75: 5437940426 | M75: Warren Hills Regional School District
A76: Cape May County | B76: 0500 | C76: Cape May | D76: 86606142936 | E76: 96029950746 | F76: 103504364785 | G76: 9.538015282e+10 | M76: Watchung Hills Regional High School
A77: Cape May Point Borough | B77: 0503 | C77: Cape May | D77: 789960849 | E77: 903464898 | F77: 925588598 | G77: 873004781.7 | M77: West Essex Regional School District
A78: Carlstadt Borough | B78: 0205 | C78: Bergen | D78: 3275361005 | E78: 3425367067 | F78: 3816231788 | G78: 3505653287 | M78: West Morris Regional High School District
A79: Carneys Point Township | B79: 1713 | C79: Salem | D79: 915131679 | E79: 976934855 | F79: 1019883773 | G79: 970650102.3 | M79: West Windsor-Plainsboro Regional School District
A80: Carteret Borough | B80: 1201 | C80: Middlesex | D80: 3795328475 | E80: 4409759591 | F80: 5066314475 | G80: 4423800847 | M80: Westwood Regional School District
A81: Cedar Grove Township | B81: 0704 | C81: Essex | D81: 2807894626 | E81: 3018736139 | F81: 3336374633 | G81: 3054335133 | M81: Woodstown-Pilesgrove Regional School District
A82: Chatham Borough | B82: 1404 | C82: Morris | D82: 3163864151 | E82: 3437204647 | F82: 3695405402 | G82: 3432158067
A83: Chatham Township | B83: 1405 | C83: Morris | D83: 4443871977 | E83: 4792635696 | F83: 5258723987 | G83: 4831743887
A84: Cherry Hill Township | B84: 0409 | C84: Camden | D84: 12398913655 | E84: 13351620736 | F84: 14610976436 | G84: 1.345383694e+10
A85: Chesilhurst Borough | B85: 0410 | C85: Camden | D85: 111521158 | E85: 123622531 | F85: 138260965 | G85: 124468218
A86: Chester Borough | B86: 1406 | C86: Morris | D86: 468024010 | E86: 550234539 | F86: 587012350 | G86: 535090299.7
A87: Chester Township | B87: 1407 | C87: Morris | D87: 2149044151 | E87: 2295589072 | F87: 2488406939 | G87: 2311013387
A88: Chesterfield Township | B88: 0307 | C88: Burlington | D88: 1110530771 | E88: 1242501976 | F88: 1353525688 | G88: 1235519478
A89: Cinnaminson Township | B89: 0308 | C89: Burlington | D89: 2451410291 | E89: 2806809471 | F89: 3003626973 | G89: 2753948912
A90: Clark Township | B90: 2002 | C90: Union | D90: 3613517045 | E90: 3902262009 | F90: 4112483565 | G90: 3876087540
A91: Clayton Borough | B91: 0801 | C91: Gloucester | D91: 714788369 | E91: 794209275 | F91: 850202595 | G91: 786400079.7
A92: Clementon Borough | B92: 0411 | C92: Camden | D92: 339999643 | E92: 379722091 | F92: 412811218 | G92: 377510984
A93: Cliffside Park Borough | B93: 0206 | C93: Bergen | D93: 4184585494 | E93: 4454710634 | F93: 4811934157 | G93: 4483743428
A94: Clifton City | B94: 1602 | C94: Passaic | D94: 13903318841 | E94: 14888942920 | F94: 16893579542 | G94: 1.522861377e+10
A95: Clinton Town | B95: 1005 | C95: Hunterdon | D95: 486821483 | E95: 524955541 | F95: 572017644 | G95: 527931556
A96: Clinton Township | B96: 1006 | C96: Hunterdon | D96: 2522802317 | E96: 2669497831 | F96: 3088068966 | G96: 2760123038
A97: Closter Borough | B97: 0207 | C97: Bergen | D97: 2889785706 | E97: 3103792686 | F97: 3445250581 | G97: 3146276324
A98: Collingswood Borough | B98: 0412 | C98: Camden | D98: 1506270157 | E98: 1693660277 | F98: 1894685222 | G98: 1698205219
A99: Colts Neck Township | B99: 1309 | C99: Monmouth | D99: 3861160004 | E99: 4183856336 | F99: 4592664156 | G99: 4212560165
A100: Commercial Township | B100: 0602 | C100: Cumberland | D100: 292945969 | E100: 343901889 | F100: 343326959 | G100: 326724939
A101: Corbin City | B101: 0106 | C101: Atlantic | D101: 76293205 | E101: 84721192 | F101: 85599106 | G101: 82204501
A102: Cranbury Township | B102: 1202 | C102: Middlesex | D102: 2361768135 | E102: 2480055472 | F102: 2938939443 | G102: 2593587683
A103: Cranford Township | B103: 2003 | C103: Union | D103: 5338289348 | E103: 5796867147 | F103: 6511598310 | G103: 5882251602
A104: Cresskill Borough | B104: 0208 | C104: Bergen | D104: 3085229805 | E104: 3392125714 | F104: 3452843881 | G104: 3310066467
A105: Cumberland County | B105: 0600 | C105: Cumberland | D105: 11375390254 | E105: 12455766844 | F105: 13560489375 | G105: 1.246388216e+10
A106: Deal Borough | B106: 1310 | C106: Monmouth | D106: 4425971258 | E106: 5270210985 | F106: 5447749469 | G106: 5047977237
A107: Deerfield Township | B107: 0603 | C107: Cumberland | D107: 268784679 | E107: 293915062 | F107: 327851198 | G107: 296850313
A108: Delanco Township | B108: 0309 | C108: Burlington | D108: 612147602 | E108: 692733529 | F108: 736426815 | G108: 680435982
A109: Delaware Township | B109: 1007 | C109: Hunterdon | D109: 1091507234 | E109: 1202897387 | F109: 1250102053 | G109: 1181502225
A110: Delran Township | B110: 0310 | C110: Burlington | D110: 2140620361 | E110: 2404415684 | F110: 2848537671 | G110: 2464524572
A111: Demarest Borough | B111: 0209 | C111: Bergen | D111: 1991512536 | E111: 2159431748 | F111: 2452299477 | G111: 2201081254
A112: Dennis Township | B112: 0504 | C112: Cape May | D112: 1194542557 | E112: 1394241931 | F112: 1378584792 | G112: 1322456427
A113: Denville Township | B113: 1408 | C113: Morris | D113: 4176428147 | E113: 4436329291 | F113: 4839169153 | G113: 4483975530
A114: Deptford Township | B114: 0802 | C114: Gloucester | D114: 3839093607 | E114: 4161033016 | F114: 4427902870 | G114: 4142676498
A115: Dover Town | B115: 1409 | C115: Morris | D115: 1773345469 | E115: 1903239948 | F115: 2137555881 | G115: 1938047099
A116: Downe Township | B116: 0604 | C116: Cumberland | D116: 175269641 | E116: 187878098 | F116: 200889796 | G116: 188012511.7
A117: Dumont Borough | B117: 0210 | C117: Bergen | D117: 2699257789 | E117: 3009698560 | F117: 3220151715 | G117: 2976369355
A118: Dunellen Borough | B118: 1203 | C118: Middlesex | D118: 898876382 | E118: 1009337352 | F118: 1013867141 | G118: 974026958.3
A119: Eagleswood Township | B119: 1508 | C119: Ocean | D119: 313762636 | E119: 354250258 | F119: 411955480 | G119: 359989458
A120: East Amwell Township | B120: 1008 | C120: Hunterdon | D120: 929273842 | E120: 989926561 | F120: 1030021663 | G120: 983074022
A121: East Brunswick Township | B121: 1204 | C121: Middlesex | D121: 9423430713 | E121: 10228404408 | F121: 11091196961 | G121: 1.024767736e+10
A122: East Greenwich Township | B122: 0803 | C122: Gloucester | D122: 1701321710 | E122: 1900721084 | F122: 2080173383 | G122: 1894072059
A123: East Hanover Township | B123: 1410 | C123: Morris | D123: 3928770212 | E123: 4260656537 | F123: 5039825851 | G123: 4409750867
A124: East Newark Borough | B124: 0902 | C124: Hudson | D124: 269681642 | E124: 294081922 | F124: 305423691 | G124: 289729085
A125: East Orange City | B125: 0705 | C125: Essex | D125: 5112962931 | E125: 5330821801 | F125: 5767705850 | G125: 5403830194
A126: East Rutherford Borough | B126: 0212 | C126: Bergen | D126: 2919057917 | E126: 3012307051 | F126: 2923868612 | G126: 2951744527
A127: East Windsor Township | B127: 1101 | C127: Mercer | D127: 4136956012 | E127: 4435112691 | F127: 5151793889 | G127: 4574620864
A128: Eastampton Township | B128: 0311 | C128: Burlington | D128: 753327822 | E128: 934675805 | F128: 1061304363 | G128: 916435996.7
A129: Eatontown Borough | B129: 1311 | C129: Monmouth | D129: 3470507206 | E129: 3832446061 | F129: 3745557391 | G129: 3682836886
A130: Edgewater Borough | B130: 0213 | C130: Bergen | D130: 4526305849 | E130: 4753649917 | F130: 4900652648 | G130: 4726869471
A131: Edgewater Park Township | B131: 0312 | C131: Burlington | D131: 863425598 | E131: 960738364 | F131: 1067535615 | G131: =AVERAGE(D131:F131) -> 963899859
A132: Edison Township | B132: 1205 | C132: Middlesex | D132: 20214871436 | E132: 21121959282 | F132: 25197383294 | G132: 2.217807134e+10
A133: Egg Harbor City | B133: 0107 | C133: Atlantic | D133: 312127975 | E133: 360987357 | F133: 392324365 | G133: 355146565.7
A134: Egg Harbor Township | B134: 0108 | C134: Atlantic | D134: 5752822407 | E134: 6189084492 | F134: 6810967322 | G134: 6250958074
A135: Elizabeth City | B135: 2004 | C135: Union | D135: 13381468661 | E135: 15027347740 | F135: 17189612656 | G135: 1.519947635e+10
A136: Elk Township | B136: 0804 | C136: Gloucester | D136: 539086768 | E136: 606674727 | F136: 647280536 | G136: 597680677
A137: Elmer Borough | B137: 1702 | C137: Salem | D137: 135096460 | E137: 143104905 | F137: 147783578 | G137: 141994981
A138: Elmwood Park Borough | B138: 0211 | C138: Bergen | D138: 2845270836 | E138: 3231520728 | F138: 3599701766 | G138: 3225497777
A139: Elsinboro Township | B139: 1703 | C139: Salem | D139: 129550006 | E139: 141733570 | F139: 150844745 | G139: 140709440.3
A140: Emerson Borough | B140: 0214 | C140: Bergen | D140: 1612848348 | E140: 1717422876 | F140: 1835042870 | G140: 1721771365
A141: Englewood City | B141: 0215 | C141: Bergen | D141: 6347412816 | E141: 6718299189 | F141: 6978746843 | G141: 6681486283
A142: Englewood Cliffs Borough | B142: 0216 | C142: Bergen | D142: 3990262873 | E142: 4136659844 | F142: 4435174721 | G142: 4187365813
A143: Englishtown Borough | B143: 1312 | C143: Monmouth | D143: 349323685 | E143: 393889211 | F143: 431503207 | G143: 391572034.3
A144: Essex County | B144: 0700 | C144: Essex | D144: 121525391489 | E144: 135072380149 | F144: 151228809216 | G144: 135942193618
A145: Essex Fells Borough | B145: 0706 | C145: Essex | D145: 806530708 | E145: 928995098 | F145: 1040696853 | G145: 925407553
A146: Estell Manor City | B146: 0109 | C146: Atlantic | D146: 226780903 | E146: 246056925 | F146: 284198703 | G146: 252345510.3
A147: Evesham Township | B147: 0313 | C147: Burlington | D147: 7113434233 | E147: 7990382787 | F147: 8716889564 | G147: 7940235528
A148: Ewing Township | B148: 1102 | C148: Mercer | D148: 4663047544 | E148: 4979701568 | F148: 5272443196 | G148: 4971730769
A149: Fair Haven Borough | B149: 1313 | C149: Monmouth | D149: 2530009229 | E149: 2753215206 | F149: 3010279446 | G149: 2764501294
A150: Fair Lawn Borough | B150: 0217 | C150: Bergen | D150: 6785784240 | E150: 7251802052 | F150: 7788093225 | G150: 7275226506
A151: Fairfield Township (Cumberland) | B151: 0605 | C151: Cumberland | D151: 339377288 | E151: 362677659 | F151: 381481699 | G151: 361178882
A152: Fairfield Township (Essex) | B152: 0707 | C152: Essex | D152: 4073199516 | E152: 4041014316 | F152: 4545855422 | G152: 4220023085
A153: Fairview Borough | B153: 0218 | C153: Bergen | D153: 2005716536 | E153: 2082642192 | F153: 2248220234 | G153: 2112192987
A154: Fanwood Borough | B154: 2005 | C154: Union | D154: 1558034877 | E154: 1765601025 | F154: 1941621515 | G154: 1755085806
A155: Far Hills Borough | B155: 1807 | C155: Somerset | D155: 430974809 | E155: 468853872 | F155: 517477795 | G155: 472435492
A156: Farmingdale Borough | B156: 1314 | C156: Monmouth | D156: 239025721 | E156: 275584505 | F156: 293897551 | G156: 269502592.3
A157: Fieldsboro Borough | B157: 0314 | C157: Burlington | D157: 71603647 | E157: 71342709 | F157: 87510752 | G157: 76819036
A158: Flemington Borough | B158: 1009 | C158: Hunterdon | D158: 531454564 | E158: 564823260 | F158: 619906863 | G158: 572061562.3
A159: Florence Township | B159: 0315 | C159: Burlington | D159: 1541480120 | E159: 1548771666 | F159: 1738940956 | G159: 1609730914
A160: Florham Park Borough | B160: 1411 | C160: Morris | D160: 4518849829 | E160: 5127585383 | F160: 5905554241 | G160: 5183996484
A161: Folsom Borough | B161: 0110 | C161: Atlantic | D161: 223381576 | E161: 252013137 | F161: 287090467 | G161: 254161726.7
A162: Fort Lee Borough | B162: 0219 | C162: Bergen | D162: 9135096063 | E162: 9736096513 | F162: 10008149338 | G162: 9626447305
A163: Frankford Township | B163: 1905 | C163: Sussex | D163: 1007380475 | E163: 1057691185 | F163: 1208518357 | G163: 1091196672
A164: Franklin Borough | B164: 1906 | C164: Sussex | D164: 566942654 | E164: 663564470 | F164: 775590428 | G164: 668699184
A165: Franklin Lakes Borough | B165: 0220 | C165: Bergen | D165: 5512561920 | E165: 6174942566 | F165: 6304729235 | G165: 5997411240
A166: Franklin Township (Gloucester) | B166: 0805 | C166: Gloucester | D166: 1852696189 | E166: 2012378430 | F166: 2154819302 | G166: 2006631307
A167: Franklin Township (Hunterdon) | B167: 1010 | C167: Hunterdon | D167: 603970195 | E167: 617699944 | F167: 710544516 | G167: 644071551.7
A168: Franklin Township (Somerset) | B168: 1808 | C168: Somerset | D168: 14340058308 | E168: 15191389763 | F168: 17305453725 | G168: 1.56123006e+10
A169: Franklin Township (Warren) | B169: 2105 | C169: Warren | D169: 526525203 | E169: 552550273 | F169: 620623087 | G169: 566566187.7
A170: Fredon Township | B170: 1907 | C170: Sussex | D170: 552959344 | E170: 596796129 | F170: 662149764 | G170: 603968412.3
A171: Freehold Borough | B171: 1315 | C171: Monmouth | D171: 1450135512 | E171: 1572760716 | F171: 1795541675 | G171: 1606145968
A172: Freehold Township | B172: 1316 | C172: Monmouth | D172: 9489611917 | E172: 9685268921 | F172: 10067914373 | G172: 9747598404
A173: Frelinghuysen Township | B173: 2106 | C173: Warren | D173: 361086072 | E173: 373769171 | F173: 403278809 | G173: 379378017.3
A174: Frenchtown Borough | B174: 1011 | C174: Hunterdon | D174: 220283498 | E174: 250443931 | F174: 273976154 | G174: 248234527.7
A175: Galloway Township | B175: 0111 | C175: Atlantic | D175: 4048520318 | E175: 4537166018 | F175: 5038344674 | G175: 4541343670
A176: Garfield City | B176: 0221 | C176: Bergen | D176: 3540981030 | E176: 3824931898 | F176: 4260103822 | G176: 3875338917
A177: Garwood Borough | B177: 2006 | C177: Union | D177: 915512592 | E177: 1033506667 | F177: 1043776002 | G177: 997598420.3
A178: Gibbsboro Borough | B178: 0413 | C178: Camden | D178: 287713981 | E178: 303523384 | F178: 336996998 | G178: 309411454.3
A179: Glassboro Borough | B179: 0806 | C179: Gloucester | D179: 1799968519 | E179: 2085543150 | F179: 2393294369 | G179: 2092935346
A180: Glen Gardner Borough | B180: 1012 | C180: Hunterdon | D180: 208533278 | E180: 235993212 | F180: 251878142 | G180: 232134877.3
A181: Glen Ridge Borough | B181: 0708 | C181: Essex | D181: 2454486652 | E181: 2677425509 | F181: 2968192618 | G181: 2700034926
A182: Glen Rock Borough | B182: 0222 | C182: Bergen | D182: 3155657099 | E182: 3435721151 | F182: 3940590677 | G182: 3510656309
A183: Gloucester City | B183: 0414 | C183: Camden | D183: 724169949 | E183: 844685340 | F183: 929599912 | G183: 832818400.3
A184: Gloucester County | B184: 0800 | C184: Gloucester | D184: 38066589418 | E184: 42255109559 | F184: 46420019239 | G184: 4.224723941e+10
A185: Gloucester Township | B185: 0415 | C185: Camden | D185: 6482939895 | E185: 7062943710 | F185: 8105945742 | G185: 7217276449
A186: Green Brook Township | B186: 1809 | C186: Somerset | D186: 1794752284 | E186: 1908132482 | F186: 2075681188 | G186: 1926188651
A187: Green Township | B187: 1908 | C187: Sussex | D187: 618050314 | E187: 690878986 | F187: 755669532 | G187: 688199610.7
A188: Greenwich Township (Cumberland) | B188: 0606 | C188: Cumberland | D188: 91351701 | E188: 96807499 | F188: 101743579 | G188: 96634259.67
A189: Greenwich Township (Gloucester) | B189: 0807 | C189: Gloucester | D189: 923351547 | E189: 1044780288 | F189: 1195203651 | G189: 1054445162
A190: Greenwich Township (Warren) | B190: 2107 | C190: Warren | D190: 911698568 | E190: 936292004 | F190: 1017940387 | G190: 955310319.7
A191: Guttenberg Town | B191: 0903 | C191: Hudson | D191: 1343018654 | E191: 1338780817 | F191: 1497858115 | G191: 1393219195
A192: Hackensack City | B192: 0223 | C192: Bergen | D192: 7568298135 | E192: 8239423844 | F192: 8769806651 | G192: 8192509543
A193: Hackettstown Town | B193: 2108 | C193: Warren | D193: 1211468145 | E193: 1332433557 | F193: 1397161199 | G193: 1313687634
A194: Haddon Heights Borough | B194: 0418 | C194: Camden | D194: 958490377 | E194: 994479208 | F194: 1069992328 | G194: 1007653971
A195: Haddon Township | B195: 0416 | C195: Camden | D195: 1880026434 | E195: 2106314868 | F195: 2483494170 | G195: =AVERAGE(D195:F195) -> 2156611824
A196: Haddonfield Borough | B196: 0417 | C196: Camden | D196: 2905040264 | E196: 3103340093 | F196: 3414781818 | G196: 3141054058
A197: Hainesport Township | B197: 0316 | C197: Burlington | D197: 1109082196 | E197: 1211689239 | F197: 1302999835 | G197: 1207923757
A198: Haledon Borough | B198: 1603 | C198: Passaic | D198: 914863801 | E198: 984933190 | F198: 1096796477 | G198: 998864489.3
A199: Hamburg Borough | B199: 1909 | C199: Sussex | D199: 370948815 | E199: 445803102 | F199: 491205506 | G199: 435985807.7
A200: Hamilton Township (Atlantic) | B200: 0112 | C200: Atlantic | D200: 2967046714 | E200: 3297613039 | F200: 3808043502 | G200: 3357567752
... 387 more rows

Sheet Summary
C1: State of New Jersey
C2: Department of Community Affairs
C3: Annual Debt Statement
B4: Muni Code: | E4: =VLOOKUP(H4,Muni!A1:C589,2,FALSE) ->  | G4: Local Unit: | L4: County: | N4: =VLOOKUP(H4,Muni!A1:C587, 3, FALSE) -> 
G6: Budget Year Ending: | I6: December | J6: =IF(I6="December", "31", "30") -> 31 | L6: 2025 | M6: (year)
D7: Name: | J7: Phone:
D8: Title: | J8: Email:
D9: CFO Cert. # | J9: Address:
D11: =E7&", Being duly sworn, deposes and says:" -> , Being duly sworn, deposes and says:
D12: ="Deponent is the Chief Financial Officer of "&H4&", here and in the statement hereinafter mentioned called the local unit." -> Deponent is the Chief Financial Officer of , here and in the statement hereinafter mentioned called the local unit.
D13: The Annual Debt Statement annexed hereto and hereby made a part thereof is a true statement of the debt condition of the local unit as of the date therein stated and is computed as provided by the Local Bond Law of New Jersey.
D14: TRUE | J14: Gross Debt | L14: Deduction | N14: Net Debt
D15: Total Bonds and Notes for Local School Purposes | J15: ='Local School Debt'!F13 -> 0 | L15: ='Local School Debt'!F33 ->  | N15: =J15-L15 -> 
D16: Total Bonds and Notes for Regional School Purposes | J16: ='Regional School Debt 2'!N14+'Regional School Debt'!N14 -> 0 | L16: =J16 -> 0 | N16: =IFERROR(J16-L16,"") -> 0
D17: =IF('Utility Debt 1'!J4 = "","","Bonds and Notes for the "& 'Utility Debt 1'!J4&" Utility") ->  | J17: ='Utility Debt 1'!P18 -> 0 | L17: ='Utility Debt 1'!P49 -> 0 | N17: 0
D18: =IF('Utility Debt 2'!J3 = "","","Bonds and Notes for the "& 'Utility Debt 2'!J3&" Utility") ->  | J18: ='Utility Debt 2'!P17 -> 0 | L18: ='Utility Debt 2'!P48 -> 0 | N18: 0
D19: =IF('Utility Debt 3'!J3 = "","","Bonds and Notes for the "& 'Utility Debt 3'!J3&" Utility") ->  | J19: ='Utility Debt 3'!P17 -> 0 | L19: ='Utility Debt 3'!P48 -> 0 | N19: 0
D20: =IF('Utility Debt 4'!J3 = "","","Bonds and Notes for the "& 'Utility Debt 4'!J3&" Utility") ->  | J20: ='Utility Debt 4'!P17 -> 0 | L20: ='Utility Debt 4'!P48 -> 0 | N20: 0
D21: Municipal/County General Obligations | J21: ='Misc. Bonds, Notes, Loans'!O22 -> 0 | L21: =Deductions!O33 -> 0 | N21: 0
C22: 2 | D22: Total | J22: =SUM(J15:J21) -> 0 | L22: =SUM(L15:L21) ->  | N22: =SUM(N15:N21) -> 
C24: 3 | D24: Equalized valuation basis (the average of the equalized valuations of real estate, including improvements and the assessed valuation of class II railroad property of the local unit for the last 3 preceding years).
D25: Year
D26: =L6-2 -> 2023 | E26: Equalized Valuation Real Property with Improvements plus assessed valuation of Class II RR Property | N26: =IF(H4="ENTITY NAME","",VLOOKUP(H4,Muni!A1:F587,4,FALSE)) -> 
D27: =L6-1 -> 2024 | E27: Equalized Valuation Real Property with Improvements plus assessed valuation of Class II RR Property | N27: =IF(H4="ENTITY NAME","",VLOOKUP(H4,Muni!A1:F587,5,FALSE)) -> 
D28: =L6 -> 2025 | E28: Equalized Valuation Real Property with Improvements plus assessed valuation of Class II RR Property | N28: =IF(H4="ENTITY NAME","",VLOOKUP(H4,Muni!A1:F587,6,FALSE)) -> 
C29: 4 | D29: Equalized Valuation Basis - Average of (1), (2) and (3)…………………………………………………………………….. | N29: =AVERAGE(N26,N27,N28) -> 
C31: 5 | D31: Net Debt expressed as a percentage of such equalized valuation basis is: % | N31: =+N22/N29 -> 

Sheet Local School Debt
B1: BONDS AND NOTES FOR LOCAL SCHOOL PURPOSES
B2: If Municipality has no Local School District, check this box:
B3: If Local School District has no debt, check this box:
B4: Local School District Type (select one): | E4: Type II
A6: 1 | B6: Term Bonds
A7: 2 | B7: Serial Bonds
B8: (a) Issued | E8: 0
B9: (b) Authorized but not issued | E9: 0
A10: 3 | B10: Temporary Notes
B11: (a) Issued | E11: 0
B12: (b) Authorized but not issued | E12: 0
A13: 4 | B13: Total Bonds and Notes | F13: =SUM(E6:E12) -> 0
B15: DEDUCTIONS APPLICABLE TO BONDS AND NOTES - FOR SCHOOL PURPOSES
B16: Amounts held or to be held for the sole purpose of paying bonds and notes included above.
A18: 5 | B18: Sinking funds on hand for bonds shown as Line 1 but not in excess of such bonds. | E18: 0
A20: 6 | B20: Funds on hand in those cases where such funds cannot be diverted to purposes other than the payment of bonds and notes included in Line 4. | E20: 0
A22: 7 | B22: Estimated proceeds of bonds and notes authorized but not issued where such proceeds will be used for the sole purpose of paying bonds and notes included in Line 4. | E22: 0
A24: 8 | B24: % of average of equalized valuations | C24: =Summary!N29 ->  | E24: =C24*D24 -> 
B25: Use applicable per centum as follows:
B26: 2.50% Kindergarten or Grade 1 through Grade 6
B27: 3.00% Kindergarten or Grade 1 through Grade 8
B28: 3.50% Kindergarten or Grade 1 through Grade 9
B29: 4.00% Kindergarten or Grade 1 through Grade 12
A31: 9 | B31: Additional State School Building Aid Bonds (NJSA 18A:58-33.4(d)) | E31: 0
A32: 10 | B32: Total Potential Deduction | F32: =SUM(E18:E31) -> 
B33: Total Allowable Deduction | F33: =IF(F13>F32,F32*1,F13*1) -> 

Sheet Regional School Debt
I1: BONDS AND NOTES FOR REGIONAL SCHOOL PURPOSES 1
I2: If there is no Regional School District, check this box:
I3: If Regional School District has no debt, check this box:
A5: =MID(CELL("filename",A5),FIND("]",CELL("filename",A5))+1,256) -> Regional School Debt | B5: =ROW() -> 5 | C5: =Summary!#REF! ->  | D5: =Summary!L6 -> 2025 | E5: ads | F5: bnrsp | I5: Regional School District Name:
A7: Regional School Debt | B7: =ROW() -> 7 | C7: =Summary!#REF! ->  | D7: =Summary!L5 -> 0 | E7: ads | F7: bnrsp | G7: 50111-00 | H7: 1 | I7: TERM BONDS
A8: Regional School Debt | B8: =ROW() -> 8 | C8: =Summary!#REF! ->  | D8: =Summary!L6 -> 2025 | E8: ads | F8: bnrsp | H8: 2 | I8: SERIAL BONDS
A9: Regional School Debt | B9: =ROW() -> 9 | C9: =Summary!#REF! ->  | D9: =Summary!L6 -> 2025 | E9: ads | F9: bnrsp | G9: 50117-00 | I9: (a) Issued | M9: =IFERROR(VLOOKUP(Summary!H4,'Regional School Debt'!I22:N36,4,FALSE),"") -> 
A10: Regional School Debt | B10: =ROW() -> 10 | C10: =Summary!#REF! ->  | D10: =Summary!L6 -> 2025 | E10: ads | F10: bnrsp | G10: 50118-00 | I10: (b) Authorized but not issued
A11: Regional School Debt | B11: =ROW() -> 11 | C11: =Summary!#REF! ->  | D11: =Summary!L6 -> 2025 | E11: ads | F11: bnrsp | H11: 3 | I11: TEMPORARY BONDS AND NOTES
A12: Regional School Debt | B12: =ROW() -> 12 | C12: =Summary!#REF! ->  | D12: =Summary!L6 -> 2025 | E12: ads | F12: bnrsp | G12: 50119-00 | I12: (a) Issued | M12: =IFERROR(VLOOKUP(Summary!H4,'Regional School Debt'!I22:N36,5,FALSE),"") -> 
A13: Regional School Debt | B13: =ROW() -> 13 | C13: =Summary!#REF! ->  | D13: =Summary!L6 -> 2025 | E13: ads | F13: bnrsp | G13: 50120-00 | I13: (b) Authorized but not issued
A14: Regional School Debt | B14: =ROW() -> 14 | C14: =Summary!#REF! ->  | D14: =Summary!L6 -> 2025 | E14: ads | F14: bnrsp | G14: 50121-00 | H14: 4 | I14: TOTAL OF REGIONAL SCHOOL BONDS AND NOTES | N14: =IFERROR(SUM(M7:M13),"") -> 0
A15: Regional School Debt | B15: =ROW() -> 15 | C15: =Summary!#REF! ->  | D15: =Summary!L6 -> 2025 | E15: ads | F15: bnrsp
A17: Regional School Debt | B17: =ROW() -> 17 | C17: =Summary!#REF! ->  | D17: =Summary!L6 -> 2025 | E17: ads | F17: bnrsp | H17: N.J.S.A. 40A:2-43 reads in part as follows: "Gross debt of a municipality shall also include that amount of the total of all the bonds and notes issued and authorized but not issued by any school district including the area of the municipality, which results from the application to such total of the ratio which the equalized valuation basis of the municipality bears to the sum of the equalized valuation basis of each municipality in any such school district."
A18: Regional School Debt | B18: =ROW() -> 18 | C18: =Summary!#REF! ->  | D18: =Summary!L6 -> 2025 | E18: ads | F18: cspd | K18: COMPUTATION OF REGIONAL AND/OR CONSOLIDATED SCHOOL DISTRICT DEBT
A19: Regional School Debt | B19: =ROW() -> 19 | C19: =Summary!#REF! ->  | D19: =Summary!L6 -> 2025 | E19: ads | F19: cspd | I19: % OF VALUATIONS APPORTIONED TO EACH MUNICIPALITY | L19: =" APPORTIONMENT OF DEBT - "&_xlfn.CONCAT(Summary!I6," ",Summary!J6,", ", Summary!L6)&"" -> APPORTIONMENT OF DEBT - December 31, 2025 | Q19: **Enter the total amount of debt issued for each category in cells L37, M37, and N37.
A20: Regional School Debt | B20: =ROW() -> 20 | C20: =Summary!#REF! ->  | D20: =Summary!L6 -> 2025 | E20: ads | F20: cspd | I20: Municipality | J20: Average Equalized | K20: % | L20: Serial Bonds | M20: Temp. Bond- | N20: Authorized | Q20: **The proportions will be automatically calculated and populated to the table.
A21: Regional School Debt | B21: =ROW() -> 21 | C21: =Summary!#REF! ->  | D21: =Summary!L6 -> 2025 | E21: ads | F21: cspd | J21: Valuations | L21: Issued | M21: Notes Issued | N21: But not Issued
A22: Regional School Debt | B22: =ROW() -> 22 | C22: =Summary!#REF! ->  | D22: =Summary!L6 -> 2025 | E22: ads | F22: cspd | I22: =IFERROR(IF(VLOOKUP(J5,RegSchLookup!A1:M81,2,FALSE)="","",VLOOKUP(J5,RegSchLookup!A1:M81,2,FALSE)),"") ->  | J22: =IF(I22="","",VLOOKUP(I22,Muni!$A$1:$G$587,7,FALSE)) ->  | K22: =IF(J22="","",J22/J$37) ->  | L22: =IF(K22="","",$L$37*K22) ->  | M22: =IF(K22="","",$M$37*K22) ->  | N22: =IF(K22="","",$N$37*K22) -> 
A23: Regional School Debt | B23: =ROW() -> 23 | C23: =Summary!#REF! ->  | D23: =Summary!L6 -> 2025 | E23: ads | F23: cspd | I23: =IFERROR(IF(VLOOKUP(J5,RegSchLookup!A1:M81,3,FALSE)="","",VLOOKUP(J5,RegSchLookup!A1:M81,3,FALSE)),"") ->  | J23: =IF(I23="","",VLOOKUP(I23,Muni!$A$1:$G$587,7,FALSE)) ->  | K23: =IF(J23="","",J23/J$37) ->  | L23: =IF(K23="","",$L$37*K23) ->  | M23: =IF(K23="","",$M$37*K23) ->  | N23: =IF(K23="","",$N$37*K23) -> 
A24: Regional School Debt | B24: =ROW() -> 24 | C24: =Summary!#REF! ->  | D24: =Summary!L6 -> 2025 | E24: ads | F24: cspd | I24: =IFERROR(IF(VLOOKUP(J5,RegSchLookup!A1:M81,4,FALSE)="","",VLOOKUP(J5,RegSchLookup!A1:M81,4,FALSE)),"") ->  | J24: =IF(I24="","",VLOOKUP(I24,Muni!$A$1:$G$587,7,FALSE)) ->  | K24: =IF(J24="","",J24/J$37) ->  | L24: =IF(K24="","",$L$37*K24) -> 
A25: Regional School Debt | B25: =ROW() -> 25 | C25: =Summary!#REF! ->  | D25: =Summary!L6 -> 2025 | E25: ads | F25: cspd | I25: =IFERROR(IF(VLOOKUP(J5,RegSchLookup!A1:M81,5,FALSE)="","",VLOOKUP(J5,RegSchLookup!A1:M81,5,FALSE)),"") ->  | J25: =IF(I25="","",VLOOKUP(I25,Muni!A4:G590,7,FALSE)) ->  | K25: =IF(J25="","",J25/J$37) ->  | L25: =IF(K25="","",$L$37*K25) ->  | M25: =IF(K25="","",$M$37*K25) -> 
A26: Regional School Debt | B26: =ROW() -> 26 | C26: =Summary!#REF! ->  | D26: =Summary!L6 -> 2025 | E26: ads | F26: cspd | I26: =IFERROR(IF(VLOOKUP(J5,RegSchLookup!A1:M81,6,FALSE)="","",VLOOKUP(J5,RegSchLookup!A1:M81,6,FALSE)),"") ->  | J26: =IF(I26="","",VLOOKUP(I26,Muni!A5:G591,7,FALSE)) ->  | K26: =IF(J26="","",J26/J$37) -> 
A27: Regional School Debt | B27: =ROW() -> 27 | C27: =Summary!#REF! ->  | D27: =Summary!L6 -> 2025 | E27: ads | F27: cspd | I27: =IFERROR(IF(VLOOKUP(J5,RegSchLookup!A1:M81,7,FALSE)="","",VLOOKUP(J5,RegSchLookup!A1:M81,7,FALSE)),"") ->  | J27: =IF(I27="","",VLOOKUP(I27,Muni!A6:G592,7,FALSE)) -> 
A28: Regional School Debt | B28: =ROW() -> 28 | C28: =Summary!#REF! ->  | D28: =Summary!L6 -> 2025 | E28: ads | F28: cspd | I28: =IFERROR(IF(VLOOKUP(J5,RegSchLookup!A1:M81,8,FALSE)="","",VLOOKUP(J5,RegSchLookup!A1:M81,8,FALSE)),"") ->  | J28: =IF(I28="","",VLOOKUP(I28,Muni!A7:G593,7,FALSE)) ->  | L28: =IF(K28="","",$L$37*K28) -> 
A29: Regional School Debt | B29: =ROW() -> 29 | C29: =Summary!#REF! ->  | D29: =Summary!L6 -> 2025 | E29: ads | F29: cspd | I29: =IFERROR(IF(VLOOKUP(J5,RegSchLookup!A1:M81,9,FALSE)="","",VLOOKUP(J5,RegSchLookup!A1:M81,9,FALSE)),"") ->  | J29: =IF(I29="","",VLOOKUP(I29,Muni!A8:G594,7,FALSE)) -> 
A30: Regional School Debt | B30: =ROW() -> 30 | C30: =Summary!#REF! ->  | D30: =Summary!L6 -> 2025 | E30: ads | F30: cspd | I30: =IFERROR(IF(VLOOKUP(J5,RegSchLookup!A1:M81,10,FALSE)="","",VLOOKUP(J5,RegSchLookup!A1:M81,10,FALSE)),"") ->  | J30: =IF(I30="","",VLOOKUP(I30,Muni!A9:G595,7,FALSE)) ->  | K30: =IF(J30="","",J30/J$37) -> 
A31: Regional School Debt | B31: =ROW() -> 31 | C31: =Summary!#REF! ->  | D31: =Summary!L6 -> 2025 | E31: ads | F31: cspd | I31: =IFERROR(IF(VLOOKUP(J5,RegSchLookup!A1:M81,11,FALSE)="","",VLOOKUP(J5,RegSchLookup!A1:M81,11,FALSE)),"") ->  | J31: =IF(I31="","",VLOOKUP(I31,Muni!A10:G596,7,FALSE)) -> 
A32: Regional School Debt | B32: =ROW() -> 32 | C32: =Summary!#REF! ->  | D32: =Summary!L6 -> 2025 | E32: ads | F32: cspd | I32: =IFERROR(IF(VLOOKUP(J5,RegSchLookup!A1:M81,12,FALSE)="","",VLOOKUP(J5,RegSchLookup!A1:M81,12,FALSE)),"") ->  | J32: =IF(I32="","",VLOOKUP(I32,Muni!A11:G597,7,FALSE)) -> 
A33: Regional School Debt | B33: =ROW() -> 33 | C33: =Summary!#REF! ->  | D33: =Summary!L6 -> 2025 | E33: ads | F33: cspd | I33: =IFERROR(IF(VLOOKUP(J5,RegSchLookup!A1:M81,13,FALSE)="","",VLOOKUP(J5,RegSchLookup!A1:M81,13,FALSE)),"") ->  | J33: =IF(I33="","",VLOOKUP(I33,Muni!A12:G598,7,FALSE)) -> 
A34: Regional School Debt | B34: =ROW() -> 34 | C34: =Summary!#REF! ->  | D34: =Summary!L6 -> 2025 | E34: ads | F34: cspd | J34: =IF(I34="","",VLOOKUP(I34,Muni!A13:G599,7,FALSE)) -> 
A35: Regional School Debt | B35: =ROW() -> 35 | C35: =Summary!#REF! ->  | D35: =Summary!L6 -> 2025 | E35: ads | F35: cspd | J35: =IF(I35="","",VLOOKUP(I35,Muni!A14:G600,7,FALSE)) -> 
A36: Regional School Debt | B36: =ROW() -> 36 | C36: =Summary!#REF! ->  | D36: =Summary!L6 -> 2025 | E36: ads | F36: cspd | J36: =IF(I36="","",VLOOKUP(I36,Muni!A15:G601,7,FALSE)) -> 
A37: Regional School Debt | B37: =ROW() -> 37 | C37: =Summary!#REF! ->  | D37: =Summary!L6 -> 2025 | E37: ads | F37: cspd | G37: tot | I37: Totals | J37: =SUM(J22:J36) -> 0 | K37: =SUM(K22:K36) -> 0

Sheet Regional School Debt 2
I1: BONDS AND NOTES FOR REGIONAL SCHOOL PURPOSES 2
I2: *Only utilize this page if the municipality is part of more than one regional school district.
I3: If Regional School District has no debt, check this box:
A5: =MID(CELL("filename",A5),FIND("]",CELL("filename",A5))+1,256) -> Regional School Debt 2 | B5: =ROW() -> 5 | C5: =Summary!#REF! ->  | D5: =Summary!L6 -> 2025 | E5: ads | F5: bnrsp | I5: Regional School District Name:
A7: Regional School Debt 2 | B7: =ROW() -> 7 | C7: =Summary!#REF! ->  | D7: =Summary!L5 -> 0 | E7: ads | F7: bnrsp | G7: 50111-00 | H7: 1 | I7: TERM BONDS
A8: Regional School Debt 2 | B8: =ROW() -> 8 | C8: =Summary!#REF! ->  | D8: =Summary!L6 -> 2025 | E8: ads | F8: bnrsp | H8: 2 | I8: SERIAL BONDS
A9: Regional School Debt 2 | B9: =ROW() -> 9 | C9: =Summary!#REF! ->  | D9: =Summary!L6 -> 2025 | E9: ads | F9: bnrsp | G9: 50117-00 | I9: (a) Issued | M9: =IFERROR(VLOOKUP(Summary!H4,'Regional School Debt 2'!I22:N36,4,FALSE),"") -> 
A10: Regional School Debt 2 | B10: =ROW() -> 10 | C10: =Summary!#REF! ->  | D10: =Summary!L6 -> 2025 | E10: ads | F10: bnrsp | G10: 50118-00 | I10: (b) Authorized but not issued
A11: Regional School Debt 2 | B11: =ROW() -> 11 | C11: =Summary!#REF! ->  | D11: =Summary!L6 -> 2025 | E11: ads | F11: bnrsp | H11: 3 | I11: TEMPORARY BONDS AND NOTES
A12: Regional School Debt 2 | B12: =ROW() -> 12 | C12: =Summary!#REF! ->  | D12: =Summary!L6 -> 2025 | E12: ads | F12: bnrsp | G12: 50119-00 | I12: (a) Issued | M12: =IFERROR(VLOOKUP(Summary!H4,'Regional School Debt 2'!I22:N36,5,FALSE),"") -> 
A13: Regional School Debt 2 | B13: =ROW() -> 13 | C13: =Summary!#REF! ->  | D13: =Summary!L6 -> 2025 | E13: ads | F13: bnrsp | G13: 50120-00 | I13: (b) Authorized but not issued
A14: Regional School Debt 2 | B14: =ROW() -> 14 | C14: =Summary!#REF! ->  | D14: =Summary!L6 -> 2025 | E14: ads | F14: bnrsp | G14: 50121-00 | H14: 4 | I14: TOTAL OF REGIONAL SCHOOL BONDS AND NOTES | N14: =IFERROR(SUM(M7:M13),"") -> 0
A15: Regional School Debt 2 | B15: =ROW() -> 15 | C15: =Summary!#REF! ->  | D15: =Summary!L6 -> 2025 | E15: ads | F15: bnrsp
A17: Regional School Debt 2 | B17: =ROW() -> 17 | C17: =Summary!#REF! ->  | D17: =Summary!L6 -> 2025 | E17: ads | F17: bnrsp | H17: N.J.S.A. 40A:2-43 reads in part as follows: "Gross debt of a municipality shall also include that amount of the total of all the bonds and notes issued and authorized but not issued by any school district including the area of the municipality, which results from the application to such total of the ratio which the equalized valuation basis of the municipality bears to the sum of the equalized valuation basis of each municipality in any such school district."
A18: Regional School Debt 2 | B18: =ROW() -> 18 | C18: =Summary!#REF! ->  | D18: =Summary!L6 -> 2025 | E18: ads | F18: cspd | K18: COMPUTATION OF REGIONAL AND/OR CONSOLIDATED SCHOOL DISTRICT DEBT
A19: Regional School Debt 2 | B19: =ROW() -> 19 | C19: =Summary!#REF! ->  | D19: =Summary!L6 -> 2025 | E19: ads | F19: cspd | I19: % OF VALUATIONS APPORTIONED TO EACH MUNICIPALITY | L19: =" APPORTIONMENT OF DEBT - "&_xlfn.CONCAT(Summary!I6," ",Summary!J6,", ", Summary!L6)&"" -> APPORTIONMENT OF DEBT - December 31, 2025 | Q19: **Enter the total amount of debt issued for each category in cells L37, M37, and N37.
A20: Regional School Debt 2 | B20: =ROW() -> 20 | C20: =Summary!#REF! ->  | D20: =Summary!L6 -> 2025 | E20: ads | F20: cspd | I20: Municipality | J20: Average Equalized | K20: % | L20: Serial Bonds | M20: Temp. Bond- | N20: Authorized | Q20: **The proportions will be automatically calculated and populated to the table.
A21: Regional School Debt 2 | B21: =ROW() -> 21 | C21: =Summary!#REF! ->  | D21: =Summary!L6 -> 2025 | E21: ads | F21: cspd | J21: Valuations | L21: Issued | M21: Notes Issued | N21: But not Issued
A22: Regional School Debt 2 | B22: =ROW() -> 22 | C22: =Summary!#REF! ->  | D22: =Summary!L6 -> 2025 | E22: ads | F22: cspd | I22: =IFERROR(IF(VLOOKUP(J5,RegSchLookup!A1:M81,2,FALSE)="","",VLOOKUP(J5,RegSchLookup!A1:M81,2,FALSE)),"") ->  | J22: =IF(I22="","",VLOOKUP(I22,Muni!A1:G587,7,FALSE)) ->  | K22: =IF(J22="","",J22/J$37) ->  | L22: =IF(K22="","",$L$37*K22) ->  | M22: =IF(K22="","",$M$37*K22) ->  | N22: =IF(K22="","",$N$37*K22) -> 
A23: Regional School Debt 2 | B23: =ROW() -> 23 | C23: =Summary!#REF! ->  | D23: =Summary!L6 -> 2025 | E23: ads | F23: cspd | I23: =IFERROR(IF(VLOOKUP(J5,RegSchLookup!A1:M81,3,FALSE)="","",VLOOKUP(J5,RegSchLookup!A1:M81,3,FALSE)),"") ->  | J23: =IF(I23="","",VLOOKUP(I23,Muni!A2:G588,7,FALSE)) ->  | K23: =IF(J23="","",J23/J$37) ->  | L23: =IF(K23="","",$L$37*K23) ->  | M23: =IF(K23="","",$M$37*K23) ->  | N23: =IF(K23="","",$N$37*K23) -> 
A24: Regional School Debt 2 | B24: =ROW() -> 24 | C24: =Summary!#REF! ->  | D24: =Summary!L6 -> 2025 | E24: ads | F24: cspd | I24: =IFERROR(IF(VLOOKUP(J5,RegSchLookup!A1:M81,4,FALSE)="","",VLOOKUP(J5,RegSchLookup!A1:M81,4,FALSE)),"") ->  | J24: =IF(I24="","",VLOOKUP(I24,Muni!A3:G589,7,FALSE)) ->  | K24: =IF(J24="","",J24/J$37) ->  | L24: =IF(K24="","",$L$37*K24) -> 
A25: Regional School Debt 2 | B25: =ROW() -> 25 | C25: =Summary!#REF! ->  | D25: =Summary!L6 -> 2025 | E25: ads | F25: cspd | I25: =IFERROR(IF(VLOOKUP(J5,RegSchLookup!A1:M81,5,FALSE)="","",VLOOKUP(J5,RegSchLookup!A1:M81,5,FALSE)),"") ->  | J25: =IF(I25="","",VLOOKUP(I25,Muni!A4:G590,7,FALSE)) ->  | K25: =IF(J25="","",J25/J$37) ->  | L25: =IF(K25="","",$L$37*K25) ->  | M25: =IF(K25="","",$M$37*K25) -> 
A26: Regional School Debt 2 | B26: =ROW() -> 26 | C26: =Summary!#REF! ->  | D26: =Summary!L6 -> 2025 | E26: ads | F26: cspd | I26: =IFERROR(IF(VLOOKUP(J5,RegSchLookup!A1:M81,6,FALSE)="","",VLOOKUP(J5,RegSchLookup!A1:M81,6,FALSE)),"") ->  | J26: =IF(I26="","",VLOOKUP(I26,Muni!A5:G591,7,FALSE)) ->  | K26: =IF(J26="","",J26/J$37) -> 
A27: Regional School Debt 2 | B27: =ROW() -> 27 | C27: =Summary!#REF! ->  | D27: =Summary!L6 -> 2025 | E27: ads | F27: cspd | I27: =IFERROR(IF(VLOOKUP(J5,RegSchLookup!A1:M81,7,FALSE)="","",VLOOKUP(J5,RegSchLookup!A1:M81,7,FALSE)),"") ->  | J27: =IF(I27="","",VLOOKUP(I27,Muni!A6:G592,7,FALSE)) -> 
A28: Regional School Debt 2 | B28: =ROW() -> 28 | C28: =Summary!#REF! ->  | D28: =Summary!L6 -> 2025 | E28: ads | F28: cspd | I28: =IFERROR(IF(VLOOKUP(J5,RegSchLookup!A1:M81,8,FALSE)="","",VLOOKUP(J5,RegSchLookup!A1:M81,8,FALSE)),"") ->  | J28: =IF(I28="","",VLOOKUP(I28,Muni!A7:G593,7,FALSE)) ->  | L28: =IF(K28="","",$L$37*K28) -> 
A29: Regional School Debt 2 | B29: =ROW() -> 29 | C29: =Summary!#REF! ->  | D29: =Summary!L6 -> 2025 | E29: ads | F29: cspd | I29: =IFERROR(IF(VLOOKUP(J5,RegSchLookup!A1:M81,9,FALSE)="","",VLOOKUP(J5,RegSchLookup!A1:M81,9,FALSE)),"") ->  | J29: =IF(I29="","",VLOOKUP(I29,Muni!A8:G594,7,FALSE)) -> 
A30: Regional School Debt 2 | B30: =ROW() -> 30 | C30: =Summary!#REF! ->  | D30: =Summary!L6 -> 2025 | E30: ads | F30: cspd | I30: =IFERROR(IF(VLOOKUP(J5,RegSchLookup!A1:M81,10,FALSE)="","",VLOOKUP(J5,RegSchLookup!A1:M81,10,FALSE)),"") ->  | J30: =IF(I30="","",VLOOKUP(I30,Muni!A9:G595,7,FALSE)) ->  | K30: =IF(J30="","",J30/J$37) -> 
A31: Regional School Debt 2 | B31: =ROW() -> 31 | C31: =Summary!#REF! ->  | D31: =Summary!L6 -> 2025 | E31: ads | F31: cspd | I31: =IFERROR(IF(VLOOKUP(J5,RegSchLookup!A1:M81,11,FALSE)="","",VLOOKUP(J5,RegSchLookup!A1:M81,11,FALSE)),"") ->  | J31: =IF(I31="","",VLOOKUP(I31,Muni!A10:G596,7,FALSE)) -> 
A32: Regional School Debt 2 | B32: =ROW() -> 32 | C32: =Summary!#REF! ->  | D32: =Summary!L6 -> 2025 | E32: ads | F32: cspd | I32: =IFERROR(IF(VLOOKUP(J5,RegSchLookup!A1:M81,12,FALSE)="","",VLOOKUP(J5,RegSchLookup!A1:M81,12,FALSE)),"") ->  | J32: =IF(I32="","",VLOOKUP(I32,Muni!A11:G597,7,FALSE)) -> 
A33: Regional School Debt 2 | B33: =ROW() -> 33 | C33: =Summary!#REF! ->  | D33: =Summary!L6 -> 2025 | E33: ads | F33: cspd | I33: =IFERROR(IF(VLOOKUP(J5,RegSchLookup!A1:M81,13,FALSE)="","",VLOOKUP(J5,RegSchLookup!A1:M81,13,FALSE)),"") ->  | J33: =IF(I33="","",VLOOKUP(I33,Muni!A12:G598,7,FALSE)) -> 
A34: Regional School Debt 2 | B34: =ROW() -> 34 | C34: =Summary!#REF! ->  | D34: =Summary!L6 -> 2025 | E34: ads | F34: cspd | J34: =IF(I34="","",VLOOKUP(I34,Muni!A13:G599,7,FALSE)) -> 
A35: Regional School Debt 2 | B35: =ROW() -> 35 | C35: =Summary!#REF! ->  | D35: =Summary!L6 -> 2025 | E35: ads | F35: cspd | J35: =IF(I35="","",VLOOKUP(I35,Muni!A14:G600,7,FALSE)) -> 
A36: Regional School Debt 2 | B36: =ROW() -> 36 | C36: =Summary!#REF! ->  | D36: =Summary!L6 -> 2025 | E36: ads | F36: cspd | J36: =IF(I36="","",VLOOKUP(I36,Muni!A15:G601,7,FALSE)) -> 
A37: Regional School Debt 2 | B37: =ROW() -> 37 | C37: =Summary!#REF! ->  | D37: =Summary!L6 -> 2025 | E37: ads | F37: cspd | G37: tot | I37: Totals | J37: =SUM(J22:J36) -> 0 | K37: =SUM(K22:K36) -> 0

Sheet Utility Debt 1
A1: =MID(CELL("filename",A1),FIND("]",CELL("filename",A1))+1,256) -> Utility Debt 1 | B1: =ROW() -> 1 | C1: =Summary!D4 -> 00:00:00 | D1: =Summary!L6 -> 1905-07-17 | E1: ads | F1: u1bn | G1: =F1&ROW() -> u1bn1 | J1: BONDS AND NOTES FOR UTILITY FUND
K2: If there are no Utilities, check this box:
K3: If Utility has no debt, check this box:
A4: =MID(CELL("filename",A4),FIND("]",CELL("filename",A4))+1,256) -> Utility Debt 1 | B4: =ROW() -> 4 | C4: =Summary!D5 -> 00:00:00 | D4: =Summary!L7 -> 00:00:00 | E4: ads | F4: u4bn | G4: =F4&ROW() -> u4bn4 | I4: I. | M4: Utility
A5: Utility Debt 1 | B5: =ROW() -> 5 | C5: =Summary!D4 -> 00:00:00 | D5: =Summary!L6 -> 1905-07-17 | E5: ads | F5: u1bn | G5: =F5&ROW() -> u1bn5 | I5: 1. | J5: Term bonds | O5: 0
A6: Utility Debt 1 | B6: =ROW() -> 6 | C6: =Summary!D4 -> 00:00:00 | D6: =Summary!L6 -> 1905-07-17 | E6: ads | F6: u1bn | G6: u1bn6 | I6: 2. | J6: Serial bonds
A7: Utility Debt 1 | B7: =ROW() -> 7 | C7: =Summary!D4 -> 00:00:00 | D7: =Summary!L6 -> 1905-07-17 | E7: ads | F7: u1bn | G7: u1bn7 | J7: (a) | K7: Issued | O7: 0
A8: Utility Debt 1 | B8: =ROW() -> 8 | C8: =Summary!D4 -> 00:00:00 | D8: =Summary!L6 -> 1905-07-17 | E8: ads | F8: u1bn | G8: u1bn8 | J8: (b) | K8: Authorized but not issued | O8: 0
A9: Utility Debt 1 | B9: =ROW() -> 9 | C9: =Summary!D4 -> 00:00:00 | D9: =Summary!L6 -> 1905-07-17 | E9: ads | F9: u1bn | G9: u1bn9 | I9: 3 | J9: Bond Anticipation Notes
A10: Utility Debt 1 | B10: =ROW() -> 10 | C10: =Summary!D4 -> 00:00:00 | D10: =Summary!L6 -> 1905-07-17 | E10: ads | F10: u1bn | G10: u1bn10 | J10: (a) | K10: Issued | O10: 0
A11: Utility Debt 1 | B11: =ROW() -> 11 | C11: =Summary!D4 -> 00:00:00 | D11: =Summary!L6 -> 1905-07-17 | E11: ads | F11: u1bn | G11: u1bn11 | J11: (b) | K11: Authorized but not issued | O11: 0
A12: Utility Debt 1 | B12: =ROW() -> 12 | C12: =Summary!D4 -> 00:00:00 | D12: =Summary!L6 -> 1905-07-17 | E12: ads | F12: u1bn | G12: u1bn12 | I12: 4 | J12: Capital Notes (N.J.S.A. 40A:2-8)
A13: Utility Debt 1 | B13: =ROW() -> 13 | C13: =Summary!D4 -> 00:00:00 | D13: =Summary!L6 -> 1905-07-17 | E13: ads | F13: u1bn | G13: u1bn13 | J13: (a) | K13: Issued | O13: 0
A14: Utility Debt 1 | B14: =ROW() -> 14 | C14: =Summary!D4 -> 00:00:00 | D14: =Summary!L6 -> 1905-07-17 | E14: ads | F14: u1bn | G14: u1bn14 | J14: (b) | K14: Authorized but not issued | O14: 0
A15: Utility Debt 1 | B15: =ROW() -> 15 | C15: =Summary!D4 -> 00:00:00 | D15: =Summary!L6 -> 1905-07-17 | E15: ads | F15: u1bn | G15: u1bn15 | I15: 5 | J15: Other
A16: Utility Debt 1 | B16: =ROW() -> 16 | C16: =Summary!D4 -> 00:00:00 | D16: =Summary!L6 -> 1905-07-17 | E16: ads | F16: u1bn | G16: u1bn16 | J16: (a) | K16: Issued | O16: 0
A17: Utility Debt 1 | B17: =ROW() -> 17 | C17: =Summary!D4 -> 00:00:00 | D17: =Summary!L6 -> 1905-07-17 | E17: ads | F17: u1bn | G17: u1bn17 | J17: (b) | K17: Authorized but not issued | O17: 0
A18: Utility Debt 1 | B18: =ROW() -> 18 | C18: =Summary!D4 -> 00:00:00 | D18: =Summary!L6 -> 1905-07-17 | E18: ads | F18: u1bn | G18: u1bn18 | I18: 6 | J18: Total | P18: =SUM(O5:O17) -> 0
A19: Utility Debt 1 | B19: =ROW() -> 19 | C19: =Summary!D4 -> 00:00:00 | D19: =Summary!L6 -> 1905-07-17 | E19: ads | F19: u1bn | G19: u1bn19
A20: Utility Debt 1 | B20: =ROW() -> 20 | C20: =Summary!D4 -> 00:00:00 | D20: =Summary!L6 -> 1905-07-17 | E20: ads | F20: u1bnd | G20: u1bnd20
A21: Utility Debt 1 | B21: =ROW() -> 21 | C21: =Summary!D4 -> 00:00:00 | D21: =Summary!L6 -> 1905-07-17 | E21: ads | F21: u1bnd | G21: u1bnd21 | J21: DEDUCTIONS APPLICABLE TO BONDS AND NOTES FOR SELF-LIQUIDATING PURPOSES
A22: Utility Debt 1 | B22: =ROW() -> 22 | C22: =Summary!D4 -> 00:00:00 | D22: =Summary!L6 -> 1905-07-17 | E22: ads | F22: u1bnd | G22: u1bnd22 | J22: Self-Liquidating Utility Calculation
A23: Utility Debt 1 | B23: =ROW() -> 23 | C23: =Summary!D4 -> 00:00:00 | D23: =Summary!L6 -> 1905-07-17 | E23: ads | F23: u1bnd | G23: u1bnd23 | I23: 1. | J23: Total Cash Receipts from Fees, Rents or Other Charges for Year | P23: 0
A24: Utility Debt 1 | B24: =ROW() -> 24 | C24: =Summary!D4 -> 00:00:00 | D24: =Summary!L6 -> 1905-07-17 | E24: ads | F24: u1bnd | G24: u1bnd24 | I24: 2. | J24: Operating and Maintenance Cost | O24: 0
A25: Utility Debt 1 | B25: =ROW() -> 25 | C25: =Summary!D4 -> 00:00:00 | D25: =Summary!L6 -> 1905-07-17 | E25: ads | F25: u1bnd | G25: u1bnd25 | I25: 3. | J25: Debt Service
A26: Utility Debt 1 | B26: =ROW() -> 26 | C26: =Summary!D4 -> 00:00:00 | D26: =Summary!L6 -> 1905-07-17 | E26: ads | F26: u1bnd | G26: u1bnd26 | K26: (a) | L26: Interest | N26: 0
A27: Utility Debt 1 | B27: =ROW() -> 27 | C27: =Summary!D4 -> 00:00:00 | D27: =Summary!L6 -> 1905-07-17 | E27: ads | F27: u1bnd | G27: u1bnd27 | K27: (b) | L27: Notes | N27: 0
A28: Utility Debt 1 | B28: =ROW() -> 28 | C28: =Summary!D4 -> 00:00:00 | D28: =Summary!L6 -> 1905-07-17 | E28: ads | F28: u1bnd | G28: u1bnd28 | K28: (c) | L28: Serial Bonds | N28: 0
A29: Utility Debt 1 | B29: =ROW() -> 29 | C29: =Summary!D4 -> 00:00:00 | D29: =Summary!L6 -> 1905-07-17 | E29: ads | F29: u1bnd | G29: u1bnd29 | K29: (d) | L29: Sinking Fund Requirements | N29: 0
A30: Utility Debt 1 | B30: =ROW() -> 30 | C30: =Summary!D4 -> 00:00:00 | D30: =Summary!L6 -> 1905-07-17 | E30: ads | F30: u1bnd | G30: u1bnd30 | I30: 4. | J30: Debt Service per Current Budget (N.J.S.A. 40A:2-52)
A31: Utility Debt 1 | B31: =ROW() -> 31 | C31: =Summary!D4 -> 00:00:00 | D31: =Summary!L6 -> 1905-07-17 | E31: ads | F31: u1bnd | G31: u1bnd31 | K31: (a) | L31: Interest on Refunding Bonds | N31: 0
A32: Utility Debt 1 | B32: =ROW() -> 32 | C32: =Summary!D4 -> 00:00:00 | D32: =Summary!L6 -> 1905-07-17 | E32: ads | F32: u1bnd | G32: u1bnd32 | K32: (b) | L32: Refunding Bonds | N32: 0
A33: Utility Debt 1 | B33: =ROW() -> 33 | C33: =Summary!D4 -> 00:00:00 | D33: =Summary!L6 -> 1905-07-17 | E33: ads | F33: u1bnd | G33: u1bnd33 | I33: 5. | J33: Anticipated Deficit in Dedicated Assessment Budget | N33: 0
A34: Utility Debt 1 | B34: =ROW() -> 34 | C34: =Summary!D4 -> 00:00:00 | D34: =Summary!L6 -> 1905-07-17 | E34: ads | F34: u1bnd | G34: u1bnd34 | I34: 6. | J34: Total Debt Service | O34: =SUM(N26:N33) -> 0
A35: Utility Debt 1 | B35: =ROW() -> 35 | C35: =Summary!D4 -> 00:00:00 | D35: =Summary!L6 -> 1905-07-17 | E35: ads | F35: u1bnd | G35: u1bnd35 | I35: 7. | J35: Total Deductions (Line 2 plus Line 6) | P35: =O24+O34 -> 0
A36: Utility Debt 1 | B36: =ROW() -> 36 | C36: =Summary!D4 -> 00:00:00 | D36: =Summary!L6 -> 1905-07-17 | E36: ads | F36: u1bnd | G36: u1bnd36 | I36: 8. | J36: Excess in Revenues (Line 1 minus Line 7) | P36: =IF((P23-P35)>0,P23-P35,0) -> 0
A37: Utility Debt 1 | B37: =ROW() -> 37 | C37: =Summary!D4 -> 00:00:00 | D37: =Summary!L6 -> 1905-07-17 | E37: ads | F37: u1bnd | G37: u1bnd37 | I37: 9. | J37: Deficit in Revenues (Line 7 minus Line 1) | P37: =IF((P23-P35)<0,ABS(P23-P35),0) -> 0
A38: Utility Debt 1 | B38: =ROW() -> 38 | C38: =Summary!D4 -> 00:00:00 | D38: =Summary!L6 -> 1905-07-17 | E38: ads | F38: u1bnd | G38: u1bnd38 | I38: 10. | J38: Total Debt Service (Line 6) | P38: =O34 -> 0
A39: Utility Debt 1 | B39: =ROW() -> 39 | C39: =Summary!D4 -> 00:00:00 | D39: =Summary!L6 -> 1905-07-17 | E39: ads | F39: u1bnd | G39: u1bnd39 | I39: 11. | J39: Deficit (smaller of Line 9 or Line 10) | P39: =IF(P37<P38,P37*1,P38*1) -> 0
A40: Utility Debt 1 | B40: =ROW() -> 40 | C40: =Summary!D4 -> 00:00:00 | D40: =Summary!L6 -> 1905-07-17 | E40: ads | F40: u1bnd | G40: u1bnd40 | J40: If Excess in Revenues (Line 8) all Utility Debt is Deductible
A41: Utility Debt 1 | B41: =ROW() -> 41 | C41: =Summary!D4 -> 00:00:00 | D41: =Summary!L6 -> 1905-07-17 | E41: ads | F41: u1bnd | G41: u1bnd41
A42: Utility Debt 1 | B42: =ROW() -> 42 | C42: =Summary!D4 -> 00:00:00 | D42: =Summary!L6 -> 1905-07-17 | E42: ads | F42: u1bnd | G42: u1bnd42 | I42: (a) | J42: Gross | K42: =J4 -> 0 | M42: System Debt | O42: =P18 -> 0
A43: Utility Debt 1 | B43: =ROW() -> 43 | C43: =Summary!D4 -> 00:00:00 | D43: =Summary!L6 -> 1905-07-17 | E43: ads | F43: u1bnd | G43: u1bnd43 | I43: (b) | J43: Less: Deficit (Capitalized at 5%), (Line 9 or line 11)
A44: Utility Debt 1 | B44: =ROW() -> 44 | C44: =Summary!D4 -> 00:00:00 | D44: =Summary!L6 -> 1905-07-17 | E44: ads | F44: u1bnd | G44: u1bnd44 | J44: =P39 -> 0 | M44: times 20 | O44: =J44*20 -> 0
A45: Utility Debt 1 | B45: =ROW() -> 45 | C45: =Summary!D4 -> 00:00:00 | D45: =Summary!L6 -> 1905-07-17 | E45: ads | F45: u1bnd | G45: u1bnd45 | I45: (c) | J45: Deduction | O45: =IF(O44<O42,O42-O44,0) -> 0
A46: Utility Debt 1 | B46: =ROW() -> 46 | C46: =Summary!D4 -> 00:00:00 | D46: =Summary!L6 -> 1905-07-17 | E46: ads | F46: u1bnd | G46: u1bnd46 | I46: (d) | J46: Plus: Cash held to Pay Bonds and Notes included in 2 (a) above
A47: Utility Debt 1 | B47: =ROW() -> 47 | C47: =Summary!D4 -> 00:00:00 | D47: =Summary!L6 -> 1905-07-17 | E47: ads | F47: u1bnd | G47: u1bnd47 | I47: (e) | J47: Total Deduction (Deficit in revenues) | O47: =O45+O46 -> 0
A48: Utility Debt 1 | B48: =ROW() -> 48 | C48: =Summary!D4 -> 00:00:00 | D48: =Summary!L6 -> 1905-07-17 | E48: ads | F48: u1bnd | G48: u1bnd48 | I48: (f) | J48: NonDeductible Combined GO Debt
A49: Utility Debt 1 | B49: =ROW() -> 49 | C49: =Summary!D4 -> 00:00:00 | D49: =Summary!L6 -> 1905-07-17 | E49: ads | F49: u1bnd | G49: =F49&ROW() -> u1bnd49 | J49: Total Allowable Deduction | P49: =IF(P36>0,P18,O47)-O48 -> 0

Sheet Utility Debt 2
A1: =MID(CELL("filename",A1),FIND("]",CELL("filename",A1))+1,256) -> Utility Debt 2 | B1: =ROW() -> 1 | C1: =Summary!D4 -> 00:00:00 | D1: =Summary!L6 -> 1905-07-17 | E1: ads | F1: u2bn | G1: =F1&ROW() -> u2bn1 | J1: BONDS AND NOTES FOR UTILITY FUND
K2: If Utility has no debt, check this box:
A3: =MID(CELL("filename",A3),FIND("]",CELL("filename",A3))+1,256) -> Utility Debt 2 | B3: =ROW() -> 3 | C3: =Summary!D4 -> 00:00:00 | D3: =Summary!L6 -> 1905-07-17 | E3: ads | F3: u4bn | G3: =F3&ROW() -> u4bn3 | I3: II. | M3: Utility
A4: Utility Debt 2 | B4: =ROW() -> 4 | C4: =Summary!D4 -> 00:00:00 | D4: =Summary!L6 -> 1905-07-17 | E4: ads | F4: u2bn | G4: =F4&ROW() -> u2bn4 | I4: 1. | J4: Term bonds | O4: 0
A5: Utility Debt 2 | B5: =ROW() -> 5 | C5: =Summary!D4 -> 00:00:00 | D5: =Summary!L6 -> 1905-07-17 | E5: ads | F5: u2bn | G5: u2bn5 | I5: 2. | J5: Serial bonds
A6: Utility Debt 2 | B6: =ROW() -> 6 | C6: =Summary!D4 -> 00:00:00 | D6: =Summary!L6 -> 1905-07-17 | E6: ads | F6: u2bn | G6: u2bn6 | J6: (a) | K6: Issued | O6: 0
A7: Utility Debt 2 | B7: =ROW() -> 7 | C7: =Summary!D4 -> 00:00:00 | D7: =Summary!L6 -> 1905-07-17 | E7: ads | F7: u2bn | G7: u2bn7 | J7: (b) | K7: Authorized but not issued | O7: 0
A8: Utility Debt 2 | B8: =ROW() -> 8 | C8: =Summary!D4 -> 00:00:00 | D8: =Summary!L6 -> 1905-07-17 | E8: ads | F8: u2bn | G8: u2bn8 | I8: 3 | J8: Bond Anticipation Notes
A9: Utility Debt 2 | B9: =ROW() -> 9 | C9: =Summary!D4 -> 00:00:00 | D9: =Summary!L6 -> 1905-07-17 | E9: ads | F9: u2bn | G9: u2bn9 | J9: (a) | K9: Issued | O9: 0
A10: Utility Debt 2 | B10: =ROW() -> 10 | C10: =Summary!D4 -> 00:00:00 | D10: =Summary!L6 -> 1905-07-17 | E10: ads | F10: u2bn | G10: u2bn10 | J10: (b) | K10: Authorized but not issued | O10: 0
A11: Utility Debt 2 | B11: =ROW() -> 11 | C11: =Summary!D4 -> 00:00:00 | D11: =Summary!L6 -> 1905-07-17 | E11: ads | F11: u2bn | G11: u2bn11 | I11: 4 | J11: Capital Notes (N.J.S.A. 40A:2-8)
A12: Utility Debt 2 | B12: =ROW() -> 12 | C12: =Summary!D4 -> 00:00:00 | D12: =Summary!L6 -> 1905-07-17 | E12: ads | F12: u2bn | G12: u2bn12 | J12: (a) | K12: Issued | O12: 0
A13: Utility Debt 2 | B13: =ROW() -> 13 | C13: =Summary!D4 -> 00:00:00 | D13: =Summary!L6 -> 1905-07-17 | E13: ads | F13: u2bn | G13: u2bn13 | J13: (b) | K13: Authorized but not issued | O13: 0
A14: Utility Debt 2 | B14: =ROW() -> 14 | C14: =Summary!D4 -> 00:00:00 | D14: =Summary!L6 -> 1905-07-17 | E14: ads | F14: u2bn | G14: u2bn14 | I14: 5 | J14: Other
A15: Utility Debt 2 | B15: =ROW() -> 15 | C15: =Summary!D4 -> 00:00:00 | D15: =Summary!L6 -> 1905-07-17 | E15: ads | F15: u2bn | G15: u2bn15 | J15: (a) | K15: Issued | O15: 0
A16: Utility Debt 2 | B16: =ROW() -> 16 | C16: =Summary!D4 -> 00:00:00 | D16: =Summary!L6 -> 1905-07-17 | E16: ads | F16: u2bn | G16: u2bn16 | J16: (b) | K16: Authorized but not issued | O16: 0
A17: Utility Debt 2 | B17: =ROW() -> 17 | C17: =Summary!D4 -> 00:00:00 | D17: =Summary!L6 -> 1905-07-17 | E17: ads | F17: u2bn | G17: u2bn17 | I17: 6 | J17: Total | P17: =SUM(O4:O16) -> 0
A18: Utility Debt 2 | B18: =ROW() -> 18 | C18: =Summary!D4 -> 00:00:00 | D18: =Summary!L6 -> 1905-07-17 | E18: ads | F18: u2bn | G18: u2bn18
A19: Utility Debt 2 | B19: =ROW() -> 19 | C19: =Summary!D4 -> 00:00:00 | D19: =Summary!L6 -> 1905-07-17 | E19: ads | F19: u2bnd | G19: u2bnd19
A20: Utility Debt 2 | B20: =ROW() -> 20 | C20: =Summary!D4 -> 00:00:00 | D20: =Summary!L6 -> 1905-07-17 | E20: ads | F20: u2bnd | G20: u2bnd20 | J20: DEDUCTIONS APPLICABLE TO BONDS AND NOTES FOR SELF-LIQUIDATING PURPOSES
A21: Utility Debt 2 | B21: =ROW() -> 21 | C21: =Summary!D4 -> 00:00:00 | D21: =Summary!L6 -> 1905-07-17 | E21: ads | F21: u2bnd | G21: u2bnd21 | J21: Self-Liquidating Utility Calculation
A22: Utility Debt 2 | B22: =ROW() -> 22 | C22: =Summary!D4 -> 00:00:00 | D22: =Summary!L6 -> 1905-07-17 | E22: ads | F22: u2bnd | G22: u2bnd22 | I22: 1. | J22: Total Cash Receipts from Fees, Rents or Other Charges for Year | P22: 0
A23: Utility Debt 2 | B23: =ROW() -> 23 | C23: =Summary!D4 -> 00:00:00 | D23: =Summary!L6 -> 1905-07-17 | E23: ads | F23: u2bnd | G23: u2bnd23 | I23: 2. | J23: Operating and Maintenance Cost | O23: 0
A24: Utility Debt 2 | B24: =ROW() -> 24 | C24: =Summary!D4 -> 00:00:00 | D24: =Summary!L6 -> 1905-07-17 | E24: ads | F24: u2bnd | G24: u2bnd24 | I24: 3. | J24: Debt Service
A25: Utility Debt 2 | B25: =ROW() -> 25 | C25: =Summary!D4 -> 00:00:00 | D25: =Summary!L6 -> 1905-07-17 | E25: ads | F25: u2bnd | G25: u2bnd25 | K25: (a) | L25: Interest | N25: 0
A26: Utility Debt 2 | B26: =ROW() -> 26 | C26: =Summary!D4 -> 00:00:00 | D26: =Summary!L6 -> 1905-07-17 | E26: ads | F26: u2bnd | G26: u2bnd26 | K26: (b) | L26: Notes | N26: 0
A27: Utility Debt 2 | B27: =ROW() -> 27 | C27: =Summary!D4 -> 00:00:00 | D27: =Summary!L6 -> 1905-07-17 | E27: ads | F27: u2bnd | G27: u2bnd27 | K27: (c) | L27: Serial Bonds | N27: 0
A28: Utility Debt 2 | B28: =ROW() -> 28 | C28: =Summary!D4 -> 00:00:00 | D28: =Summary!L6 -> 1905-07-17 | E28: ads | F28: u2bnd | G28: u2bnd28 | K28: (d) | L28: Sinking Fund Requirements | N28: 0
A29: Utility Debt 2 | B29: =ROW() -> 29 | C29: =Summary!D4 -> 00:00:00 | D29: =Summary!L6 -> 1905-07-17 | E29: ads | F29: u2bnd | G29: u2bnd29 | I29: 4. | J29: Debt Service per Current Budget (N.J.S.A. 40A:2-52)
A30: Utility Debt 2 | B30: =ROW() -> 30 | C30: =Summary!D4 -> 00:00:00 | D30: =Summary!L6 -> 1905-07-17 | E30: ads | F30: u2bnd | G30: u2bnd30 | K30: (a) | L30: Interest on Refunding Bonds | N30: 0
A31: Utility Debt 2 | B31: =ROW() -> 31 | C31: =Summary!D4 -> 00:00:00 | D31: =Summary!L6 -> 1905-07-17 | E31: ads | F31: u2bnd | G31: u2bnd31 | K31: (b) | L31: Refunding Bonds | N31: 0
A32: Utility Debt 2 | B32: =ROW() -> 32 | C32: =Summary!D4 -> 00:00:00 | D32: =Summary!L6 -> 1905-07-17 | E32: ads | F32: u2bnd | G32: u2bnd32 | I32: 5. | J32: Anticipated Deficit in Dedicated Assessment Budget | N32: 0
A33: Utility Debt 2 | B33: =ROW() -> 33 | C33: =Summary!D4 -> 00:00:00 | D33: =Summary!L6 -> 1905-07-17 | E33: ads | F33: u2bnd | G33: u2bnd33 | I33: 6. | J33: Total Debt Service | O33: =SUM(N25:N32) -> 0
A34: Utility Debt 2 | B34: =ROW() -> 34 | C34: =Summary!D4 -> 00:00:00 | D34: =Summary!L6 -> 1905-07-17 | E34: ads | F34: u2bnd | G34: u2bnd34 | I34: 7. | J34: Total Deductions (Line 2 plus Line 6) | P34: =O23+O33 -> 0
A35: Utility Debt 2 | B35: =ROW() -> 35 | C35: =Summary!D4 -> 00:00:00 | D35: =Summary!L6 -> 1905-07-17 | E35: ads | F35: u2bnd | G35: u2bnd35 | I35: 8. | J35: Excess in Revenues (Line 1 minus Line 7) | P35: =IF((P22-P34)>0,P22-P34,0) -> 0
A36: Utility Debt 2 | B36: =ROW() -> 36 | C36: =Summary!D4 -> 00:00:00 | D36: =Summary!L6 -> 1905-07-17 | E36: ads | F36: u2bnd | G36: u2bnd36 | I36: 9. | J36: Deficit in Revenues (Line 7 minus Line 1) | P36: =IF((P22-P34)<0,ABS(P22-P34),0) -> 0
A37: Utility Debt 2 | B37: =ROW() -> 37 | C37: =Summary!D4 -> 00:00:00 | D37: =Summary!L6 -> 1905-07-17 | E37: ads | F37: u2bnd | G37: u2bnd37 | I37: 10. | J37: Total Debt Service (Line 6) | P37: =O33 -> 0
A38: Utility Debt 2 | B38: =ROW() -> 38 | C38: =Summary!D4 -> 00:00:00 | D38: =Summary!L6 -> 1905-07-17 | E38: ads | F38: u2bnd | G38: u2bnd38 | I38: 11. | J38: Deficit (smaller of Line 9 or Line 10) | P38: =IF(P36<P37,P36*1,P37*1) -> 0
A39: Utility Debt 2 | B39: =ROW() -> 39 | C39: =Summary!D4 -> 00:00:00 | D39: =Summary!L6 -> 1905-07-17 | E39: ads | F39: u2bnd | G39: u2bnd39 | J39: If Excess in Revenues (Line 8) all Utility Debt is Deductible
A40: Utility Debt 2 | B40: =ROW() -> 40 | C40: =Summary!D4 -> 00:00:00 | D40: =Summary!L6 -> 1905-07-17 | E40: ads | F40: u2bnd | G40: u2bnd40
A41: Utility Debt 2 | B41: =ROW() -> 41 | C41: =Summary!D4 -> 00:00:00 | D41: =Summary!L6 -> 1905-07-17 | E41: ads | F41: u2bnd | G41: u2bnd41 | I41: (a) | J41: Gross | K41: =J3 -> 0 | M41: System Debt | O41: =P17 -> 0
A42: Utility Debt 2 | B42: =ROW() -> 42 | C42: =Summary!D4 -> 00:00:00 | D42: =Summary!L6 -> 1905-07-17 | E42: ads | F42: u2bnd | G42: u2bnd42 | I42: (b) | J42: Less: Deficit (Capitalized at 5%), (Line 9 or line 11)
A43: Utility Debt 2 | B43: =ROW() -> 43 | C43: =Summary!D4 -> 00:00:00 | D43: =Summary!L6 -> 1905-07-17 | E43: ads | F43: u2bnd | G43: u2bnd43 | J43: =P38 -> 0 | M43: times 20 | O43: =J43*20 -> 0
A44: Utility Debt 2 | B44: =ROW() -> 44 | C44: =Summary!D4 -> 00:00:00 | D44: =Summary!L6 -> 1905-07-17 | E44: ads | F44: u2bnd | G44: u2bnd44 | I44: (c) | J44: Deduction | O44: =IF(O43<O41,O41-O43,0) -> 0
A45: Utility Debt 2 | B45: =ROW() -> 45 | C45: =Summary!D4 -> 00:00:00 | D45: =Summary!L6 -> 1905-07-17 | E45: ads | F45: u2bnd | G45: u2bnd45 | I45: (d) | J45: Plus: Cash held to Pay Bonds and Notes included in 2 (a) above
A46: Utility Debt 2 | B46: =ROW() -> 46 | C46: =Summary!D4 -> 00:00:00 | D46: =Summary!L6 -> 1905-07-17 | E46: ads | F46: u2bnd | G46: u2bnd46 | I46: (e) | J46: Total Deduction (Deficit in revenues) | O46: =O44+O45 -> 0
A47: Utility Debt 2 | B47: =ROW() -> 47 | C47: =Summary!D4 -> 00:00:00 | D47: =Summary!L6 -> 1905-07-17 | E47: ads | F47: u2bnd | G47: u2bnd47 | I47: (f) | J47: NonDeductible Combined GO Debt
A48: Utility Debt 2 | B48: =ROW() -> 48 | C48: =Summary!D4 -> 00:00:00 | D48: =Summary!L6 -> 1905-07-17 | E48: ads | F48: u2bnd | G48: =F48&ROW() -> u2bnd48 | J48: Total Allowable Deduction | P48: =IF(P35>0,P17,O46)-O47 -> 0

Sheet Utility Debt 3
A1: =MID(CELL("filename",A1),FIND("]",CELL("filename",A1))+1,256) -> Utility Debt 3 | B1: =ROW() -> 1 | C1: =Summary!D4 -> 00:00:00 | D1: =Summary!L6 -> 1905-07-17 | E1: ads | F1: u3bn | G1: =F1&ROW() -> u3bn1 | J1: BONDS AND NOTES FOR UTILITY FUND
K2: If Utility has no debt, check this box:
A3: =MID(CELL("filename",A3),FIND("]",CELL("filename",A3))+1,256) -> Utility Debt 3 | B3: =ROW() -> 3 | C3: =Summary!D4 -> 00:00:00 | D3: =Summary!L6 -> 1905-07-17 | E3: ads | F3: u4bn | G3: =F3&ROW() -> u4bn3 | I3: III. | M3: Utility
A4: Utility Debt 3 | B4: =ROW() -> 4 | C4: =Summary!D4 -> 00:00:00 | D4: =Summary!L6 -> 1905-07-17 | E4: ads | F4: u3bn | G4: =F4&ROW() -> u3bn4 | I4: 1. | J4: Term bonds | O4: 0
A5: Utility Debt 3 | B5: =ROW() -> 5 | C5: =Summary!D4 -> 00:00:00 | D5: =Summary!L6 -> 1905-07-17 | E5: ads | F5: u3bn | G5: u3bn5 | I5: 2. | J5: Serial bonds
A6: Utility Debt 3 | B6: =ROW() -> 6 | C6: =Summary!D4 -> 00:00:00 | D6: =Summary!L6 -> 1905-07-17 | E6: ads | F6: u3bn | G6: u3bn6 | J6: (a) | K6: Issued | O6: 0
A7: Utility Debt 3 | B7: =ROW() -> 7 | C7: =Summary!D4 -> 00:00:00 | D7: =Summary!L6 -> 1905-07-17 | E7: ads | F7: u3bn | G7: u3bn7 | J7: (b) | K7: Authorized but not issued | O7: 0
A8: Utility Debt 3 | B8: =ROW() -> 8 | C8: =Summary!D4 -> 00:00:00 | D8: =Summary!L6 -> 1905-07-17 | E8: ads | F8: u3bn | G8: u3bn8 | I8: 3 | J8: Bond Anticipation Notes
A9: Utility Debt 3 | B9: =ROW() -> 9 | C9: =Summary!D4 -> 00:00:00 | D9: =Summary!L6 -> 1905-07-17 | E9: ads | F9: u3bn | G9: u3bn9 | J9: (a) | K9: Issued | O9: 0
A10: Utility Debt 3 | B10: =ROW() -> 10 | C10: =Summary!D4 -> 00:00:00 | D10: =Summary!L6 -> 1905-07-17 | E10: ads | F10: u3bn | G10: u3bn10 | J10: (b) | K10: Authorized but not issued | O10: 0
A11: Utility Debt 3 | B11: =ROW() -> 11 | C11: =Summary!D4 -> 00:00:00 | D11: =Summary!L6 -> 1905-07-17 | E11: ads | F11: u3bn | G11: u3bn11 | I11: 4 | J11: Capital Notes (N.J.S.A. 40A:2-8)
A12: Utility Debt 3 | B12: =ROW() -> 12 | C12: =Summary!D4 -> 00:00:00 | D12: =Summary!L6 -> 1905-07-17 | E12: ads | F12: u3bn | G12: u3bn12 | J12: (a) | K12: Issued | O12: 0
A13: Utility Debt 3 | B13: =ROW() -> 13 | C13: =Summary!D4 -> 00:00:00 | D13: =Summary!L6 -> 1905-07-17 | E13: ads | F13: u3bn | G13: u3bn13 | J13: (b) | K13: Authorized but not issued | O13: 0
A14: Utility Debt 3 | B14: =ROW() -> 14 | C14: =Summary!D4 -> 00:00:00 | D14: =Summary!L6 -> 1905-07-17 | E14: ads | F14: u3bn | G14: u3bn14 | I14: 5 | J14: Other
A15: Utility Debt 3 | B15: =ROW() -> 15 | C15: =Summary!D4 -> 00:00:00 | D15: =Summary!L6 -> 1905-07-17 | E15: ads | F15: u3bn | G15: u3bn15 | J15: (a) | K15: Issued | O15: 0
A16: Utility Debt 3 | B16: =ROW() -> 16 | C16: =Summary!D4 -> 00:00:00 | D16: =Summary!L6 -> 1905-07-17 | E16: ads | F16: u3bn | G16: u3bn16 | J16: (b) | K16: Authorized but not issued | O16: 0
A17: Utility Debt 3 | B17: =ROW() -> 17 | C17: =Summary!D4 -> 00:00:00 | D17: =Summary!L6 -> 1905-07-17 | E17: ads | F17: u3bn | G17: u3bn17 | I17: 6 | J17: Total | P17: =SUM(O4:O16) -> 0
A18: Utility Debt 3 | B18: =ROW() -> 18 | C18: =Summary!D4 -> 00:00:00 | D18: =Summary!L6 -> 1905-07-17 | E18: ads | F18: u3bn | G18: u3bn18
A19: Utility Debt 3 | B19: =ROW() -> 19 | C19: =Summary!D4 -> 00:00:00 | D19: =Summary!L6 -> 1905-07-17 | E19: ads | F19: u3bnd | G19: u3bnd19
A20: Utility Debt 3 | B20: =ROW() -> 20 | C20: =Summary!D4 -> 00:00:00 | D20: =Summary!L6 -> 1905-07-17 | E20: ads | F20: u3bnd | G20: u3bnd20 | J20: DEDUCTIONS APPLICABLE TO BONDS AND NOTES FOR SELF-LIQUIDATING PURPOSES
A21: Utility Debt 3 | B21: =ROW() -> 21 | C21: =Summary!D4 -> 00:00:00 | D21: =Summary!L6 -> 1905-07-17 | E21: ads | F21: u3bnd | G21: u3bnd21 | J21: Self-Liquidating Utility Calculation
A22: Utility Debt 3 | B22: =ROW() -> 22 | C22: =Summary!D4 -> 00:00:00 | D22: =Summary!L6 -> 1905-07-17 | E22: ads | F22: u3bnd | G22: u3bnd22 | I22: 1. | J22: Total Cash Receipts from Fees, Rents or Other Charges for Year | P22: 0
A23: Utility Debt 3 | B23: =ROW() -> 23 | C23: =Summary!D4 -> 00:00:00 | D23: =Summary!L6 -> 1905-07-17 | E23: ads | F23: u3bnd | G23: u3bnd23 | I23: 2. | J23: Operating and Maintenance Cost | O23: 0
A24: Utility Debt 3 | B24: =ROW() -> 24 | C24: =Summary!D4 -> 00:00:00 | D24: =Summary!L6 -> 1905-07-17 | E24: ads | F24: u3bnd | G24: u3bnd24 | I24: 3. | J24: Debt Service
A25: Utility Debt 3 | B25: =ROW() -> 25 | C25: =Summary!D4 -> 00:00:00 | D25: =Summary!L6 -> 1905-07-17 | E25: ads | F25: u3bnd | G25: u3bnd25 | K25: (a) | L25: Interest | N25: 0
A26: Utility Debt 3 | B26: =ROW() -> 26 | C26: =Summary!D4 -> 00:00:00 | D26: =Summary!L6 -> 1905-07-17 | E26: ads | F26: u3bnd | G26: u3bnd26 | K26: (b) | L26: Notes | N26: 0
A27: Utility Debt 3 | B27: =ROW() -> 27 | C27: =Summary!D4 -> 00:00:00 | D27: =Summary!L6 -> 1905-07-17 | E27: ads | F27: u3bnd | G27: u3bnd27 | K27: (c) | L27: Serial Bonds | N27: 0
A28: Utility Debt 3 | B28: =ROW() -> 28 | C28: =Summary!D4 -> 00:00:00 | D28: =Summary!L6 -> 1905-07-17 | E28: ads | F28: u3bnd | G28: u3bnd28 | K28: (d) | L28: Sinking Fund Requirements | N28: 0
A29: Utility Debt 3 | B29: =ROW() -> 29 | C29: =Summary!D4 -> 00:00:00 | D29: =Summary!L6 -> 1905-07-17 | E29: ads | F29: u3bnd | G29: u3bnd29 | I29: 4. | J29: Debt Service per Current Budget (N.J.S.A. 40A:2-52)
A30: Utility Debt 3 | B30: =ROW() -> 30 | C30: =Summary!D4 -> 00:00:00 | D30: =Summary!L6 -> 1905-07-17 | E30: ads | F30: u3bnd | G30: u3bnd30 | K30: (a) | L30: Interest on Refunding Bonds | N30: 0
A31: Utility Debt 3 | B31: =ROW() -> 31 | C31: =Summary!D4 -> 00:00:00 | D31: =Summary!L6 -> 1905-07-17 | E31: ads | F31: u3bnd | G31: u3bnd31 | K31: (b) | L31: Refunding Bonds | N31: 0
A32: Utility Debt 3 | B32: =ROW() -> 32 | C32: =Summary!D4 -> 00:00:00 | D32: =Summary!L6 -> 1905-07-17 | E32: ads | F32: u3bnd | G32: u3bnd32 | I32: 5. | J32: Anticipated Deficit in Dedicated Assessment Budget | N32: 0
A33: Utility Debt 3 | B33: =ROW() -> 33 | C33: =Summary!D4 -> 00:00:00 | D33: =Summary!L6 -> 1905-07-17 | E33: ads | F33: u3bnd | G33: u3bnd33 | I33: 6. | J33: Total Debt Service | O33: =SUM(N25:N32) -> 0
A34: Utility Debt 3 | B34: =ROW() -> 34 | C34: =Summary!D4 -> 00:00:00 | D34: =Summary!L6 -> 1905-07-17 | E34: ads | F34: u3bnd | G34: u3bnd34 | I34: 7. | J34: Total Deductions (Line 2 plus Line 6) | P34: =O23+O33 -> 0
A35: Utility Debt 3 | B35: =ROW() -> 35 | C35: =Summary!D4 -> 00:00:00 | D35: =Summary!L6 -> 1905-07-17 | E35: ads | F35: u3bnd | G35: u3bnd35 | I35: 8. | J35: Excess in Revenues (Line 1 minus Line 7) | P35: =IF((P22-P34)>0,P22-P34,0) -> 0
A36: Utility Debt 3 | B36: =ROW() -> 36 | C36: =Summary!D4 -> 00:00:00 | D36: =Summary!L6 -> 1905-07-17 | E36: ads | F36: u3bnd | G36: u3bnd36 | I36: 9. | J36: Deficit in Revenues (Line 7 minus Line 1) | P36: =IF((P22-P34)<0,ABS(P22-P34),0) -> 0
A37: Utility Debt 3 | B37: =ROW() -> 37 | C37: =Summary!D4 -> 00:00:00 | D37: =Summary!L6 -> 1905-07-17 | E37: ads | F37: u3bnd | G37: u3bnd37 | I37: 10. | J37: Total Debt Service (Line 6) | P37: =O33 -> 0
A38: Utility Debt 3 | B38: =ROW() -> 38 | C38: =Summary!D4 -> 00:00:00 | D38: =Summary!L6 -> 1905-07-17 | E38: ads | F38: u3bnd | G38: u3bnd38 | I38: 11. | J38: Deficit (smaller of Line 9 or Line 10) | P38: =IF(P36<P37,P36*1,P37*1) -> 0
A39: Utility Debt 3 | B39: =ROW() -> 39 | C39: =Summary!D4 -> 00:00:00 | D39: =Summary!L6 -> 1905-07-17 | E39: ads | F39: u3bnd | G39: u3bnd39 | J39: If Excess in Revenues (Line 8) all Utility Debt is Deductible
A40: Utility Debt 3 | B40: =ROW() -> 40 | C40: =Summary!D4 -> 00:00:00 | D40: =Summary!L6 -> 1905-07-17 | E40: ads | F40: u3bnd | G40: u3bnd40
A41: Utility Debt 3 | B41: =ROW() -> 41 | C41: =Summary!D4 -> 00:00:00 | D41: =Summary!L6 -> 1905-07-17 | E41: ads | F41: u3bnd | G41: u3bnd41 | I41: (a) | J41: Gross | K41: =J3 -> 0 | M41: System Debt | O41: =P17 -> 0
A42: Utility Debt 3 | B42: =ROW() -> 42 | C42: =Summary!D4 -> 00:00:00 | D42: =Summary!L6 -> 1905-07-17 | E42: ads | F42: u3bnd | G42: u3bnd42 | I42: (b) | J42: Less: Deficit (Capitalized at 5%), (Line 9 or line 11)
A43: Utility Debt 3 | B43: =ROW() -> 43 | C43: =Summary!D4 -> 00:00:00 | D43: =Summary!L6 -> 1905-07-17 | E43: ads | F43: u3bnd | G43: u3bnd43 | J43: =P38 -> 0 | M43: times 20 | O43: =J43*20 -> 0
A44: Utility Debt 3 | B44: =ROW() -> 44 | C44: =Summary!D4 -> 00:00:00 | D44: =Summary!L6 -> 1905-07-17 | E44: ads | F44: u3bnd | G44: u3bnd44 | I44: (c) | J44: Deduction | O44: =IF(O43<O41,O41-O43,0) -> 0
A45: Utility Debt 3 | B45: =ROW() -> 45 | C45: =Summary!D4 -> 00:00:00 | D45: =Summary!L6 -> 1905-07-17 | E45: ads | F45: u3bnd | G45: u3bnd45 | I45: (d) | J45: Plus: Cash held to Pay Bonds and Notes included in 2 (a) above
A46: Utility Debt 3 | B46: =ROW() -> 46 | C46: =Summary!D4 -> 00:00:00 | D46: =Summary!L6 -> 1905-07-17 | E46: ads | F46: u3bnd | G46: u3bnd46 | I46: (e) | J46: Total Deduction (Deficit in revenues) | O46: =O44+O45 -> 0
A47: Utility Debt 3 | B47: =ROW() -> 47 | C47: =Summary!D4 -> 00:00:00 | D47: =Summary!L6 -> 1905-07-17 | E47: ads | F47: u3bnd | G47: u3bnd47 | I47: (f) | J47: NonDeductible Combined GO Debt
A48: Utility Debt 3 | B48: =ROW() -> 48 | C48: =Summary!D4 -> 00:00:00 | D48: =Summary!L6 -> 1905-07-17 | E48: ads | F48: u3bnd | G48: =F48&ROW() -> u3bnd48 | J48: Total Allowable Deduction | P48: =IF(P35>0,P17,O46)-O47 -> 0

Sheet Utility Debt 4
A1: =MID(CELL("filename",A1),FIND("]",CELL("filename",A1))+1,256) -> Utility Debt 4 | B1: =ROW() -> 1 | C1: =Summary!D4 -> 00:00:00 | D1: =Summary!L6 -> 1905-07-17 | E1: ads | F1: u4bn | G1: =F1&ROW() -> u4bn1 | J1: BONDS AND NOTES FOR UTILITY FUND
K2: If Utility has no debt, check this box:
A3: Utility Debt 4 | B3: =ROW() -> 3 | C3: =Summary!D4 -> 00:00:00 | D3: =Summary!L6 -> 1905-07-17 | E3: ads | F3: u4bn | G3: =F3&ROW() -> u4bn3 | I3: IV. | M3: Utility
A4: Utility Debt 4 | B4: =ROW() -> 4 | C4: =Summary!D4 -> 00:00:00 | D4: =Summary!L6 -> 1905-07-17 | E4: ads | F4: u4bn | G4: u4bn4 | I4: 1. | J4: Term bonds | O4: 0
A5: Utility Debt 4 | B5: =ROW() -> 5 | C5: =Summary!D4 -> 00:00:00 | D5: =Summary!L6 -> 1905-07-17 | E5: ads | F5: u4bn | G5: u4bn5 | I5: 2. | J5: Serial bonds
A6: Utility Debt 4 | B6: =ROW() -> 6 | C6: =Summary!D4 -> 00:00:00 | D6: =Summary!L6 -> 1905-07-17 | E6: ads | F6: u4bn | G6: u4bn6 | J6: (a) | K6: Issued | O6: 0
A7: Utility Debt 4 | B7: =ROW() -> 7 | C7: =Summary!D4 -> 00:00:00 | D7: =Summary!L6 -> 1905-07-17 | E7: ads | F7: u4bn | G7: u4bn7 | J7: (b) | K7: Authorized but not issued | O7: 0
A8: Utility Debt 4 | B8: =ROW() -> 8 | C8: =Summary!D4 -> 00:00:00 | D8: =Summary!L6 -> 1905-07-17 | E8: ads | F8: u4bn | G8: u4bn8 | I8: 3 | J8: Bond Anticipation Notes
A9: Utility Debt 4 | B9: =ROW() -> 9 | C9: =Summary!D4 -> 00:00:00 | D9: =Summary!L6 -> 1905-07-17 | E9: ads | F9: u4bn | G9: u4bn9 | J9: (a) | K9: Issued | O9: 0
A10: Utility Debt 4 | B10: =ROW() -> 10 | C10: =Summary!D4 -> 00:00:00 | D10: =Summary!L6 -> 1905-07-17 | E10: ads | F10: u4bn | G10: u4bn10 | J10: (b) | K10: Authorized but not issued | O10: 0
A11: Utility Debt 4 | B11: =ROW() -> 11 | C11: =Summary!D4 -> 00:00:00 | D11: =Summary!L6 -> 1905-07-17 | E11: ads | F11: u4bn | G11: u4bn11 | I11: 4 | J11: Capital Notes (N.J.S.A. 40A:2-8)
A12: Utility Debt 4 | B12: =ROW() -> 12 | C12: =Summary!D4 -> 00:00:00 | D12: =Summary!L6 -> 1905-07-17 | E12: ads | F12: u4bn | G12: u4bn12 | J12: (a) | K12: Issued | O12: 0
A13: Utility Debt 4 | B13: =ROW() -> 13 | C13: =Summary!D4 -> 00:00:00 | D13: =Summary!L6 -> 1905-07-17 | E13: ads | F13: u4bn | G13: u4bn13 | J13: (b) | K13: Authorized but not issued | O13: 0
A14: Utility Debt 4 | B14: =ROW() -> 14 | C14: =Summary!D4 -> 00:00:00 | D14: =Summary!L6 -> 1905-07-17 | E14: ads | F14: u4bn | G14: u4bn14 | I14: 5 | J14: Other
A15: Utility Debt 4 | B15: =ROW() -> 15 | C15: =Summary!D4 -> 00:00:00 | D15: =Summary!L6 -> 1905-07-17 | E15: ads | F15: u4bn | G15: u4bn15 | J15: (a) | K15: Issued | O15: 0
A16: Utility Debt 4 | B16: =ROW() -> 16 | C16: =Summary!D4 -> 00:00:00 | D16: =Summary!L6 -> 1905-07-17 | E16: ads | F16: u4bn | G16: u4bn16 | J16: (b) | K16: Authorized but not issued | O16: 0
A17: Utility Debt 4 | B17: =ROW() -> 17 | C17: =Summary!D4 -> 00:00:00 | D17: =Summary!L6 -> 1905-07-17 | E17: ads | F17: u4bn | G17: u4bn17 | I17: 6 | J17: Total | P17: =SUM(O4:O16) -> 0
A18: Utility Debt 4 | B18: =ROW() -> 18 | C18: =Summary!D4 -> 00:00:00 | D18: =Summary!L6 -> 1905-07-17 | E18: ads | F18: u4bn | G18: u4bn18
A19: Utility Debt 4 | B19: =ROW() -> 19 | C19: =Summary!D4 -> 00:00:00 | D19: =Summary!L6 -> 1905-07-17 | E19: ads | F19: u4bn | G19: u4bn19
A20: Utility Debt 4 | B20: =ROW() -> 20 | C20: =Summary!D4 -> 00:00:00 | D20: =Summary!L6 -> 1905-07-17 | E20: ads | F20: u4bn | G20: u4bn20 | J20: DEDUCTIONS APPLICABLE TO BONDS AND NOTES FOR SELF-LIQUIDATING PURPOSES
A21: Utility Debt 4 | B21: =ROW() -> 21 | C21: =Summary!D4 -> 00:00:00 | D21: =Summary!L6 -> 1905-07-17 | E21: ads | F21: u4bn | G21: u4bn21 | J21: Self-Liquidating Utility Calculation
A22: Utility Debt 4 | B22: =ROW() -> 22 | C22: =Summary!D4 -> 00:00:00 | D22: =Summary!L6 -> 1905-07-17 | E22: ads | F22: u4bn | G22: u4bn22 | I22: 1. | J22: Total Cash Receipts from Fees, Rents or Other Charges for Year | P22: 0
A23: Utility Debt 4 | B23: =ROW() -> 23 | C23: =Summary!D4 -> 00:00:00 | D23: =Summary!L6 -> 1905-07-17 | E23: ads | F23: u4bn | G23: u4bn23 | I23: 2. | J23: Operating and Maintenance Cost | O23: 0
A24: Utility Debt 4 | B24: =ROW() -> 24 | C24: =Summary!D4 -> 00:00:00 | D24: =Summary!L6 -> 1905-07-17 | E24: ads | F24: u4bn | G24: u4bn24 | I24: 3. | J24: Debt Service
A25: Utility Debt 4 | B25: =ROW() -> 25 | C25: =Summary!D4 -> 00:00:00 | D25: =Summary!L6 -> 1905-07-17 | E25: ads | F25: u4bn | G25: u4bn25 | K25: (a) | L25: Interest | N25: 0
A26: Utility Debt 4 | B26: =ROW() -> 26 | C26: =Summary!D4 -> 00:00:00 | D26: =Summary!L6 -> 1905-07-17 | E26: ads | F26: u4bn | G26: u4bn26 | K26: (b) | L26: Notes | N26: 0
A27: Utility Debt 4 | B27: =ROW() -> 27 | C27: =Summary!D4 -> 00:00:00 | D27: =Summary!L6 -> 1905-07-17 | E27: ads | F27: u4bn | G27: u4bn27 | K27: (c) | L27: Serial Bonds | N27: 0
A28: Utility Debt 4 | B28: =ROW() -> 28 | C28: =Summary!D4 -> 00:00:00 | D28: =Summary!L6 -> 1905-07-17 | E28: ads | F28: u4bn | G28: u4bn28 | K28: (d) | L28: Sinking Fund Requirements | N28: 0
A29: Utility Debt 4 | B29: =ROW() -> 29 | C29: =Summary!D4 -> 00:00:00 | D29: =Summary!L6 -> 1905-07-17 | E29: ads | F29: u4bn | G29: u4bn29 | I29: 4. | J29: Debt Service per Current Budget (N.J.S.A. 40A:2-52)
A30: Utility Debt 4 | B30: =ROW() -> 30 | C30: =Summary!D4 -> 00:00:00 | D30: =Summary!L6 -> 1905-07-17 | E30: ads | F30: u4bn | G30: u4bn30 | K30: (a) | L30: Interest on Refunding Bonds | N30: 0
A31: Utility Debt 4 | B31: =ROW() -> 31 | C31: =Summary!D4 -> 00:00:00 | D31: =Summary!L6 -> 1905-07-17 | E31: ads | F31: u4bn | G31: u4bn31 | K31: (b) | L31: Refunding Bonds | N31: 0
A32: Utility Debt 4 | B32: =ROW() -> 32 | C32: =Summary!D4 -> 00:00:00 | D32: =Summary!L6 -> 1905-07-17 | E32: ads | F32: u4bn | G32: u4bn32 | I32: 5. | J32: Anticipated Deficit in Dedicated Assessment Budget | N32: 0
A33: Utility Debt 4 | B33: =ROW() -> 33 | C33: =Summary!D4 -> 00:00:00 | D33: =Summary!L6 -> 1905-07-17 | E33: ads | F33: u4bn | G33: u4bn33 | I33: 6. | J33: Total Debt Service | O33: =SUM(N25:N32) -> 0
A34: Utility Debt 4 | B34: =ROW() -> 34 | C34: =Summary!D4 -> 00:00:00 | D34: =Summary!L6 -> 1905-07-17 | E34: ads | F34: u4bn | G34: u4bn34 | I34: 7. | J34: Total Deductions (Line 2 plus Line 6) | P34: =O23+O33 -> 0
A35: Utility Debt 4 | B35: =ROW() -> 35 | C35: =Summary!D4 -> 00:00:00 | D35: =Summary!L6 -> 1905-07-17 | E35: ads | F35: u4bn | G35: u4bn35 | I35: 8. | J35: Excess in Revenues (Line 1 minus Line 7) | P35: =IF((P22-P34)>0,P22-P34,0) -> 0
A36: Utility Debt 4 | B36: =ROW() -> 36 | C36: =Summary!D4 -> 00:00:00 | D36: =Summary!L6 -> 1905-07-17 | E36: ads | F36: u4bn | G36: u4bn36 | I36: 9. | J36: Deficit in Revenues (Line 7 minus Line 1) | P36: =IF((P22-P34)<0,ABS(P22-P34),0) -> 0
A37: Utility Debt 4 | B37: =ROW() -> 37 | C37: =Summary!D4 -> 00:00:00 | D37: =Summary!L6 -> 1905-07-17 | E37: ads | F37: u4bn | G37: u4bn37 | I37: 10. | J37: Total Debt Service (Line 6) | P37: =O33 -> 0
A38: Utility Debt 4 | B38: =ROW() -> 38 | C38: =Summary!D4 -> 00:00:00 | D38: =Summary!L6 -> 1905-07-17 | E38: ads | F38: u4bn | G38: u4bn38 | I38: 11. | J38: Deficit (smaller of Line 9 or Line 10) | P38: =IF(P36<P37,P36*1,P37*1) -> 0
A39: Utility Debt 4 | B39: =ROW() -> 39 | C39: =Summary!D4 -> 00:00:00 | D39: =Summary!L6 -> 1905-07-17 | E39: ads | F39: u4bn | G39: u4bn39 | J39: If Excess in Revenues (Line 8) all Utility Debt is Deductible
A40: Utility Debt 4 | B40: =ROW() -> 40 | C40: =Summary!D4 -> 00:00:00 | D40: =Summary!L6 -> 1905-07-17 | E40: ads | F40: u4bn | G40: u4bn40
A41: Utility Debt 4 | B41: =ROW() -> 41 | C41: =Summary!D4 -> 00:00:00 | D41: =Summary!L6 -> 1905-07-17 | E41: ads | F41: u4bn | G41: u4bn41 | I41: (a) | J41: Gross | K41: =J3 -> 0 | M41: System Debt | O41: =P17 -> 0
A42: Utility Debt 4 | B42: =ROW() -> 42 | C42: =Summary!D4 -> 00:00:00 | D42: =Summary!L6 -> 1905-07-17 | E42: ads | F42: u4bn | G42: u4bn42 | I42: (b) | J42: Less: Deficit (Capitalized at 5%), (Line 9 or line 11)
A43: Utility Debt 4 | B43: =ROW() -> 43 | C43: =Summary!D4 -> 00:00:00 | D43: =Summary!L6 -> 1905-07-17 | E43: ads | F43: u4bn | G43: u4bn43 | J43: =P38 -> 0 | M43: times 20 | O43: =J43*20 -> 0
A44: Utility Debt 4 | B44: =ROW() -> 44 | C44: =Summary!D4 -> 00:00:00 | D44: =Summary!L6 -> 1905-07-17 | E44: ads | F44: u4bn | G44: u4bn44 | I44: (c) | J44: Deduction | O44: =IF(O43<O41,O41-O43,0) -> 0
A45: Utility Debt 4 | B45: =ROW() -> 45 | C45: =Summary!D4 -> 00:00:00 | D45: =Summary!L6 -> 1905-07-17 | E45: ads | F45: u4bn | G45: u4bn45 | I45: (d) | J45: Plus: Cash held to Pay Bonds and Notes included in 2 (a) above
A46: Utility Debt 4 | B46: =ROW() -> 46 | C46: =Summary!D4 -> 00:00:00 | D46: =Summary!L6 -> 1905-07-17 | E46: ads | F46: u4bn | G46: u4bn46 | I46: (e) | J46: Total Deduction (Deficit in revenues) | O46: =O44+O45 -> 0
A47: Utility Debt 4 | B47: =ROW() -> 47 | C47: =Summary!D4 -> 00:00:00 | D47: =Summary!L6 -> 1905-07-17 | E47: ads | F47: u4bn | G47: u4bn47 | I47: (f) | J47: NonDeductible Combined GO Debt
A48: Utility Debt 4 | B48: =ROW() -> 48 | C48: =Summary!D4 -> 00:00:00 | D48: =Summary!L6 -> 1905-07-17 | E48: ads | F48: u4bn | G48: =F48&ROW() -> u4bn48 | J48: Total Allowable Deduction | P48: =IF(P35>0,P17,O46)-O47 -> 0

Sheet Bonds Issued
A1: =MID(CELL("filename",A1),FIND("]",CELL("filename",A1))+1,256) -> Bonds Issued | B1: =ROW() -> 1 | C1: =Summary!D4 -> 00:00:00 | D1: =Summary!L6 -> 1905-07-17 | E1: ads | F1: bnt | G1: =F1&ROW() -> bnt1 | I1: OTHER BONDS, NOTES AND LOANS - Page 1
A2: Bonds Issued | B2: =ROW() -> 2 | C2: =Summary!D4 -> 00:00:00 | D2: =Summary!L6 -> 1905-07-17 | E2: ads | F2: bnt | G2: =F2&ROW() -> bnt2 | I2: 1 | J2: TERM BONDS (state purposes separately)
A3: Bonds Issued | B3: =ROW() -> 3 | C3: =Summary!D4 -> 00:00:00 | D3: =Summary!L6 -> 1905-07-17 | E3: ads | F3: bnt | G3: bnt3 | K3: (1) | N3: 0
A4: Bonds Issued | B4: =ROW() -> 4 | C4: =Summary!D4 -> 00:00:00 | D4: =Summary!L6 -> 1905-07-17 | E4: ads | F4: bnt | G4: bnt4 | K4: (2) | N4: 0
A5: Bonds Issued | B5: =ROW() -> 5 | C5: =Summary!D4 -> 00:00:00 | D5: =Summary!L6 -> 1905-07-17 | E5: ads | F5: bnt | G5: bnt5 | K5: (3) | N5: 0
A6: Bonds Issued | B6: =ROW() -> 6 | C6: =Summary!D4 -> 00:00:00 | D6: =Summary!L6 -> 1905-07-17 | E6: ads | F6: bnt | G6: bnt6 | K6: (4) | N6: 0
A7: Bonds Issued | B7: =ROW() -> 7 | C7: =Summary!D4 -> 00:00:00 | D7: =Summary!L6 -> 1905-07-17 | E7: ads | F7: bnt | G7: bnt7 | K7: (5) | N7: 0
A8: Bonds Issued | B8: =ROW() -> 8 | C8: =Summary!D4 -> 00:00:00 | D8: =Summary!L6 -> 1905-07-17 | E8: ads | F8: bntt | G8: bntt8 | K8: Total Term Bonds | O8: =SUM(N3:N7) -> 0
A9: Bonds Issued | B9: =ROW() -> 9 | C9: =Summary!D4 -> 00:00:00 | D9: =Summary!L6 -> 1905-07-17 | E9: ads | F9: bns | G9: bns9 | I9: 2 | J9: SERIAL BONDS (state purposes separately)
A10: Bonds Issued | B10: =ROW() -> 10 | C10: =Summary!D4 -> 00:00:00 | D10: =Summary!L6 -> 1905-07-17 | E10: ads | F10: bns | G10: bns10 | J10: (a) Issued
A11: Bonds Issued | B11: =ROW() -> 11 | C11: =Summary!D4 -> 00:00:00 | D11: =Summary!L6 -> 1905-07-17 | E11: ads | F11: bns | G11: bns11 | K11: (1)
A12: Bonds Issued | B12: =ROW() -> 12 | C12: =Summary!D4 -> 00:00:00 | D12: =Summary!L6 -> 1905-07-17 | E12: ads | F12: bns | G12: bns12 | K12: (2)
A13: Bonds Issued | B13: =ROW() -> 13 | C13: =Summary!D4 -> 00:00:00 | D13: =Summary!L6 -> 1905-07-17 | E13: ads | F13: bns | G13: bns13 | K13: (3)
A14: Bonds Issued | B14: =ROW() -> 14 | C14: =Summary!D4 -> 00:00:00 | D14: =Summary!L6 -> 1905-07-17 | E14: ads | F14: bns | G14: bns14 | K14: (4)
A15: Bonds Issued | B15: =ROW() -> 15 | C15: =Summary!D4 -> 00:00:00 | D15: =Summary!L6 -> 1905-07-17 | E15: ads | F15: bns | G15: bns15 | K15: (5)
A16: Bonds Issued | B16: =ROW() -> 16 | C16: =Summary!D4 -> 00:00:00 | D16: =Summary!L6 -> 1905-07-17 | E16: ads | F16: bns | G16: bns16 | K16: (6)
A17: Bonds Issued | B17: =ROW() -> 17 | C17: =Summary!D4 -> 00:00:00 | D17: =Summary!L6 -> 1905-07-17 | E17: ads | F17: bns | G17: bns17 | K17: (7)
A18: Bonds Issued | B18: =ROW() -> 18 | C18: =Summary!D4 -> 00:00:00 | D18: =Summary!L6 -> 1905-07-17 | E18: ads | F18: bns | G18: bns18 | K18: (8)
A19: Bonds Issued | B19: =ROW() -> 19 | C19: =Summary!D4 -> 00:00:00 | D19: =Summary!L6 -> 1905-07-17 | E19: ads | F19: bns | G19: bns19 | K19: (9)
A20: Bonds Issued | B20: =ROW() -> 20 | C20: =Summary!D4 -> 00:00:00 | D20: =Summary!L6 -> 1905-07-17 | E20: ads | F20: bns | G20: bns20 | K20: (10)
A21: Bonds Issued | B21: =ROW() -> 21 | C21: =Summary!D4 -> 00:00:00 | D21: =Summary!L6 -> 1905-07-17 | E21: ads | F21: bns | G21: bns21 | K21: (11)
A22: Bonds Issued | B22: =ROW() -> 22 | C22: =Summary!D4 -> 00:00:00 | D22: =Summary!L6 -> 1905-07-17 | E22: ads | F22: bns | G22: bns22 | K22: (12)
A23: Bonds Issued | B23: =ROW() -> 23 | C23: =Summary!D4 -> 00:00:00 | D23: =Summary!L6 -> 1905-07-17 | E23: ads | F23: bns | G23: bns23 | K23: (13)
A24: Bonds Issued | B24: =ROW() -> 24 | C24: =Summary!D4 -> 00:00:00 | D24: =Summary!L6 -> 1905-07-17 | E24: ads | F24: bns | G24: bns24 | K24: (14) | N24: 0
A25: Bonds Issued | B25: =ROW() -> 25 | C25: =Summary!D4 -> 00:00:00 | D25: =Summary!L6 -> 1905-07-17 | E25: ads | F25: bns | G25: bns25 | K25: (15) | N25: 0
A26: Bonds Issued | B26: =ROW() -> 26 | C26: =Summary!D4 -> 00:00:00 | D26: =Summary!L6 -> 1905-07-17 | E26: ads | F26: bns | G26: bns26 | K26: (16) | N26: 0
A27: Bonds Issued | B27: =ROW() -> 27 | C27: =Summary!D4 -> 00:00:00 | D27: =Summary!L6 -> 1905-07-17 | E27: ads | F27: bns | G27: bns27 | K27: (17) | N27: 0
A28: Bonds Issued | B28: =ROW() -> 28 | C28: =Summary!D4 -> 00:00:00 | D28: =Summary!L6 -> 1905-07-17 | E28: ads | F28: bns | G28: bns28 | K28: (18) | N28: 0
A29: Bonds Issued | B29: =ROW() -> 29 | C29: =Summary!D4 -> 00:00:00 | D29: =Summary!L6 -> 1905-07-17 | E29: ads | F29: bns | G29: bns29 | K29: (19) | N29: 0
A30: Bonds Issued | B30: =ROW() -> 30 | C30: =Summary!D4 -> 00:00:00 | D30: =Summary!L6 -> 1905-07-17 | E30: ads | F30: bns | G30: bns30 | K30: (20) | N30: 0
A31: Bonds Issued | B31: =ROW() -> 31 | C31: =Summary!D4 -> 00:00:00 | D31: =Summary!L6 -> 1905-07-17 | E31: ads | F31: bns | G31: bns31 | K31: (21) | N31: 0
A32: Bonds Issued | B32: =ROW() -> 32 | C32: =Summary!D4 -> 00:00:00 | D32: =Summary!L6 -> 1905-07-17 | E32: ads | F32: bns | G32: bns32 | K32: (22) | N32: 0
A33: Bonds Issued | B33: =ROW() -> 33 | C33: =Summary!D4 -> 00:00:00 | D33: =Summary!L6 -> 1905-07-17 | E33: ads | F33: bns | G33: bns33 | K33: (23) | N33: 0
A34: Bonds Issued | B34: =ROW() -> 34 | C34: =Summary!D4 -> 00:00:00 | D34: =Summary!L6 -> 1905-07-17 | E34: ads | F34: bns | G34: bns34 | K34: (24) | N34: 0
A35: Bonds Issued | B35: =ROW() -> 35 | C35: =Summary!D4 -> 00:00:00 | D35: =Summary!L6 -> 1905-07-17 | E35: ads | F35: bns | G35: bns35 | K35: (25) | N35: 0
A36: Bonds Issued | B36: =ROW() -> 36 | C36: =Summary!D4 -> 00:00:00 | D36: =Summary!L6 -> 1905-07-17 | E36: ads | F36: bns | G36: =F36&ROW() -> bns36 | K36: (26) | N36: 0
A37: Bonds Issued | B37: =ROW() -> 37 | C37: =Summary!D4 -> 00:00:00 | D37: =Summary!L6 -> 1905-07-17 | E37: ads | F37: bns | G37: =F37&ROW() -> bns37 | K37: (27) | N37: 0
A38: Bonds Issued | B38: =ROW() -> 38 | C38: =Summary!D4 -> 00:00:00 | D38: =Summary!L6 -> 1905-07-17 | E38: ads | F38: bns | G38: =F38&ROW() -> bns38 | K38: (28) | N38: 0
A39: Bonds Issued | B39: =ROW() -> 39 | C39: =Summary!D4 -> 00:00:00 | D39: =Summary!L6 -> 1905-07-17 | E39: ads | F39: bns | G39: =F39&ROW() -> bns39 | K39: (29) | N39: 0
A40: Bonds Issued | B40: =ROW() -> 40 | C40: =Summary!D4 -> 00:00:00 | D40: =Summary!L6 -> 1905-07-17 | E40: ads | F40: bns | G40: =F40&ROW() -> bns40 | K40: (30) | N40: 0
A41: Bonds Issued | B41: =ROW() -> 41 | C41: =Summary!D4 -> 00:00:00 | D41: =Summary!L6 -> 1905-07-17 | E41: ads | F41: bns | G41: bns41 | K41: (31) | N41: 0
A42: Bonds Issued | B42: =ROW() -> 42 | C42: =Summary!D4 -> 00:00:00 | D42: =Summary!L6 -> 1905-07-17 | E42: ads | F42: bns | G42: bns42 | K42: (32) | N42: 0
A43: Bonds Issued | B43: =ROW() -> 43 | C43: =Summary!D4 -> 00:00:00 | D43: =Summary!L6 -> 1905-07-17 | E43: ads | F43: bns | G43: bns43 | K43: (33) | N43: 0
A44: Bonds Issued | B44: =ROW() -> 44 | C44: =Summary!D4 -> 00:00:00 | D44: =Summary!L6 -> 1905-07-17 | E44: ads | F44: bns | G44: bns44 | K44: (34) | N44: 0
A45: Bonds Issued | B45: =ROW() -> 45 | C45: =Summary!D4 -> 00:00:00 | D45: =Summary!L6 -> 1905-07-17 | E45: ads | F45: bns | G45: bns45 | K45: (35) | N45: 0
A46: Bonds Issued | B46: =ROW() -> 46 | C46: =Summary!D4 -> 00:00:00 | D46: =Summary!L6 -> 1905-07-17 | E46: ads | F46: bns | G46: bns46 | K46: (36) | N46: 0
A47: Bonds Issued | B47: =ROW() -> 47 | C47: =Summary!D4 -> 00:00:00 | D47: =Summary!L6 -> 1905-07-17 | E47: ads | F47: bns | G47: bns47 | K47: (37) | N47: 0
A48: Bonds Issued | B48: =ROW() -> 48 | C48: =Summary!D4 -> 00:00:00 | D48: =Summary!L6 -> 1905-07-17 | E48: ads | F48: bns | G48: bns48 | K48: (38) | N48: 0
A49: Bonds Issued | B49: =ROW() -> 49 | C49: =Summary!D4 -> 00:00:00 | D49: =Summary!L6 -> 1905-07-17 | E49: ads | F49: bns | G49: bns49 | K49: (39) | N49: 0
A50: Bonds Issued | B50: =ROW() -> 50 | C50: =Summary!D4 -> 00:00:00 | D50: =Summary!L6 -> 1905-07-17 | E50: ads | F50: bns | G50: bns50 | K50: (40) | N50: 0
A51: Bonds Issued | B51: =ROW() -> 51 | C51: =Summary!D4 -> 00:00:00 | D51: =Summary!L6 -> 1905-07-17 | E51: ads | F51: bns | G51: bns51 | K51: (41) | N51: 0
A52: Bonds Issued | B52: =ROW() -> 52 | C52: =Summary!D4 -> 00:00:00 | D52: =Summary!L6 -> 1905-07-17 | E52: ads | F52: bns | G52: bns52 | K52: (42) | N52: 0
A53: Bonds Issued | B53: =ROW() -> 53 | C53: =Summary!D4 -> 00:00:00 | D53: =Summary!L6 -> 1905-07-17 | E53: ads | F53: bns | G53: bns53 | K53: (43) | N53: 0
A54: Bonds Issued | B54: =ROW() -> 54 | C54: =Summary!D4 -> 00:00:00 | D54: =Summary!L6 -> 1905-07-17 | E54: ads | F54: bns | G54: bns54 | K54: (44) | N54: 0
A55: Bonds Issued | B55: =ROW() -> 55 | C55: =Summary!D4 -> 00:00:00 | D55: =Summary!L6 -> 1905-07-17 | E55: ads | F55: bns | G55: bns55 | K55: (45) | N55: 0
A56: Bonds Issued | B56: =ROW() -> 56 | C56: =Summary!D4 -> 00:00:00 | D56: =Summary!L6 -> 1905-07-17 | E56: ads | F56: bns | G56: bns56 | K56: (46) | N56: 0
A57: Bonds Issued | B57: =ROW() -> 57 | C57: =Summary!D4 -> 00:00:00 | D57: =Summary!L6 -> 1905-07-17 | E57: ads | F57: bns | G57: bns57 | K57: (47) | N57: 0
A58: Bonds Issued | B58: =ROW() -> 58 | C58: =Summary!D4 -> 00:00:00 | D58: =Summary!L6 -> 1905-07-17 | E58: ads | F58: bns | G58: bns58 | K58: (48) | N58: 0
A59: Bonds Issued | B59: =ROW() -> 59 | C59: =Summary!D4 -> 00:00:00 | D59: =Summary!L6 -> 1905-07-17 | E59: ads | F59: bns | G59: bns59 | K59: (49) | N59: 0
A60: Bonds Issued | B60: =ROW() -> 60 | C60: =Summary!D4 -> 00:00:00 | D60: =Summary!L6 -> 1905-07-17 | E60: ads | F60: bns | G60: bns60 | K60: (50) | N60: 0
A61: Bonds Issued | B61: =ROW() -> 61 | C61: =Summary!D4 -> 00:00:00 | D61: =Summary!L6 -> 1905-07-17 | E61: ads | F61: bns | G61: bns61 | K61: (51) | N61: 0
A62: Bonds Issued | B62: =ROW() -> 62 | C62: =Summary!D4 -> 00:00:00 | D62: =Summary!L6 -> 1905-07-17 | E62: ads | F62: bns | G62: bns62 | K62: (52) | N62: 0
A63: Bonds Issued | B63: =ROW() -> 63 | C63: =Summary!D4 -> 00:00:00 | D63: =Summary!L6 -> 1905-07-17 | E63: ads | F63: bns | G63: bns63 | K63: (53) | N63: 0
A64: Bonds Issued | B64: =ROW() -> 64 | C64: =Summary!D4 -> 00:00:00 | D64: =Summary!L6 -> 1905-07-17 | E64: ads | F64: bns | G64: bns64 | K64: (54) | N64: 0
A65: Bonds Issued | B65: =ROW() -> 65 | C65: =Summary!D4 -> 00:00:00 | D65: =Summary!L6 -> 1905-07-17 | E65: ads | F65: bns | G65: bns65 | K65: (55) | N65: 0
A66: Bonds Issued | B66: =ROW() -> 66 | C66: =Summary!D4 -> 00:00:00 | D66: =Summary!L6 -> 1905-07-17 | E66: ads | F66: bns | G66: bns66 | K66: (56) | N66: 0
A67: Bonds Issued | B67: =ROW() -> 67 | C67: =Summary!D4 -> 00:00:00 | D67: =Summary!L6 -> 1905-07-17 | E67: ads | F67: bns | G67: bns67 | K67: (57) | N67: 0
A68: Bonds Issued | B68: =ROW() -> 68 | C68: =Summary!D4 -> 00:00:00 | D68: =Summary!L6 -> 1905-07-17 | E68: ads | F68: bns | G68: bns68 | K68: (58) | N68: 0
A69: Bonds Issued | B69: =ROW() -> 69 | C69: =Summary!D4 -> 00:00:00 | D69: =Summary!L6 -> 1905-07-17 | E69: ads | F69: bns | G69: bns69 | K69: (59) | N69: 0
A70: Bonds Issued | B70: =ROW() -> 70 | C70: =Summary!D4 -> 00:00:00 | D70: =Summary!L6 -> 1905-07-17 | E70: ads | F70: bns | G70: bns70 | K70: (60) | N70: 0
A71: Bonds Issued | B71: =ROW() -> 71 | C71: =Summary!D4 -> 00:00:00 | D71: =Summary!L6 -> 1905-07-17 | E71: ads | F71: bns | G71: bns71 | K71: (61) | N71: 0
A72: Bonds Issued | B72: =ROW() -> 72 | C72: =Summary!D4 -> 00:00:00 | D72: =Summary!L6 -> 1905-07-17 | E72: ads | F72: bns | G72: bns72 | K72: (62) | N72: 0
A73: Bonds Issued | B73: =ROW() -> 73 | C73: =Summary!D4 -> 00:00:00 | D73: =Summary!L6 -> 1905-07-17 | E73: ads | F73: bns | G73: bns73 | K73: (63) | N73: 0
A74: Bonds Issued | B74: =ROW() -> 74 | C74: =Summary!D4 -> 00:00:00 | D74: =Summary!L6 -> 1905-07-17 | E74: ads | F74: bns | G74: bns74 | K74: (64) | N74: 0
A75: Bonds Issued | B75: =ROW() -> 75 | C75: =Summary!D4 -> 00:00:00 | D75: =Summary!L6 -> 1905-07-17 | E75: ads | F75: bnst | G75: bnst75 | K75: Total Serial Bonds Issued | O75: =SUM(N11:N74) -> 0
A76: Bonds Issued | B76: =ROW() -> 76 | C76: =Summary!D4 -> 00:00:00 | D76: =Summary!L6 -> 1905-07-17 | E76: ads | F76: bsa | G76: bsa76
A77: Bonds Issued | B77: =ROW() -> 77 | C77: =Summary!D4 -> 00:00:00 | D77: =Summary!L6 -> 1905-07-17 | E77: ads | F77: bsa | G77: bsa77
A78: Bonds Issued | B78: =ROW() -> 78 | C78: =Summary!D4 -> 00:00:00 | D78: =Summary!L6 -> 1905-07-17 | E78: ads | F78: bsa | G78: bsa78
A79: Bonds Issued | B79: =ROW() -> 79 | C79: =Summary!D4 -> 00:00:00 | D79: =Summary!L6 -> 1905-07-17 | E79: ads | F79: bsa | G79: bsa79
A80: Bonds Issued | B80: =ROW() -> 80 | C80: =Summary!D4 -> 00:00:00 | D80: =Summary!L6 -> 1905-07-17 | E80: ads | F80: bsa | G80: bsa80
A81: Bonds Issued | B81: =ROW() -> 81 | C81: =Summary!D4 -> 00:00:00 | D81: =Summary!L6 -> 1905-07-17 | E81: ads | F81: bsa | G81: bsa81
A82: =MID(CELL("filename",A82),FIND("]",CELL("filename",A82))+1,256) -> Bonds Issued | B82: =ROW() -> 82 | C82: =Summary!D4 -> 00:00:00 | D82: =Summary!L6 -> 1905-07-17 | E82: ads | F82: bsat | G82: =F82&ROW() -> bsat82
A83: =MID(CELL("filename",A83),FIND("]",CELL("filename",A83))+1,256) -> Bonds Issued | B83: =ROW() -> 83 | C83: =Summary!D4 -> 00:00:00 | D83: =Summary!L6 -> 1905-07-17 | E83: ads | F83: bnssat | G83: =F83&ROW() -> bnssat83 | I83: 3

Sheet Bonds Authorized
A1: =MID(CELL("filename",A1),FIND("]",CELL("filename",A1))+1,256) -> Bonds Authorized | B1: =ROW() -> 1 | C1: =Summary!D4 -> 00:00:00 | D1: =Summary!L6 -> 1905-07-17 | E1: ads | F1: bnt | G1: =F1&ROW() -> bnt1 | I1: OTHER BONDS, NOTES AND LOANS - Page 1a
A2: Bonds Authorized | B2: =ROW() -> 2 | C2: =Summary!D4 -> 00:00:00 | D2: =Summary!L6 -> 1905-07-17 | E2: ads | F2: bsa | G2: =F2&ROW() -> bsa2 | J2: (b) Bonds Authorized but not Issued
K3: (1)
K4: (2)
K5: (3)
K6: (4)
K7: (5)
K8: (6)
K9: (7) | N9: 0
K10: (8) | N10: 0
K11: (9) | N11: 0
K12: (10) | N12: 0
K13: (11) | N13: 0
K14: (12) | N14: 0
K15: (13) | N15: 0
K16: (14) | N16: 0
K17: (15) | N17: 0
K18: (16) | N18: 0
K19: (17) | N19: 0
K20: (18) | N20: 0
K21: (19) | N21: 0
K22: (20) | N22: 0
A23: Bonds Authorized | B23: =ROW() -> 23 | C23: =Summary!D4 -> 00:00:00 | D23: =Summary!L6 -> 1905-07-17 | E23: ads | F23: bsa | G23: bsa23 | K23: (21) | N23: 0
A24: Bonds Authorized | B24: =ROW() -> 24 | C24: =Summary!D4 -> 00:00:00 | D24: =Summary!L6 -> 1905-07-17 | E24: ads | F24: bsa | G24: bsa24 | K24: (22) | N24: 0
A25: Bonds Authorized | B25: =ROW() -> 25 | C25: =Summary!D4 -> 00:00:00 | D25: =Summary!L6 -> 1905-07-17 | E25: ads | F25: bsa | G25: bsa25 | K25: (23) | N25: 0
A26: Bonds Authorized | B26: =ROW() -> 26 | C26: =Summary!D4 -> 00:00:00 | D26: =Summary!L6 -> 1905-07-17 | E26: ads | F26: bsa | G26: bsa26 | K26: (24) | N26: 0
A27: Bonds Authorized | B27: =ROW() -> 27 | C27: =Summary!D4 -> 00:00:00 | D27: =Summary!L6 -> 1905-07-17 | E27: ads | F27: bsa | G27: bsa27 | K27: (25) | N27: 0
A28: =MID(CELL("filename",A28),FIND("]",CELL("filename",A28))+1,256) -> Bonds Authorized | B28: =ROW() -> 28 | C28: =Summary!D4 -> 00:00:00 | D28: =Summary!L6 -> 1905-07-17 | E28: ads | F28: bsat | G28: =F28&ROW() -> bsat28 | K28: Total Serial Bonds Authorized but not Issued | O28: =SUM(N3:N27) -> 0
A29: =MID(CELL("filename",A29),FIND("]",CELL("filename",A29))+1,256) -> Bonds Authorized | B29: =ROW() -> 29 | C29: =Summary!D4 -> 00:00:00 | D29: =Summary!L6 -> 1905-07-17 | E29: ads | F29: bnssat | G29: =F29&ROW() -> bnssat29 | I29: 3 | J29: Total Serial Bonds Issued and Authorized but not Issued | O29: ='Bonds Issued'!O8+'Bonds Issued'!O75+'Bonds Authorized'!O28 -> 0

Sheet Notes Issued
A1: =MID(CELL("filename",A1),FIND("]",CELL("filename",A1))+1,256) -> Notes Issued | B1: =ROW() -> 1 | C1: =Summary!D4 -> 00:00:00 | D1: =Summary!L6 -> 1905-07-17 | E1: ads | F1: bnai | G1: =F1&ROW() -> bnai1 | I1: OTHER BONDS, NOTES AND LOANS - Page 2
A2: Notes Issued | B2: =ROW() -> 2 | C2: =Summary!D4 -> 00:00:00 | D2: =Summary!L6 -> 1905-07-17 | E2: ads | F2: ban | G2: =F2&ROW() -> ban2 | I2: 4 | J2: BOND ANTICIPATION NOTES (state purposes separately)
A3: Notes Issued | B3: =ROW() -> 3 | C3: =Summary!D4 -> 00:00:00 | D3: =Summary!L6 -> 1905-07-17 | E3: ads | F3: ban | G3: ban3 | J3: (a) Issued
A4: Notes Issued | B4: =ROW() -> 4 | C4: =Summary!D4 -> 00:00:00 | D4: =Summary!L6 -> 1905-07-17 | E4: ads | F4: ban | G4: ban4 | K4: -1
A5: Notes Issued | B5: =ROW() -> 5 | C5: =Summary!D4 -> 00:00:00 | D5: =Summary!L6 -> 1905-07-17 | E5: ads | F5: ban | G5: ban5 | K5: -2
A6: Notes Issued | B6: =ROW() -> 6 | C6: =Summary!D4 -> 00:00:00 | D6: =Summary!L6 -> 1905-07-17 | E6: ads | F6: ban | G6: ban6 | K6: -3
A7: Notes Issued | B7: =ROW() -> 7 | C7: =Summary!D4 -> 00:00:00 | D7: =Summary!L6 -> 1905-07-17 | E7: ads | F7: ban | G7: ban7 | K7: -4
A8: Notes Issued | B8: =ROW() -> 8 | C8: =Summary!D4 -> 00:00:00 | D8: =Summary!L6 -> 1905-07-17 | E8: ads | F8: ban | G8: ban8 | K8: -5
A9: Notes Issued | B9: =ROW() -> 9 | C9: =Summary!D4 -> 00:00:00 | D9: =Summary!L6 -> 1905-07-17 | E9: ads | F9: ban | G9: ban9 | K9: -6
A10: Notes Issued | B10: =ROW() -> 10 | C10: =Summary!D4 -> 00:00:00 | D10: =Summary!L6 -> 1905-07-17 | E10: ads | F10: ban | G10: ban10 | K10: -7
A11: Notes Issued | B11: =ROW() -> 11 | C11: =Summary!D4 -> 00:00:00 | D11: =Summary!L6 -> 1905-07-17 | E11: ads | F11: ban | G11: ban11 | K11: -8
A12: Notes Issued | B12: =ROW() -> 12 | C12: =Summary!D4 -> 00:00:00 | D12: =Summary!L6 -> 1905-07-17 | E12: ads | F12: ban | G12: ban12 | K12: -9
A13: Notes Issued | B13: =ROW() -> 13 | C13: =Summary!D4 -> 00:00:00 | D13: =Summary!L6 -> 1905-07-17 | E13: ads | F13: ban | G13: =F13&ROW() -> ban13 | K13: -10
A14: Notes Issued | B14: =ROW() -> 14 | C14: =Summary!D4 -> 00:00:00 | D14: =Summary!L6 -> 1905-07-17 | E14: ads | F14: ban | G14: ban14 | K14: -11
A15: Notes Issued | B15: =ROW() -> 15 | C15: =Summary!D4 -> 00:00:00 | D15: =Summary!L6 -> 1905-07-17 | E15: ads | F15: ban | G15: ban15 | K15: -12
A16: Notes Issued | B16: =ROW() -> 16 | C16: =Summary!D4 -> 00:00:00 | D16: =Summary!L6 -> 1905-07-17 | E16: ads | F16: ban | G16: ban16 | K16: -13
A17: Notes Issued | B17: =ROW() -> 17 | C17: =Summary!D4 -> 00:00:00 | D17: =Summary!L6 -> 1905-07-17 | E17: ads | F17: ban | G17: ban17 | K17: -14
A18: Notes Issued | B18: =ROW() -> 18 | C18: =Summary!D4 -> 00:00:00 | D18: =Summary!L6 -> 1905-07-17 | E18: ads | F18: ban | G18: ban18 | K18: -15
A19: Notes Issued | B19: =ROW() -> 19 | C19: =Summary!D4 -> 00:00:00 | D19: =Summary!L6 -> 1905-07-17 | E19: ads | F19: ban | G19: ban19 | K19: -16
A20: Notes Issued | B20: =ROW() -> 20 | C20: =Summary!D4 -> 00:00:00 | D20: =Summary!L6 -> 1905-07-17 | E20: ads | F20: ban | G20: ban20 | K20: -17
A21: Notes Issued | B21: =ROW() -> 21 | C21: =Summary!D4 -> 00:00:00 | D21: =Summary!L6 -> 1905-07-17 | E21: ads | F21: ban | G21: ban21 | K21: -18
A22: Notes Issued | B22: =ROW() -> 22 | C22: =Summary!D4 -> 00:00:00 | D22: =Summary!L6 -> 1905-07-17 | E22: ads | F22: ban | G22: ban22 | K22: -19
A23: Notes Issued | B23: =ROW() -> 23 | C23: =Summary!D4 -> 00:00:00 | D23: =Summary!L6 -> 1905-07-17 | E23: ads | F23: ban | G23: ban23 | K23: -20
A24: =MID(CELL("filename",A24),FIND("]",CELL("filename",A24))+1,256) -> Notes Issued | B24: =ROW() -> 24 | C24: =Summary!D4 -> 00:00:00 | D24: =Summary!L6 -> 1905-07-17 | E24: ads | F24: ban | G24: ban24 | K24: -21
A25: Notes Issued | B25: =ROW() -> 25 | C25: =Summary!D4 -> 00:00:00 | D25: =Summary!L6 -> 1905-07-17 | E25: ads | F25: ban | G25: ban25 | K25: -22
A26: Notes Issued | B26: =ROW() -> 26 | C26: =Summary!D4 -> 00:00:00 | D26: =Summary!L6 -> 1905-07-17 | E26: ads | F26: ban | G26: ban26 | K26: -23
A27: Notes Issued | B27: =ROW() -> 27 | C27: =Summary!D4 -> 00:00:00 | D27: =Summary!L6 -> 1905-07-17 | E27: ads | F27: ban | G27: ban27 | K27: -24
A28: Notes Issued | B28: =ROW() -> 28 | C28: =Summary!D4 -> 00:00:00 | D28: =Summary!L6 -> 1905-07-17 | E28: ads | F28: ban | G28: ban28 | K28: -25
A29: Notes Issued | B29: =ROW() -> 29 | C29: =Summary!D4 -> 00:00:00 | D29: =Summary!L6 -> 1905-07-17 | E29: ads | F29: ban | G29: ban29 | K29: -26
A30: Notes Issued | B30: =ROW() -> 30 | C30: =Summary!D4 -> 00:00:00 | D30: =Summary!L6 -> 1905-07-17 | E30: ads | F30: ban | G30: ban30 | K30: -27
A31: Notes Issued | B31: =ROW() -> 31 | C31: =Summary!D4 -> 00:00:00 | D31: =Summary!L6 -> 1905-07-17 | E31: ads | F31: ban | G31: ban31 | K31: -28
A32: Notes Issued | B32: =ROW() -> 32 | C32: =Summary!D4 -> 00:00:00 | D32: =Summary!L6 -> 1905-07-17 | E32: ads | F32: ban | G32: ban32 | K32: -29
A33: Notes Issued | B33: =ROW() -> 33 | C33: =Summary!D4 -> 00:00:00 | D33: =Summary!L6 -> 1905-07-17 | E33: ads | F33: ban | G33: ban33 | K33: -30
A34: Notes Issued | B34: =ROW() -> 34 | C34: =Summary!D4 -> 00:00:00 | D34: =Summary!L6 -> 1905-07-17 | E34: ads | F34: ban | G34: ban34 | K34: -31
A35: Notes Issued | B35: =ROW() -> 35 | C35: =Summary!D4 -> 00:00:00 | D35: =Summary!L6 -> 1905-07-17 | E35: ads | F35: ban | G35: ban35 | K35: -32
A36: Notes Issued | B36: =ROW() -> 36 | C36: =Summary!D4 -> 00:00:00 | D36: =Summary!L6 -> 1905-07-17 | E36: ads | F36: ban | G36: ban36 | K36: -33
A37: Notes Issued | B37: =ROW() -> 37 | C37: =Summary!D4 -> 00:00:00 | D37: =Summary!L6 -> 1905-07-17 | E37: ads | F37: ban | G37: =F37&ROW() -> ban37 | K37: -34
A38: Notes Issued | B38: =ROW() -> 38 | C38: =Summary!D4 -> 00:00:00 | D38: =Summary!L6 -> 1905-07-17 | E38: ads | F38: ban | G38: ban38 | K38: -35
A39: Notes Issued | B39: =ROW() -> 39 | C39: =Summary!D4 -> 00:00:00 | D39: =Summary!L6 -> 1905-07-17 | E39: ads | F39: ban | G39: ban39 | K39: -36
A40: Notes Issued | B40: =ROW() -> 40 | C40: =Summary!D4 -> 00:00:00 | D40: =Summary!L6 -> 1905-07-17 | E40: ads | F40: ban | G40: ban40 | K40: -37
A41: Notes Issued | B41: =ROW() -> 41 | C41: =Summary!D4 -> 00:00:00 | D41: =Summary!L6 -> 1905-07-17 | E41: ads | F41: ban | G41: ban41 | K41: -38
A42: Notes Issued | B42: =ROW() -> 42 | C42: =Summary!D4 -> 00:00:00 | D42: =Summary!L6 -> 1905-07-17 | E42: ads | F42: ban | G42: ban42 | K42: -39
A43: Notes Issued | B43: =ROW() -> 43 | C43: =Summary!D4 -> 00:00:00 | D43: =Summary!L6 -> 1905-07-17 | E43: ads | F43: ban | G43: ban43 | K43: -40
A44: Notes Issued | B44: =ROW() -> 44 | C44: =Summary!D4 -> 00:00:00 | D44: =Summary!L6 -> 1905-07-17 | E44: ads | F44: ban | G44: ban44 | K44: -41
A45: Notes Issued | B45: =ROW() -> 45 | C45: =Summary!D4 -> 00:00:00 | D45: =Summary!L6 -> 1905-07-17 | E45: ads | F45: ban | G45: ban45 | K45: -42
A46: =MID(CELL("filename",A46),FIND("]",CELL("filename",A46))+1,256) -> Notes Issued | B46: =ROW() -> 46 | C46: =Summary!D4 -> 00:00:00 | D46: =Summary!L6 -> 1905-07-17 | E46: ads | F46: ban | G46: ban46 | K46: -43
A47: =MID(CELL("filename",A47),FIND("]",CELL("filename",A47))+1,256) -> Notes Issued | B47: =ROW() -> 47 | C47: =Summary!D4 -> 00:00:00 | D47: =Summary!L6 -> 1905-07-17 | E47: ads | F47: ban | G47: ban47 | K47: -44
A48: =MID(CELL("filename",A48),FIND("]",CELL("filename",A48))+1,256) -> Notes Issued | B48: =ROW() -> 48 | C48: =Summary!D4 -> 00:00:00 | D48: =Summary!L6 -> 1905-07-17 | E48: ads | F48: ban | G48: ban48 | K48: -45
A49: =MID(CELL("filename",A49),FIND("]",CELL("filename",A49))+1,256) -> Notes Issued | B49: =ROW() -> 49 | C49: =Summary!D4 -> 00:00:00 | D49: =Summary!L6 -> 1905-07-17 | E49: ads | F49: ban | G49: ban49 | K49: -46
A50: Notes Issued | B50: =ROW() -> 50 | C50: =Summary!D4 -> 00:00:00 | D50: =Summary!L6 -> 1905-07-17 | E50: ads | F50: ban | G50: ban50 | K50: -47
A51: Notes Issued | B51: =ROW() -> 51 | C51: =Summary!D4 -> 00:00:00 | D51: =Summary!L6 -> 1905-07-17 | E51: ads | F51: ban | G51: ban51 | K51: -48
A52: Notes Issued | B52: =ROW() -> 52 | C52: =Summary!D4 -> 00:00:00 | D52: =Summary!L6 -> 1905-07-17 | E52: ads | F52: ban | G52: ban52 | K52: -49
A53: Notes Issued | B53: =ROW() -> 53 | C53: =Summary!D4 -> 00:00:00 | D53: =Summary!L6 -> 1905-07-17 | E53: ads | F53: ban | G53: =F53&ROW() -> ban53 | K53: -50
A54: Notes Issued | B54: =ROW() -> 54 | C54: =Summary!D4 -> 00:00:00 | D54: =Summary!L6 -> 1905-07-17 | E54: ads | F54: ban | G54: ban54 | K54: -51
A55: Notes Issued | B55: =ROW() -> 55 | C55: =Summary!D4 -> 00:00:00 | D55: =Summary!L6 -> 1905-07-17 | E55: ads | F55: ban | G55: ban55 | K55: -52
A56: Notes Issued | B56: =ROW() -> 56 | C56: =Summary!D4 -> 00:00:00 | D56: =Summary!L6 -> 1905-07-17 | E56: ads | F56: ban | G56: ban56 | K56: -53
A57: Notes Issued | B57: =ROW() -> 57 | C57: =Summary!D4 -> 00:00:00 | D57: =Summary!L6 -> 1905-07-17 | E57: ads | F57: ban | G57: ban57 | K57: -54
A58: Notes Issued | B58: =ROW() -> 58 | C58: =Summary!D4 -> 00:00:00 | D58: =Summary!L6 -> 1905-07-17 | E58: ads | F58: ban | G58: ban58 | K58: -55
A59: =MID(CELL("filename",A59),FIND("]",CELL("filename",A59))+1,256) -> Notes Issued | B59: =ROW() -> 59 | C59: =Summary!D4 -> 00:00:00 | D59: =Summary!L6 -> 1905-07-17 | E59: ads | F59: ban | G59: ban59 | K59: -56
A60: =MID(CELL("filename",A60),FIND("]",CELL("filename",A60))+1,256) -> Notes Issued | B60: =ROW() -> 60 | C60: =Summary!D4 -> 00:00:00 | D60: =Summary!L6 -> 1905-07-17 | E60: ads | F60: ban | G60: ban60 | K60: -57
A61: =MID(CELL("filename",A61),FIND("]",CELL("filename",A61))+1,256) -> Notes Issued | B61: =ROW() -> 61 | C61: =Summary!D4 -> 00:00:00 | D61: =Summary!L6 -> 1905-07-17 | E61: ads | F61: ban | G61: ban61 | K61: -58
A62: =MID(CELL("filename",A62),FIND("]",CELL("filename",A62))+1,256) -> Notes Issued | B62: =ROW() -> 62 | C62: =Summary!D4 -> 00:00:00 | D62: =Summary!L6 -> 1905-07-17 | E62: ads | F62: ban | G62: ban62 | K62: -59
A63: =MID(CELL("filename",A63),FIND("]",CELL("filename",A63))+1,256) -> Notes Issued | B63: =ROW() -> 63 | C63: =Summary!D4 -> 00:00:00 | D63: =Summary!L6 -> 1905-07-17 | E63: ads | F63: bant | G63: =F63&ROW() -> bant63 | K63: Bond Anticipation Notes Issued | O63: =SUM(N4:N62) -> 0

Sheet Notes Authorized
A1: =MID(CELL("filename",A1),FIND("]",CELL("filename",A1))+1,256) -> Notes Authorized | B1: =ROW() -> 1 | C1: =Summary!D4 -> 00:00:00 | D1: =Summary!L6 -> 1905-07-17 | E1: ads | F1: bnai | G1: =F1&ROW() -> bnai1 | I1: OTHER BONDS, NOTES AND LOANS - Page 3a
A2: Notes Authorized | B2: =ROW() -> 2 | C2: =Summary!D4 -> 00:00:00 | D2: =Summary!L6 -> 1905-07-17 | E2: ads | F2: banania | G2: =F2&ROW() -> banania2 | I2: 4 | J2: BOND ANTICIPATION NOTES (state purposes separately)
A3: Notes Authorized | B3: =ROW() -> 3 | C3: =Summary!D4 -> 00:00:00 | D3: =Summary!L6 -> 1905-07-17 | E3: ads | F3: banania | G3: banania3 | J3: (b) Authorized but not issued
A4: Notes Authorized | B4: =ROW() -> 4 | C4: =Summary!D4 -> 00:00:00 | D4: =Summary!L6 -> 1905-07-17 | E4: ads | F4: banania | G4: banania4 | K4: -1
A5: Notes Authorized | B5: =ROW() -> 5 | C5: =Summary!D4 -> 00:00:00 | D5: =Summary!L6 -> 1905-07-17 | E5: ads | F5: banania | G5: banania5 | K5: -2
A6: Notes Authorized | B6: =ROW() -> 6 | C6: =Summary!D4 -> 00:00:00 | D6: =Summary!L6 -> 1905-07-17 | E6: ads | F6: banania | G6: banania6 | K6: -3
A7: Notes Authorized | B7: =ROW() -> 7 | C7: =Summary!D4 -> 00:00:00 | D7: =Summary!L6 -> 1905-07-17 | E7: ads | F7: banania | G7: banania7 | K7: -4
A8: Notes Authorized | B8: =ROW() -> 8 | C8: =Summary!D4 -> 00:00:00 | D8: =Summary!L6 -> 1905-07-17 | E8: ads | F8: banania | G8: banania8 | K8: -5
A9: Notes Authorized | B9: =ROW() -> 9 | C9: =Summary!D4 -> 00:00:00 | D9: =Summary!L6 -> 1905-07-17 | E9: ads | F9: banania | G9: banania9 | K9: -6
A10: Notes Authorized | B10: =ROW() -> 10 | C10: =Summary!D4 -> 00:00:00 | D10: =Summary!L6 -> 1905-07-17 | E10: ads | F10: banania | G10: banania10 | K10: -7
A11: Notes Authorized | B11: =ROW() -> 11 | C11: =Summary!D4 -> 00:00:00 | D11: =Summary!L6 -> 1905-07-17 | E11: ads | F11: banania | G11: banania11 | K11: -8
A12: Notes Authorized | B12: =ROW() -> 12 | C12: =Summary!D4 -> 00:00:00 | D12: =Summary!L6 -> 1905-07-17 | E12: ads | F12: banania | G12: banania12 | K12: -9
A13: Notes Authorized | B13: =ROW() -> 13 | C13: =Summary!D4 -> 00:00:00 | D13: =Summary!L6 -> 1905-07-17 | E13: ads | F13: banania | G13: banania13 | K13: -10
A14: Notes Authorized | B14: =ROW() -> 14 | C14: =Summary!D4 -> 00:00:00 | D14: =Summary!L6 -> 1905-07-17 | E14: ads | F14: banania | G14: banania14 | K14: -11
A15: Notes Authorized | B15: =ROW() -> 15 | C15: =Summary!D4 -> 00:00:00 | D15: =Summary!L6 -> 1905-07-17 | E15: ads | F15: banania | G15: banania15 | K15: -12
A16: Notes Authorized | B16: =ROW() -> 16 | C16: =Summary!D4 -> 00:00:00 | D16: =Summary!L6 -> 1905-07-17 | E16: ads | F16: banania | G16: banania16 | K16: -13
A17: Notes Authorized | B17: =ROW() -> 17 | C17: =Summary!D4 -> 00:00:00 | D17: =Summary!L6 -> 1905-07-17 | E17: ads | F17: banania | G17: banania17 | K17: -14
A18: Notes Authorized | B18: =ROW() -> 18 | C18: =Summary!D4 -> 00:00:00 | D18: =Summary!L6 -> 1905-07-17 | E18: ads | F18: banania | G18: banania18 | K18: -15
A19: Notes Authorized | B19: =ROW() -> 19 | C19: =Summary!D4 -> 00:00:00 | D19: =Summary!L6 -> 1905-07-17 | E19: ads | F19: banania | G19: banania19 | K19: -16
A20: Notes Authorized | B20: =ROW() -> 20 | C20: =Summary!D4 -> 00:00:00 | D20: =Summary!L6 -> 1905-07-17 | E20: ads | F20: banania | G20: banania20 | K20: -17
A21: Notes Authorized | B21: =ROW() -> 21 | C21: =Summary!D4 -> 00:00:00 | D21: =Summary!L6 -> 1905-07-17 | E21: ads | F21: banania | G21: banania21 | K21: -18
A22: Notes Authorized | B22: =ROW() -> 22 | C22: =Summary!D4 -> 00:00:00 | D22: =Summary!L6 -> 1905-07-17 | E22: ads | F22: banania | G22: banania22 | K22: -19
A23: Notes Authorized | B23: =ROW() -> 23 | C23: =Summary!D4 -> 00:00:00 | D23: =Summary!L6 -> 1905-07-17 | E23: ads | F23: banania | G23: banania23 | K23: -20
A24: Notes Authorized | B24: =ROW() -> 24 | C24: =Summary!D4 -> 00:00:00 | D24: =Summary!L6 -> 1905-07-17 | E24: ads | F24: banania | G24: banania24 | K24: -21
A25: Notes Authorized | B25: =ROW() -> 25 | C25: =Summary!D4 -> 00:00:00 | D25: =Summary!L6 -> 1905-07-17 | E25: ads | F25: banania | G25: banania25 | K25: -22
A26: Notes Authorized | B26: =ROW() -> 26 | C26: =Summary!D4 -> 00:00:00 | D26: =Summary!L6 -> 1905-07-17 | E26: ads | F26: banania | G26: banania26 | K26: -23
A27: Notes Authorized | B27: =ROW() -> 27 | C27: =Summary!D4 -> 00:00:00 | D27: =Summary!L6 -> 1905-07-17 | E27: ads | F27: banania | G27: banania27 | K27: -24
A28: Notes Authorized | B28: =ROW() -> 28 | C28: =Summary!D4 -> 00:00:00 | D28: =Summary!L6 -> 1905-07-17 | E28: ads | F28: banania | G28: banania28 | K28: -25
A29: Notes Authorized | B29: =ROW() -> 29 | C29: =Summary!D4 -> 00:00:00 | D29: =Summary!L6 -> 1905-07-17 | E29: ads | F29: banania | G29: banania29 | K29: -26
A30: Notes Authorized | B30: =ROW() -> 30 | C30: =Summary!D4 -> 00:00:00 | D30: =Summary!L6 -> 1905-07-17 | E30: ads | F30: banania | G30: banania30 | K30: -27
A31: Notes Authorized | B31: =ROW() -> 31 | C31: =Summary!D4 -> 00:00:00 | D31: =Summary!L6 -> 1905-07-17 | E31: ads | F31: banania | G31: banania31 | K31: -28
A32: Notes Authorized | B32: =ROW() -> 32 | C32: =Summary!D4 -> 00:00:00 | D32: =Summary!L6 -> 1905-07-17 | E32: ads | F32: banania | G32: banania32 | K32: -29
A33: Notes Authorized | B33: =ROW() -> 33 | C33: =Summary!D4 -> 00:00:00 | D33: =Summary!L6 -> 1905-07-17 | E33: ads | F33: banania | G33: banania33 | K33: -30
A34: Notes Authorized | B34: =ROW() -> 34 | C34: =Summary!D4 -> 00:00:00 | D34: =Summary!L6 -> 1905-07-17 | E34: ads | F34: banania | G34: banania34 | K34: -31
A35: Notes Authorized | B35: =ROW() -> 35 | C35: =Summary!D4 -> 00:00:00 | D35: =Summary!L6 -> 1905-07-17 | E35: ads | F35: banania | G35: banania35 | K35: -32
A36: Notes Authorized | B36: =ROW() -> 36 | C36: =Summary!D4 -> 00:00:00 | D36: =Summary!L6 -> 1905-07-17 | E36: ads | F36: banania | G36: banania36 | K36: -33
A37: Notes Authorized | B37: =ROW() -> 37 | C37: =Summary!D4 -> 00:00:00 | D37: =Summary!L6 -> 1905-07-17 | E37: ads | F37: banania | G37: banania37 | K37: -34
A38: Notes Authorized | B38: =ROW() -> 38 | C38: =Summary!D4 -> 00:00:00 | D38: =Summary!L6 -> 1905-07-17 | E38: ads | F38: banania | G38: banania38 | K38: -35
A39: Notes Authorized | B39: =ROW() -> 39 | C39: =Summary!D4 -> 00:00:00 | D39: =Summary!L6 -> 1905-07-17 | E39: ads | F39: banania | G39: banania39 | K39: -36
A40: Notes Authorized | B40: =ROW() -> 40 | C40: =Summary!D4 -> 00:00:00 | D40: =Summary!L6 -> 1905-07-17 | E40: ads | F40: banania | G40: banania40 | K40: -37
A41: Notes Authorized | B41: =ROW() -> 41 | C41: =Summary!D4 -> 00:00:00 | D41: =Summary!L6 -> 1905-07-17 | E41: ads | F41: banania | G41: banania41 | K41: -38
A42: Notes Authorized | B42: =ROW() -> 42 | C42: =Summary!D4 -> 00:00:00 | D42: =Summary!L6 -> 1905-07-17 | E42: ads | F42: banania | G42: banania42 | K42: -39
A43: Notes Authorized | B43: =ROW() -> 43 | C43: =Summary!D4 -> 00:00:00 | D43: =Summary!L6 -> 1905-07-17 | E43: ads | F43: banania | G43: banania43 | K43: -40
A44: Notes Authorized | B44: =ROW() -> 44 | C44: =Summary!D4 -> 00:00:00 | D44: =Summary!L6 -> 1905-07-17 | E44: ads | F44: banania | G44: banania44 | K44: -41
A45: Notes Authorized | B45: =ROW() -> 45 | C45: =Summary!D4 -> 00:00:00 | D45: =Summary!L6 -> 1905-07-17 | E45: ads | F45: banania | G45: banania45 | K45: -42
A46: =MID(CELL("filename",A46),FIND("]",CELL("filename",A46))+1,256) -> Notes Authorized | B46: =ROW() -> 46 | C46: =Summary!D4 -> 00:00:00 | D46: =Summary!L6 -> 1905-07-17 | E46: ads | F46: banania | G46: banania46 | K46: -43
A47: =MID(CELL("filename",A47),FIND("]",CELL("filename",A47))+1,256) -> Notes Authorized | B47: =ROW() -> 47 | C47: =Summary!D4 -> 00:00:00 | D47: =Summary!L6 -> 1905-07-17 | E47: ads | F47: banania | G47: banania47 | K47: -44
A48: =MID(CELL("filename",A48),FIND("]",CELL("filename",A48))+1,256) -> Notes Authorized | B48: =ROW() -> 48 | C48: =Summary!D4 -> 00:00:00 | D48: =Summary!L6 -> 1905-07-17 | E48: ads | F48: banania | G48: banania48 | K48: -45

Sheet Notes Authorized 2
A1: =MID(CELL("filename",A1),FIND("]",CELL("filename",A1))+1,256) -> Notes Authorized 2 | B1: =ROW() -> 1 | C1: =Summary!D4 -> 00:00:00 | D1: =Summary!L6 -> 1905-07-17 | E1: ads | F1: bnai | G1: =F1&ROW() -> bnai1 | I1: OTHER BONDS, NOTES AND LOANS - Page 3b
A2: Notes Authorized 2 | B2: =ROW() -> 2 | C2: =Summary!D4 -> 00:00:00 | D2: =Summary!L6 -> 1905-07-17 | E2: ads | F2: banania | G2: =F2&ROW() -> banania2 | I2: 4 | J2: BOND ANTICIPATION NOTES (state purposes separately)
A3: Notes Authorized 2 | B3: =ROW() -> 3 | C3: =Summary!D4 -> 00:00:00 | D3: =Summary!L6 -> 1905-07-17 | E3: ads | F3: banania | G3: banania3 | J3: (b) Authorized but not issued (Continued)
A4: Notes Authorized 2 | B4: =ROW() -> 4 | C4: =Summary!D4 -> 00:00:00 | D4: =Summary!L6 -> 1905-07-17 | E4: ads | F4: banania | G4: banania4 | K4: -46
A5: Notes Authorized 2 | B5: =ROW() -> 5 | C5: =Summary!D4 -> 00:00:00 | D5: =Summary!L6 -> 1905-07-17 | E5: ads | F5: banania | G5: banania5 | K5: -47
A6: Notes Authorized 2 | B6: =ROW() -> 6 | C6: =Summary!D4 -> 00:00:00 | D6: =Summary!L6 -> 1905-07-17 | E6: ads | F6: banania | G6: banania6 | K6: -48
A7: Notes Authorized 2 | B7: =ROW() -> 7 | C7: =Summary!D4 -> 00:00:00 | D7: =Summary!L6 -> 1905-07-17 | E7: ads | F7: banania | G7: banania7 | K7: -49
A8: Notes Authorized 2 | B8: =ROW() -> 8 | C8: =Summary!D4 -> 00:00:00 | D8: =Summary!L6 -> 1905-07-17 | E8: ads | F8: banania | G8: banania8 | K8: -50
A9: Notes Authorized 2 | B9: =ROW() -> 9 | C9: =Summary!D4 -> 00:00:00 | D9: =Summary!L6 -> 1905-07-17 | E9: ads | F9: banania | G9: banania9 | K9: -51
A10: Notes Authorized 2 | B10: =ROW() -> 10 | C10: =Summary!D4 -> 00:00:00 | D10: =Summary!L6 -> 1905-07-17 | E10: ads | F10: banania | G10: banania10 | K10: -52
A11: Notes Authorized 2 | B11: =ROW() -> 11 | C11: =Summary!D4 -> 00:00:00 | D11: =Summary!L6 -> 1905-07-17 | E11: ads | F11: banania | G11: banania11 | K11: -53
A12: Notes Authorized 2 | B12: =ROW() -> 12 | C12: =Summary!D4 -> 00:00:00 | D12: =Summary!L6 -> 1905-07-17 | E12: ads | F12: banania | G12: banania12 | K12: -54
A13: Notes Authorized 2 | B13: =ROW() -> 13 | C13: =Summary!D4 -> 00:00:00 | D13: =Summary!L6 -> 1905-07-17 | E13: ads | F13: banania | G13: banania13 | K13: -55
A14: Notes Authorized 2 | B14: =ROW() -> 14 | C14: =Summary!D4 -> 00:00:00 | D14: =Summary!L6 -> 1905-07-17 | E14: ads | F14: banania | G14: banania14 | K14: -56
A15: Notes Authorized 2 | B15: =ROW() -> 15 | C15: =Summary!D4 -> 00:00:00 | D15: =Summary!L6 -> 1905-07-17 | E15: ads | F15: banania | G15: banania15 | K15: -57
A16: Notes Authorized 2 | B16: =ROW() -> 16 | C16: =Summary!D4 -> 00:00:00 | D16: =Summary!L6 -> 1905-07-17 | E16: ads | F16: banania | G16: banania16 | K16: -58
A17: Notes Authorized 2 | B17: =ROW() -> 17 | C17: =Summary!D4 -> 00:00:00 | D17: =Summary!L6 -> 1905-07-17 | E17: ads | F17: banania | G17: banania17 | K17: -59
A18: Notes Authorized 2 | B18: =ROW() -> 18 | C18: =Summary!D4 -> 00:00:00 | D18: =Summary!L6 -> 1905-07-17 | E18: ads | F18: banania | G18: banania18 | K18: -60
A19: Notes Authorized 2 | B19: =ROW() -> 19 | C19: =Summary!D4 -> 00:00:00 | D19: =Summary!L6 -> 1905-07-17 | E19: ads | F19: banania | G19: banania19 | K19: -61
A20: Notes Authorized 2 | B20: =ROW() -> 20 | C20: =Summary!D4 -> 00:00:00 | D20: =Summary!L6 -> 1905-07-17 | E20: ads | F20: banania | G20: banania20 | K20: -62
A21: Notes Authorized 2 | B21: =ROW() -> 21 | C21: =Summary!D4 -> 00:00:00 | D21: =Summary!L6 -> 1905-07-17 | E21: ads | F21: banania | G21: banania21 | K21: -63
A22: Notes Authorized 2 | B22: =ROW() -> 22 | C22: =Summary!D4 -> 00:00:00 | D22: =Summary!L6 -> 1905-07-17 | E22: ads | F22: banania | G22: banania22 | K22: -64
A23: Notes Authorized 2 | B23: =ROW() -> 23 | C23: =Summary!D4 -> 00:00:00 | D23: =Summary!L6 -> 1905-07-17 | E23: ads | F23: banania | G23: banania23 | K23: -65
A24: Notes Authorized 2 | B24: =ROW() -> 24 | C24: =Summary!D4 -> 00:00:00 | D24: =Summary!L6 -> 1905-07-17 | E24: ads | F24: banania | G24: banania24 | K24: -66
A25: Notes Authorized 2 | B25: =ROW() -> 25 | C25: =Summary!D4 -> 00:00:00 | D25: =Summary!L6 -> 1905-07-17 | E25: ads | F25: banania | G25: banania25 | K25: -67
A26: Notes Authorized 2 | B26: =ROW() -> 26 | C26: =Summary!D4 -> 00:00:00 | D26: =Summary!L6 -> 1905-07-17 | E26: ads | F26: banania | G26: banania26 | K26: -68
A27: Notes Authorized 2 | B27: =ROW() -> 27 | C27: =Summary!D4 -> 00:00:00 | D27: =Summary!L6 -> 1905-07-17 | E27: ads | F27: banania | G27: banania27 | K27: -69
A28: Notes Authorized 2 | B28: =ROW() -> 28 | C28: =Summary!D4 -> 00:00:00 | D28: =Summary!L6 -> 1905-07-17 | E28: ads | F28: banania | G28: banania28 | K28: -70
A29: Notes Authorized 2 | B29: =ROW() -> 29 | C29: =Summary!D4 -> 00:00:00 | D29: =Summary!L6 -> 1905-07-17 | E29: ads | F29: banania | G29: banania29 | K29: -71
A30: Notes Authorized 2 | B30: =ROW() -> 30 | C30: =Summary!D4 -> 00:00:00 | D30: =Summary!L6 -> 1905-07-17 | E30: ads | F30: banania | G30: banania30 | K30: -72
A31: Notes Authorized 2 | B31: =ROW() -> 31 | C31: =Summary!D4 -> 00:00:00 | D31: =Summary!L6 -> 1905-07-17 | E31: ads | F31: banania | G31: banania31 | K31: -73
A32: Notes Authorized 2 | B32: =ROW() -> 32 | C32: =Summary!D4 -> 00:00:00 | D32: =Summary!L6 -> 1905-07-17 | E32: ads | F32: banania | G32: banania32 | K32: -74
A33: Notes Authorized 2 | B33: =ROW() -> 33 | C33: =Summary!D4 -> 00:00:00 | D33: =Summary!L6 -> 1905-07-17 | E33: ads | F33: banania | G33: banania33 | K33: -75
A34: Notes Authorized 2 | B34: =ROW() -> 34 | C34: =Summary!D4 -> 00:00:00 | D34: =Summary!L6 -> 1905-07-17 | E34: ads | F34: banania | G34: banania34 | K34: -76
A35: Notes Authorized 2 | B35: =ROW() -> 35 | C35: =Summary!D4 -> 00:00:00 | D35: =Summary!L6 -> 1905-07-17 | E35: ads | F35: banania | G35: banania35 | K35: -77
A36: Notes Authorized 2 | B36: =ROW() -> 36 | C36: =Summary!D4 -> 00:00:00 | D36: =Summary!L6 -> 1905-07-17 | E36: ads | F36: banania | G36: banania36 | K36: -78
A37: Notes Authorized 2 | B37: =ROW() -> 37 | C37: =Summary!D4 -> 00:00:00 | D37: =Summary!L6 -> 1905-07-17 | E37: ads | F37: banania | G37: banania37 | K37: -79
A38: Notes Authorized 2 | B38: =ROW() -> 38 | C38: =Summary!D4 -> 00:00:00 | D38: =Summary!L6 -> 1905-07-17 | E38: ads | F38: banania | G38: banania38 | K38: -80
A39: Notes Authorized 2 | B39: =ROW() -> 39 | C39: =Summary!D4 -> 00:00:00 | D39: =Summary!L6 -> 1905-07-17 | E39: ads | F39: banania | G39: banania39 | K39: -81
A40: Notes Authorized 2 | B40: =ROW() -> 40 | C40: =Summary!D4 -> 00:00:00 | D40: =Summary!L6 -> 1905-07-17 | E40: ads | F40: banania | G40: banania40 | K40: -82
A41: Notes Authorized 2 | B41: =ROW() -> 41 | C41: =Summary!D4 -> 00:00:00 | D41: =Summary!L6 -> 1905-07-17 | E41: ads | F41: banania | G41: banania41 | K41: -83
A42: Notes Authorized 2 | B42: =ROW() -> 42 | C42: =Summary!D4 -> 00:00:00 | D42: =Summary!L6 -> 1905-07-17 | E42: ads | F42: banania | G42: banania42 | K42: -84
A43: Notes Authorized 2 | B43: =ROW() -> 43 | C43: =Summary!D4 -> 00:00:00 | D43: =Summary!L6 -> 1905-07-17 | E43: ads | F43: banania | G43: banania43 | K43: -85
A44: Notes Authorized 2 | B44: =ROW() -> 44 | C44: =Summary!D4 -> 00:00:00 | D44: =Summary!L6 -> 1905-07-17 | E44: ads | F44: banania | G44: banania44 | K44: -86
A45: Notes Authorized 2 | B45: =ROW() -> 45 | C45: =Summary!D4 -> 00:00:00 | D45: =Summary!L6 -> 1905-07-17 | E45: ads | F45: banania | G45: banania45 | K45: -87
A46: =MID(CELL("filename",A46),FIND("]",CELL("filename",A46))+1,256) -> Notes Authorized 2 | B46: =ROW() -> 46 | C46: =Summary!D4 -> 00:00:00 | D46: =Summary!L6 -> 1905-07-17 | E46: ads | F46: banania | G46: banania46 | K46: -88
A47: =MID(CELL("filename",A47),FIND("]",CELL("filename",A47))+1,256) -> Notes Authorized 2 | B47: =ROW() -> 47 | C47: =Summary!D4 -> 00:00:00 | D47: =Summary!L6 -> 1905-07-17 | E47: ads | F47: bananiat | G47: bananiat47 | K47: Bond Anticipation Notes Authorized but not Issued | O47: =SUM(N4:N46)+SUM('Notes Authorized'!N4:N48) -> 0
A48: =MID(CELL("filename",A48),FIND("]",CELL("filename",A48))+1,256) -> Notes Authorized 2 | B48: =ROW() -> 48 | C48: =Summary!D4 -> 00:00:00 | D48: =Summary!L6 -> 1905-07-17 | E48: ads | F48: banania | G48: banania48
A49: =MID(CELL("filename",A49),FIND("]",CELL("filename",A49))+1,256) -> Notes Authorized 2 | B49: =ROW() -> 49 | C49: =Summary!D4 -> 00:00:00 | D49: =Summary!L6 -> 1905-07-17 | E49: ads | F49: bnaiant | G49: bnaiant49 | I49: 5 | J49: Total Bond Anticipation Notes Issued and Authorized but not Issued | O49: =+O47+'Notes Issued'!O63 -> 0

Sheet Misc. Bonds, Notes, Loans
A1: =MID(CELL("filename",A1),FIND("]",CELL("filename",A1))+1,256) -> Misc. Bonds, Notes, Loans | B1: =ROW() -> 1 | C1: =Summary!D4 -> 00:00:00 | D1: =Summary!L6 -> 1905-07-17 | E1: ads | F1: bnai | G1: =F1&ROW() -> bnai1 | I1: OTHER BONDS, NOTES AND LOANS - Page 4
A2: Misc. Bonds, Notes, Loans | B2: =ROW() -> 2 | C2: =Summary!D4 -> 00:00:00 | D2: =Summary!L6 -> 1905-07-17 | E2: ads | F2: obn | G2: =F2&ROW() -> obn2 | I2: 6 | J2: MISCELLANEOUS BONDS, NOTES AND LOANS
A3: Misc. Bonds, Notes, Loans | B3: =ROW() -> 3 | C3: =Summary!D4 -> 00:00:00 | D3: =Summary!L6 -> 1905-07-17 | E3: ads | F3: obn | G3: obn3 | J3: (not including Tax Anticipation Notes, Emergency Notes, Special Emergency Notes and Utility Revenue Notes)
A4: Misc. Bonds, Notes, Loans | B4: =ROW() -> 4 | C4: =Summary!D4 -> 00:00:00 | D4: =Summary!L6 -> 1905-07-17 | E4: ads | F4: obni | G4: obni4 | J4: (a) Issued
A5: Misc. Bonds, Notes, Loans | B5: =ROW() -> 5 | C5: =Summary!D4 -> 00:00:00 | D5: =Summary!L6 -> 1905-07-17 | E5: ads | F5: obni | G5: obni5 | K5: (1) | L5: Capital Notes (N.J.S.A. 40A:2-8)
A6: Misc. Bonds, Notes, Loans | B6: =ROW() -> 6 | C6: =Summary!D4 -> 00:00:00 | D6: =Summary!L6 -> 1905-07-17 | E6: ads | F6: obni | G6: obni6 | K6: (2) | L6: Bonds issued by another Public Body Guaranteed by Municipality or County
A7: Misc. Bonds, Notes, Loans | B7: =ROW() -> 7 | C7: =Summary!D4 -> 00:00:00 | D7: =Summary!L6 -> 1905-07-17 | E7: ads | F7: obni | G7: obni7 | K7: (3) | L7: Green Trust Loans
A8: Misc. Bonds, Notes, Loans | B8: =ROW() -> 8 | C8: =Summary!D4 -> 00:00:00 | D8: =Summary!L6 -> 1905-07-17 | E8: ads | F8: obni | G8: obni8 | K8: (4) | L8: Infrastructure Trust
A9: Misc. Bonds, Notes, Loans | B9: =ROW() -> 9 | C9: =Summary!D4 -> 00:00:00 | D9: =Summary!L6 -> 1905-07-17 | E9: ads | F9: obni | G9: obni9 | K9: (5)
A10: Misc. Bonds, Notes, Loans | B10: =ROW() -> 10 | C10: =Summary!D4 -> 00:00:00 | D10: =Summary!L6 -> 1905-07-17 | E10: ads | F10: obni | G10: =F10&ROW() -> obni10 | K10: (6)
A11: Misc. Bonds, Notes, Loans | B11: =ROW() -> 11 | C11: =Summary!D4 -> 00:00:00 | D11: =Summary!L6 -> 1905-07-17 | E11: ads | F11: obni | G11: obni11 | K11: (7)
A12: Misc. Bonds, Notes, Loans | B12: =ROW() -> 12 | C12: =Summary!D4 -> 00:00:00 | D12: =Summary!L6 -> 1905-07-17 | E12: ads | F12: obnit | G12: obnit12 | K12: Miscellaneous Bonds, Notes and Loans Issued | O12: =SUM(N5:N11) -> 0
A13: Misc. Bonds, Notes, Loans | B13: =ROW() -> 13 | C13: =Summary!D4 -> 00:00:00 | D13: =Summary!L6 -> 1905-07-17 | E13: ads | F13: obni | G13: obni13
A14: Misc. Bonds, Notes, Loans | B14: =ROW() -> 14 | C14: =Summary!D4 -> 00:00:00 | D14: =Summary!L6 -> 1905-07-17 | E14: ads | F14: obna | G14: obna14 | J14: (b) Authorized but not issued
A15: Misc. Bonds, Notes, Loans | B15: =ROW() -> 15 | C15: =Summary!D4 -> 00:00:00 | D15: =Summary!L6 -> 1905-07-17 | E15: ads | F15: obna | G15: obna15 | K15: (1) | L15: Capital Notes (N.J.S.A. 40A:2-8)
A16: Misc. Bonds, Notes, Loans | B16: =ROW() -> 16 | C16: =Summary!D4 -> 00:00:00 | D16: =Summary!L6 -> 1905-07-17 | E16: ads | F16: obna | G16: obna16 | K16: (2) | L16: Bonds issued by another Public Body Guaranteed by Municipality or County
A17: Misc. Bonds, Notes, Loans | B17: =ROW() -> 17 | C17: =Summary!D4 -> 00:00:00 | D17: =Summary!L6 -> 1905-07-17 | E17: ads | F17: obna | G17: obna17 | K17: (3)
A18: Misc. Bonds, Notes, Loans | B18: =ROW() -> 18 | C18: =Summary!D4 -> 00:00:00 | D18: =Summary!L6 -> 1905-07-17 | E18: ads | F18: obna | G18: obna18 | K18: (4)
A19: Misc. Bonds, Notes, Loans | B19: =ROW() -> 19 | C19: =Summary!D4 -> 00:00:00 | D19: =Summary!L6 -> 1905-07-17 | E19: ads | F19: obna | G19: obna19 | K19: (5)
A20: Misc. Bonds, Notes, Loans | B20: =ROW() -> 20 | C20: =Summary!D4 -> 00:00:00 | D20: =Summary!L6 -> 1905-07-17 | E20: ads | F20: obnat | G20: obnat20 | K20: Miscellaneous Bonds and Notes Authorized but not Issued | O20: =SUM(N15:N19) -> 0
A21: Misc. Bonds, Notes, Loans | B21: =ROW() -> 21 | C21: =Summary!D4 -> 00:00:00 | D21: =Summary!L6 -> 1905-07-17 | E21: ads | F21: obnatt | G21: obnatt21 | I21: Total Miscellaneous Bonds, Notes and Loans Issued and Authorized but not Issued | O21: =SUM(O12,O20) -> 0
A22: Misc. Bonds, Notes, Loans | B22: =ROW() -> 22 | C22: =Summary!D4 -> 00:00:00 | D22: =Summary!L6 -> 1905-07-17 | E22: ads | F22: obnattt | G22: =F22&ROW() -> obnattt22 | I22: Total of all Miscellaneous Bonds, Notes and Loans Issued and Authorized but not Issued | O22: =+O21+'Notes Authorized 2'!O49+'Bonds Authorized'!O29 -> 0

Sheet Deductions
A1: =MID(CELL("filename",A1),FIND("]",CELL("filename",A1))+1,256) -> Deductions | B1: =ROW() -> 1 | C1: =Summary!D4 -> 00:00:00 | D1: =Summary!L6 -> 1905-07-17 | E1: ads | F1: dbn | G1: =F1&ROW() -> dbn1 | I1: DEDUCTIONS APPLICABLE TO OTHER BONDS AND NOTES
A2: Deductions | B2: =ROW() -> 2 | C2: =Summary!D4 -> 00:00:00 | D2: =Summary!L6 -> 1905-07-17 | E2: ads | F2: dbn | G2: =F2&ROW() -> dbn2 | I2: 1. | J2: Amounts held or to be held for the sole purpose of paying general bonds and notes included
A3: Deductions | B3: =ROW() -> 3 | C3: =Summary!D4 -> 00:00:00 | D3: =Summary!L6 -> 1905-07-17 | E3: ads | F3: dbn | G3: dbn3 | J3: (a) | K3: Sinking funds on hand for term bonds
A4: Deductions | B4: =ROW() -> 4 | C4: =Summary!D4 -> 00:00:00 | D4: =Summary!L6 -> 1905-07-17 | E4: ads | F4: dbn | G4: dbn4 | K4: (1) | N4: 0
A5: Deductions | B5: =ROW() -> 5 | C5: =Summary!D4 -> 00:00:00 | D5: =Summary!L6 -> 1905-07-17 | E5: ads | F5: dbn | G5: dbn5 | O5: =N4 -> 0
A6: Deductions | B6: =ROW() -> 6 | C6: =Summary!D4 -> 00:00:00 | D6: =Summary!L6 -> 1905-07-17 | E6: ads | F6: dbn | G6: dbn6 | J6: (b) | K6: Funds on hand (including proceeds of bonds and notes held to pay other bonds and notes), in those cases where such funds cannot be diverted to purposes other than the payment of bonds and notes
A7: Deductions | B7: =ROW() -> 7 | C7: =Summary!D4 -> 00:00:00 | D7: =Summary!L6 -> 1905-07-17 | E7: ads | F7: dbn | G7: dbn7 | K7: (1)
A8: Deductions | B8: =ROW() -> 8 | C8: =Summary!D4 -> 00:00:00 | D8: =Summary!L6 -> 1905-07-17 | E8: ads | F8: dbn | G8: dbn8 | K8: (2) | N8: 0
A9: Deductions | B9: =ROW() -> 9 | C9: =Summary!D4 -> 00:00:00 | D9: =Summary!L6 -> 1905-07-17 | E9: ads | F9: dbn | G9: dbn9 | K9: (3) | N9: 0
A10: Deductions | B10: =ROW() -> 10 | C10: =Summary!D4 -> 00:00:00 | D10: =Summary!L6 -> 1905-07-17 | E10: ads | F10: dbn | G10: dbn10 | O10: =SUM(N7:N9) -> 0
A11: Deductions | B11: =ROW() -> 11 | C11: =Summary!D4 -> 00:00:00 | D11: =Summary!L6 -> 1905-07-17 | E11: ads | F11: dbn | G11: dbn11 | J11: (c) | K11: Estimated proceeds of bonds and notes authorized but not issued where such proceeds will be used for the sole purpose of paying bonds and notes
A12: Deductions | B12: =ROW() -> 12 | C12: =Summary!D4 -> 00:00:00 | D12: =Summary!L6 -> 1905-07-17 | E12: ads | F12: dbn | G12: dbn12 | K12: (1) | N12: 0
A13: Deductions | B13: =ROW() -> 13 | C13: =Summary!D4 -> 00:00:00 | D13: =Summary!L6 -> 1905-07-17 | E13: ads | F13: dbn | G13: dbn13 | K13: (2) | N13: 0
A14: Deductions | B14: =ROW() -> 14 | C14: =Summary!D4 -> 00:00:00 | D14: =Summary!L6 -> 1905-07-17 | E14: ads | F14: dbn | G14: dbn14 | K14: (3) | N14: 0
A15: Deductions | B15: =ROW() -> 15 | C15: =Summary!D4 -> 00:00:00 | D15: =Summary!L6 -> 1905-07-17 | E15: ads | F15: dbn | G15: dbn15 | O15: =SUM(N12:N14) -> 0
A16: Deductions | B16: =ROW() -> 16 | C16: =Summary!D4 -> 00:00:00 | D16: =Summary!L6 -> 1905-07-17 | E16: ads | F16: dbn | G16: dbn16 | J16: (d) | K16: Accounts receivable from other public authorities applicable only to the payment of any part of the gross debt not otherwise deductible
A17: Deductions | B17: =ROW() -> 17 | C17: =Summary!D4 -> 00:00:00 | D17: =Summary!L6 -> 1905-07-17 | E17: ads | F17: dbn | G17: dbn17 | K17: (1)
A18: Deductions | B18: =ROW() -> 18 | C18: =Summary!D4 -> 00:00:00 | D18: =Summary!L6 -> 1905-07-17 | E18: ads | F18: dbn | G18: =F18&ROW() -> dbn18 | K18: (2) | N18: 0
A19: Deductions | B19: =ROW() -> 19 | C19: =Summary!D4 -> 00:00:00 | D19: =Summary!L6 -> 1905-07-17 | E19: ads | F19: dbn | G19: dbn19 | K19: (3) | N19: 0
A20: Deductions | B20: =ROW() -> 20 | C20: =Summary!D4 -> 00:00:00 | D20: =Summary!L6 -> 1905-07-17 | E20: ads | F20: dbn | G20: dbn20 | O20: =SUM(N17:N19) -> 0
A21: Deductions | B21: =ROW() -> 21 | C21: =Summary!D4 -> 00:00:00 | D21: =Summary!L6 -> 1905-07-17 | E21: ads | F21: dbn | G21: dbn21
A22: Deductions | B22: =ROW() -> 22 | C22: =Summary!D4 -> 00:00:00 | D22: =Summary!L6 -> 1905-07-17 | E22: ads | F22: dbn | G22: dbn22 | I22: 2. | J22: Bonds authorized by another Public Body to be guaranteed by the municipality
A23: Deductions | B23: =ROW() -> 23 | C23: =Summary!D4 -> 00:00:00 | D23: =Summary!L6 -> 1905-07-17 | E23: ads | F23: dbn | G23: dbn23
A24: Deductions | B24: =ROW() -> 24 | C24: =Summary!D4 -> 00:00:00 | D24: =Summary!L6 -> 1905-07-17 | E24: ads | F24: dbn | G24: dbn24 | I24: 3. | J24: Bonds issued and bonds authorized by not issued to meet cash grants-in-aid for housing authority, redevelopment agency or municipality acting as its local public agency [N.J.S.A. 55:14B-4.1(d)] | O24: 0
A25: Deductions | B25: =ROW() -> 25 | C25: =Summary!D4 -> 00:00:00 | D25: =Summary!L6 -> 1905-07-17 | E25: ads | F25: dbn | G25: dbn25
A26: Deductions | B26: =ROW() -> 26 | C26: =Summary!D4 -> 00:00:00 | D26: =Summary!L6 -> 1905-07-17 | E26: ads | F26: dbn | G26: dbn26 | I26: 4. | J26: Bonds issued and bonds authorized but not issued - Capital projects for County Colleges (N.J.S.A. 18A:64A-22.1 to 18A:64A-22.8) | O26: 0
A27: Deductions | B27: =ROW() -> 27 | C27: =Summary!D4 -> 00:00:00 | D27: =Summary!L6 -> 1905-07-17 | E27: ads | F27: dbn | G27: dbn27
A28: Deductions | B28: =ROW() -> 28 | C28: =Summary!D4 -> 00:00:00 | D28: =Summary!L6 -> 1905-07-17 | E28: ads | F28: dbn | G28: dbn28 | I28: 5. | J28: Refunding Bonds (N.J.S.A 40A:2-52)
A29: Deductions | B29: =ROW() -> 29 | C29: =Summary!D4 -> 00:00:00 | D29: =Summary!L6 -> 1905-07-17 | E29: ads | F29: dbn | G29: dbn29 | K29: (1) | N29: 0
A30: Deductions | B30: =ROW() -> 30 | C30: =Summary!D4 -> 00:00:00 | D30: =Summary!L6 -> 1905-07-17 | E30: ads | F30: dbn | G30: dbn30 | K30: (2) | N30: 0
A31: Deductions | B31: =ROW() -> 31 | C31: =Summary!D4 -> 00:00:00 | D31: =Summary!L6 -> 1905-07-17 | E31: ads | F31: dbn | G31: dbn31 | O31: =SUM(N29:N30) -> 0
A32: Deductions | B32: =ROW() -> 32 | C32: =Summary!D4 -> 00:00:00 | D32: =Summary!L6 -> 1905-07-17 | E32: ads | F32: dbn | G32: dbn32
A33: Deductions | B33: =ROW() -> 33 | C33: =Summary!D4 -> 00:00:00 | D33: =Summary!L6 -> 1905-07-17 | E33: ads | F33: dbntt | G33: dbntt33 | I33: Total Deductions Applicable to Other Bonds and Notes | O33: =SUM(O31,O26,O24,O22,O20,O15,O10,O5) -> 0

Sheet Guarantees
A1: =MID(CELL("filename",A1),FIND("]",CELL("filename",A1))+1,256) -> Guarantees | B1: =ROW() -> 1 | C1: =Summary!D4 -> 0 | D1: =Summary!L6 -> 2025 | E1: ads | F1: gic | G1: =F1&ROW() -> gic1 | I1: Bonds authorized/issued by another Public Body to be guaranteed by the municipality
A2: Guarantees | B2: =ROW() -> 2 | C2: =Summary!D4 -> 0 | D2: =Summary!L6 -> 2025 | E2: ads | F2: gic | G2: =F2&ROW() -> gic2
A3: Guarantees | B3: =ROW() -> 3 | C3: =Summary!D4 -> 0 | D3: =Summary!L6 -> 2025 | E3: ads | F3: gic | G3: gic3 | K3: -1
A4: Guarantees | B4: =ROW() -> 4 | C4: =Summary!D4 -> 0 | D4: =Summary!L6 -> 2025 | E4: ads | F4: gic | G4: gic4 | K4: -2
A5: Guarantees | B5: =ROW() -> 5 | C5: =Summary!D4 -> 0 | D5: =Summary!L6 -> 2025 | E5: ads | F5: gic | G5: gic5 | K5: -3
A6: Guarantees | B6: =ROW() -> 6 | C6: =Summary!D4 -> 0 | D6: =Summary!L6 -> 2025 | E6: ads | F6: gic | G6: gic6 | K6: -4 | N6: 0
A7: Guarantees | B7: =ROW() -> 7 | C7: =Summary!D4 -> 0 | D7: =Summary!L6 -> 2025 | E7: ads | F7: gic | G7: gic7 | K7: -5 | N7: 0
A8: Guarantees | B8: =ROW() -> 8 | C8: =Summary!D4 -> 0 | D8: =Summary!L6 -> 2025 | E8: ads | F8: gic | G8: gic8 | K8: -6 | N8: 0
A9: Guarantees | B9: =ROW() -> 9 | C9: =Summary!D4 -> 0 | D9: =Summary!L6 -> 2025 | E9: ads | F9: gic | G9: gic9 | K9: -7 | N9: 0
A10: Guarantees | B10: =ROW() -> 10 | C10: =Summary!D4 -> 0 | D10: =Summary!L6 -> 2025 | E10: ads | F10: gic | G10: gic10 | K10: -8 | N10: 0
A11: Guarantees | B11: =ROW() -> 11 | C11: =Summary!D4 -> 0 | D11: =Summary!L6 -> 2025 | E11: ads | F11: gic | G11: gic11 | K11: -9 | N11: 0
A12: Guarantees | B12: =ROW() -> 12 | C12: =Summary!D4 -> 0 | D12: =Summary!L6 -> 2025 | E12: ads | F12: gic | G12: gic12 | K12: -10 | N12: 0
A13: Guarantees | B13: =ROW() -> 13 | C13: =Summary!D4 -> 0 | D13: =Summary!L6 -> 2025 | E13: ads | F13: gic | G13: gic13 | K13: -11 | N13: 0
A14: Guarantees | B14: =ROW() -> 14 | C14: =Summary!D4 -> 0 | D14: =Summary!L6 -> 2025 | E14: ads | F14: gic | G14: gic14 | K14: -12 | N14: 0
A15: Guarantees | B15: =ROW() -> 15 | C15: =Summary!D4 -> 0 | D15: =Summary!L6 -> 2025 | E15: ads | F15: gic | G15: gic15 | K15: -13 | N15: 0
A16: Guarantees | B16: =ROW() -> 16 | C16: =Summary!D4 -> 0 | D16: =Summary!L6 -> 2025 | E16: ads | F16: gic | G16: gic16 | K16: -14 | N16: 0
A17: Guarantees | B17: =ROW() -> 17 | C17: =Summary!D4 -> 0 | D17: =Summary!L6 -> 2025 | E17: ads | F17: gic | G17: gic17 | K17: -15 | N17: 0
A18: Guarantees | B18: =ROW() -> 18 | C18: =Summary!D4 -> 0 | D18: =Summary!L6 -> 2025 | E18: ads | F18: gic | G18: gic18 | K18: -16 | N18: 0
A19: Guarantees | B19: =ROW() -> 19 | C19: =Summary!D4 -> 0 | D19: =Summary!L6 -> 2025 | E19: ads | F19: gic | G19: gic19 | K19: -17 | N19: 0
A20: Guarantees | B20: =ROW() -> 20 | C20: =Summary!D4 -> 0 | D20: =Summary!L6 -> 2025 | E20: ads | F20: gic | G20: gic20 | K20: -18 | N20: 0
A21: Guarantees | B21: =ROW() -> 21 | C21: =Summary!D4 -> 0 | D21: =Summary!L6 -> 2025 | E21: ads | F21: gic | G21: gic21 | K21: -19 | N21: 0
A22: Guarantees | B22: =ROW() -> 22 | C22: =Summary!D4 -> 0 | D22: =Summary!L6 -> 2025 | E22: ads | F22: gic | G22: gic22 | K22: -20 | N22: 0
A23: Guarantees | B23: =ROW() -> 23 | C23: =Summary!D4 -> 0 | D23: =Summary!L6 -> 2025 | E23: ads | F23: gic | G23: gic23 | K23: -21 | N23: 0
A24: Guarantees | B24: =ROW() -> 24 | C24: =Summary!D4 -> 0 | D24: =Summary!L6 -> 2025 | E24: ads | F24: gic | G24: gic24 | K24: -22 | N24: 0
A25: Guarantees | B25: =ROW() -> 25 | C25: =Summary!D4 -> 0 | D25: =Summary!L6 -> 2025 | E25: ads | F25: gic | G25: gic25 | K25: -23 | N25: 0
A26: Guarantees | B26: =ROW() -> 26 | C26: =Summary!D4 -> 0 | D26: =Summary!L6 -> 2025 | E26: ads | F26: gic | G26: gic26 | K26: -24 | N26: 0
A27: Guarantees | B27: =ROW() -> 27 | C27: =Summary!D4 -> 0 | E27: ads | F27: gic | G27: gic27 | K27: -25 | N27: 0
A28: Guarantees | B28: =ROW() -> 28 | C28: =Summary!D4 -> 0 | D28: =Summary!L6 -> 2025 | E28: ads | F28: gic | G28: gic28 | K28: -26 | N28: 0
A29: Guarantees | B29: =ROW() -> 29 | C29: =Summary!D4 -> 0 | D29: =Summary!L6 -> 2025 | E29: ads | F29: gic | G29: gic29 | K29: -27 | N29: 0
A30: Guarantees | B30: =ROW() -> 30 | C30: =Summary!D4 -> 0 | D30: =Summary!L6 -> 2025 | E30: ads | F30: gic | G30: gic30 | K30: -28 | N30: 0
A31: Guarantees | B31: =ROW() -> 31 | C31: =Summary!D4 -> 0 | D31: =Summary!L6 -> 2025 | E31: ads | F31: gic | G31: gic31 | K31: -29 | N31: 0
A32: Guarantees | B32: =ROW() -> 32 | C32: =Summary!D4 -> 0 | D32: =Summary!L6 -> 2025 | E32: ads | F32: gic | G32: gic32 | K32: -30 | N32: 0
A33: Guarantees | B33: =ROW() -> 33 | C33: =Summary!D4 -> 0 | D33: =Summary!L6 -> 1905-07-17 | E33: ads | F33: gic | G33: =F32&ROW() -> gic33 | K33: -31 | N33: 0
A34: Guarantees | B34: =ROW() -> 34 | C34: =Summary!D4 -> 0 | D34: =Summary!L6 -> 1905-07-17 | E34: ads | F34: gic | G34: =F32&ROW() -> gic34 | K34: -32 | N34: 0
A35: Guarantees | B35: =ROW() -> 35 | C35: =Summary!D4 -> 0 | D35: =Summary!L6 -> 1905-07-17 | E35: ads | F35: gic | G35: =F32&ROW() -> gic35 | K35: -33 | N35: 0
A36: Guarantees | B36: =ROW() -> 36 | C36: =Summary!D4 -> 0 | D36: =Summary!L6 -> 1905-07-17 | E36: ads | F36: gic | G36: =F32&ROW() -> gic36 | K36: -34 | N36: 0
A37: Guarantees | B37: =ROW() -> 37 | C37: =Summary!D4 -> 0 | D37: =Summary!L6 -> 1905-07-17 | E37: ads | F37: gic | G37: =F32&ROW() -> gic37 | K37: -35 | N37: 0
A38: Guarantees | B38: =ROW() -> 38 | C38: =Summary!D4 -> 0 | D38: =Summary!L6 -> 1905-07-17 | E38: ads | F38: gic | G38: =F32&ROW() -> gic38 | K38: -36 | N38: 0
A39: Guarantees | B39: =ROW() -> 39 | C39: =Summary!D4 -> 0 | D39: =Summary!L6 -> 1905-07-17 | E39: ads | F39: gic | G39: =F32&ROW() -> gic39 | K39: -37 | N39: 0
A40: Guarantees | B40: =ROW() -> 40 | C40: =Summary!D4 -> 0 | D40: =Summary!L6 -> 1905-07-17 | E40: ads | F40: gic | G40: =F32&ROW() -> gic40 | K40: -38 | N40: 0
A41: Guarantees | B41: =ROW() -> 41 | C41: =Summary!D4 -> 0 | D41: =Summary!L6 -> 1905-07-17 | E41: ads | F41: gic | G41: =F32&ROW() -> gic41 | K41: -39 | N41: 0
A42: Guarantees | B42: =ROW() -> 42 | C42: =Summary!D4 -> 0 | D42: =Summary!L6 -> 1905-07-17 | E42: ads | F42: gic | G42: =F32&ROW() -> gic42 | K42: -40 | N42: 0
A43: Guarantees | B43: =ROW() -> 43 | C43: =Summary!D4 -> 0 | D43: =Summary!L6 -> 1905-07-17 | E43: ads | F43: gic | G43: =F32&ROW() -> gic43 | K43: -41 | N43: 0
A44: Guarantees | B44: =ROW() -> 44 | C44: =Summary!D4 -> 0 | D44: =Summary!L6 -> 1905-07-17 | E44: ads | F44: gic | G44: =F32&ROW() -> gic44 | K44: -42 | N44: 0
A45: Guarantees | B45: =ROW() -> 45 | C45: =Summary!D4 -> 0 | D45: =Summary!L6 -> 1905-07-17 | E45: ads | F45: gic | G45: =F32&ROW() -> gic45 | K45: -43 | N45: 0
A46: Guarantees | B46: =ROW() -> 46 | C46: =Summary!D4 -> 0 | D46: =Summary!L6 -> 1905-07-17 | E46: ads | F46: gic | G46: =F32&ROW() -> gic46 | K46: -44 | N46: 0
A47: Guarantees | B47: =ROW() -> 47 | C47: =Summary!D4 -> 0 | D47: =Summary!L6 -> 1905-07-17 | E47: ads | F47: gic | G47: =F32&ROW() -> gic47 | K47: -45 | N47: 0
A48: Guarantees | B48: =ROW() -> 48 | C48: =Summary!D4 -> 0 | D48: =Summary!L6 -> 1905-07-17 | E48: ads | F48: gic | G48: =F32&ROW() -> gic48 | K48: -46 | N48: 0
A49: Guarantees | B49: =ROW() -> 49 | C49: =Summary!D4 -> 0 | D49: =Summary!L6 -> 1905-07-17 | E49: ads | F49: gic | G49: =F32&ROW() -> gic49 | K49: -47 | N49: 0
A50: Guarantees | B50: =ROW() -> 50 | C50: =Summary!D4 -> 0 | D50: =Summary!L6 -> 1905-07-17 | E50: ads | F50: gic | G50: =F32&ROW() -> gic50 | K50: -48 | N50: 0
A51: Guarantees | B51: =ROW() -> 51 | C51: =Summary!D4 -> 0 | D51: =Summary!L6 -> 1905-07-17 | E51: ads | F51: gic | G51: =F32&ROW() -> gic51 | K51: -49 | N51: 0
A52: Guarantees | B52: =ROW() -> 52 | C52: =Summary!D4 -> 0 | D52: =Summary!L6 -> 1905-07-17 | E52: ads | F52: gic | G52: =F32&ROW() -> gic52 | K52: -50 | N52: 0
A53: Guarantees | B53: =ROW() -> 53 | C53: =Summary!D4 -> 0 | D53: =Summary!L6 -> 2025 | E53: ads | F53: gict | G53: =F32&ROW() -> gic53 | L53: Total Bonds and Notes authorized/issued by another Public Body to be guaranteed by the municipality | O53: =SUM(N3:N52) -> 0

Sheet Special Debt
A1: =MID(CELL("filename",A1),FIND("]",CELL("filename",A1))+1,256) -> Special Debt | B1: =ROW() -> 1900-01-01 | C1: =Summary!D4 -> 00:00:00 | D1: =Summary!L6 -> 1905-07-17 | E1: ads | F1: spd | G1: =F1&ROW() -> spd1 | J1: SPECIAL DEBT STATEMENT BORROWING POWER
A2: Special Debt | B2: =ROW() -> 1900-01-02 | C2: =Summary!D4 -> 00:00:00 | D2: =Summary!L6 -> 1905-07-17 | E2: ads | F2: spd | G2: =F2&ROW() -> spd2 | J2: AVAILABLE UNDER N.J.S.A. 40A:2-7(f)
A4: Special Debt | B4: =ROW() -> 1900-01-04 | C4: =Summary!D4 -> 00:00:00 | D4: =Summary!L6 -> 1905-07-17 | E4: ads | F4: spd | G4: spd4 | I4: 1. | J4: ="Balance of debt incurring capacity "&_xlfn.CONCAT(Summary!I6," ",Summary!J6,", ",Summary!L6-1&" (NJSA 40:1-16(d))") -> Balance of debt incurring capacity December 31, 2024 (NJSA 40:1-16(d)) | Q4: 0
A5: Special Debt | B5: =ROW() -> 1900-01-05 | C5: =Summary!D4 -> 00:00:00 | D5: =Summary!L6 -> 1905-07-17 | E5: ads | F5: spd | G5: spd5
A6: Special Debt | B6: =ROW() -> 1900-01-06 | C6: =Summary!D4 -> 00:00:00 | D6: =Summary!L6 -> 1905-07-17 | E6: ads | F6: spd | G6: spd6 | I6: 2. | J6: ="Obligations heretofore authorized during "&Summary!L6&" in" -> Obligations heretofore authorized during 2025 in
A7: Special Debt | B7: =ROW() -> 1900-01-07 | C7: =Summary!D4 -> 00:00:00 | D7: =Summary!L6 -> 1905-07-17 | E7: ads | F7: spd | G7: spd7 | J7: excess of debt limitation and pursuant to:
A8: Special Debt | B8: =ROW() -> 1900-01-08 | C8: =Summary!D4 -> 00:00:00 | D8: =Summary!L6 -> 1905-07-17 | E8: ads | F8: spd | G8: spd8 | K8: (a) | L8: NJSA 40A:2-7, paragraph (d) | P8: 0
A9: Special Debt | B9: =ROW() -> 1900-01-09 | C9: =Summary!D4 -> 00:00:00 | D9: =Summary!L6 -> 1905-07-17 | E9: ads | F9: spd | G9: spd9 | K9: (b) | L9: NJSA 40A:2-7, paragraph (f) | P9: 0
A10: Special Debt | B10: =ROW() -> 1900-01-10 | C10: =Summary!D4 -> 00:00:00 | D10: =Summary!L6 -> 1905-07-17 | E10: ads | F10: spd | G10: spd10 | K10: (c) | L10: NJSA 40A:2-7, paragraph (g) | P10: 0
A11: Special Debt | B11: =ROW() -> 1900-01-11 | C11: =Summary!D4 -> 00:00:00 | D11: =Summary!L6 -> 1905-07-17 | E11: ads | F11: spd | G11: spd11 | L11: Total | Q11: =SUM(P8:P10) -> 0
A12: Special Debt | B12: =ROW() -> 1900-01-12 | C12: =Summary!D4 -> 00:00:00 | D12: =Summary!L6 -> 1905-07-17 | E12: ads | F12: spd | G12: spd12 | I12: 3. | J12: ="Less "&Summary!L6&" authorizations repealed during "&Summary!L6&"" -> Less 2025 authorizations repealed during 2025 | Q12: 0
A13: Special Debt | B13: =ROW() -> 1900-01-13 | C13: =Summary!D4 -> 00:00:00 | D13: =Summary!L6 -> 1905-07-17 | E13: ads | F13: spd | G13: spd13
A14: Special Debt | B14: =ROW() -> 1900-01-14 | C14: =Summary!D4 -> 00:00:00 | D14: =Summary!L6 -> 1905-07-17 | E14: ads | F14: spd | G14: spd14 | I14: 4. | J14: ="Net authorizations during "&Summary!L6&"" -> Net authorizations during 2025 | Q14: 0
A15: Special Debt | B15: =ROW() -> 1900-01-15 | C15: =Summary!D4 -> 00:00:00 | D15: =Summary!L6 -> 1905-07-17 | E15: ads | F15: spd | G15: spd15
A16: Special Debt | B16: =ROW() -> 1900-01-16 | C16: =Summary!D4 -> 00:00:00 | D16: =Summary!L6 -> 1905-07-17 | E16: ads | F16: spd | G16: spd16 | I16: 5. | J16: ="Balance of debt incurring capacity "&_xlfn.CONCAT(Summary!I6," ",Summary!J6,", ",Summary!L6&" (NJSA 40:1-16(d))") -> Balance of debt incurring capacity December 31, 2025 (NJSA 40:1-16(d)) | Q16: =SUM(Q4:Q14) -> 0

Sheet Capital Leases - Not in Gross
A1: =MID(CELL("filename",A1),FIND("]",CELL("filename",A1))+1,256) -> Capital Leases - Not in Gross | B1: =ROW() -> 1 | C1: =Summary!D4 -> 0 | D1: =Summary!L6 -> 2025 | E1: ads | F1: clo | G1: =F1&ROW() -> clo1 | I1: Obligations NOT Included in Gross Debt
A2: Capital Leases - Not in Gross | B2: =ROW() -> 2 | C2: =Summary!D4 -> 0 | D2: =Summary!L6 -> 2025 | E2: ads | F2: clo | G2: =F2&ROW() -> clo2 | I2: 1 | J2: Capital Leases and Other Comittments
A3: Capital Leases - Not in Gross | B3: =ROW() -> 3 | C3: =Summary!D4 -> 0 | D3: =Summary!L6 -> 2025 | E3: ads | F3: clo | G3: clo3 | K3: -1 | N3: 0
A4: Capital Leases - Not in Gross | B4: =ROW() -> 4 | C4: =Summary!D4 -> 0 | D4: =Summary!L6 -> 2025 | E4: ads | F4: clo | G4: clo4 | K4: -2 | N4: 0
A5: Capital Leases - Not in Gross | B5: =ROW() -> 5 | C5: =Summary!D4 -> 0 | D5: =Summary!L6 -> 2025 | E5: ads | F5: clo | G5: clo5 | K5: -3 | N5: 0
A6: Capital Leases - Not in Gross | B6: =ROW() -> 6 | C6: =Summary!D4 -> 0 | D6: =Summary!L6 -> 2025 | E6: ads | F6: clo | G6: clo6 | K6: -4 | N6: 0
A7: Capital Leases - Not in Gross | B7: =ROW() -> 7 | C7: =Summary!D4 -> 0 | D7: =Summary!L6 -> 2025 | E7: ads | F7: clo | G7: clo7 | K7: -5 | N7: 0
A8: Capital Leases - Not in Gross | B8: =ROW() -> 8 | C8: =Summary!D4 -> 0 | D8: =Summary!L6 -> 2025 | E8: ads | F8: clo | G8: clo8 | K8: -6 | N8: 0
A9: Capital Leases - Not in Gross | B9: =ROW() -> 9 | C9: =Summary!D4 -> 0 | D9: =Summary!L6 -> 2025 | E9: ads | F9: clo | G9: clo9 | K9: -7 | N9: 0
A10: Capital Leases - Not in Gross | B10: =ROW() -> 10 | C10: =Summary!D4 -> 0 | D10: =Summary!L6 -> 2025 | E10: ads | F10: clo | G10: clo10 | K10: -8 | N10: 0
A11: Capital Leases - Not in Gross | B11: =ROW() -> 11 | C11: =Summary!D4 -> 0 | D11: =Summary!L6 -> 2025 | E11: ads | F11: clo | G11: clo11 | K11: -9 | N11: 0
A12: Capital Leases - Not in Gross | B12: =ROW() -> 12 | C12: =Summary!D4 -> 0 | D12: =Summary!L6 -> 2025 | E12: ads | F12: clo | G12: clo12 | K12: -10 | N12: 0
A13: Capital Leases - Not in Gross | B13: =ROW() -> 13 | C13: =Summary!D4 -> 0 | D13: =Summary!L6 -> 2025 | E13: ads | F13: clo | G13: clo13 | K13: -11 | N13: 0
A14: Capital Leases - Not in Gross | B14: =ROW() -> 14 | C14: =Summary!D4 -> 0 | D14: =Summary!L6 -> 2025 | E14: ads | F14: clo | G14: clo14 | K14: -12 | N14: 0
A15: Capital Leases - Not in Gross | B15: =ROW() -> 15 | C15: =Summary!D4 -> 0 | D15: =Summary!L6 -> 2025 | E15: ads | F15: clo | G15: clo15 | K15: -13 | N15: 0
A16: Capital Leases - Not in Gross | B16: =ROW() -> 16 | C16: =Summary!D4 -> 0 | D16: =Summary!L6 -> 2025 | E16: ads | F16: clo | G16: clo16 | K16: -14 | N16: 0
A17: Capital Leases - Not in Gross | B17: =ROW() -> 17 | C17: =Summary!D4 -> 0 | D17: =Summary!L6 -> 2025 | E17: ads | F17: clo | G17: clo17 | K17: -15 | N17: 0
A18: Capital Leases - Not in Gross | B18: =ROW() -> 18 | C18: =Summary!D4 -> 0 | D18: =Summary!L6 -> 2025 | E18: ads | F18: clo | G18: clo18 | K18: -16 | N18: 0
A19: Capital Leases - Not in Gross | B19: =ROW() -> 19 | C19: =Summary!D4 -> 0 | D19: =Summary!L6 -> 2025 | E19: ads | F19: clo | G19: clo19 | K19: -17 | N19: 0
A20: Capital Leases - Not in Gross | B20: =ROW() -> 20 | C20: =Summary!D4 -> 0 | D20: =Summary!L6 -> 2025 | E20: ads | F20: clo | G20: clo20 | K20: -18 | N20: 0
A21: Capital Leases - Not in Gross | B21: =ROW() -> 21 | C21: =Summary!D4 -> 0 | D21: =Summary!L6 -> 2025 | E21: ads | F21: clo | G21: clo21 | K21: -19 | N21: 0
A22: Capital Leases - Not in Gross | B22: =ROW() -> 22 | C22: =Summary!D4 -> 0 | D22: =Summary!L6 -> 2025 | E22: ads | F22: clo | G22: clo22 | K22: -20 | N22: 0
A23: Capital Leases - Not in Gross | B23: =ROW() -> 23 | C23: =Summary!D4 -> 0 | D23: =Summary!L6 -> 2025 | E23: ads | F23: clo | G23: clo23 | K23: -21 | N23: 0
A24: Capital Leases - Not in Gross | B24: =ROW() -> 24 | C24: =Summary!D4 -> 0 | D24: =Summary!L6 -> 2025 | E24: ads | F24: clo | G24: clo24 | K24: -22 | N24: 0
A25: Capital Leases - Not in Gross | B25: =ROW() -> 25 | C25: =Summary!D4 -> 0 | D25: =Summary!L6 -> 2025 | E25: ads | F25: clo | G25: clo25 | K25: -23 | N25: 0
A26: Capital Leases - Not in Gross | B26: =ROW() -> 26 | C26: =Summary!D4 -> 0 | D26: =Summary!L6 -> 2025 | E26: ads | F26: clo | G26: clo26 | K26: -24 | N26: 0
A27: Capital Leases - Not in Gross | B27: =ROW() -> 27 | C27: =Summary!D4 -> 0 | E27: ads | F27: clo | G27: clo27 | K27: -25 | N27: 0
A28: Capital Leases - Not in Gross | B28: =ROW() -> 28 | C28: =Summary!D4 -> 0 | D28: =Summary!L6 -> 2025 | E28: ads | F28: clo | G28: clo28 | K28: -26 | N28: 0
A29: Capital Leases - Not in Gross | B29: =ROW() -> 29 | C29: =Summary!D4 -> 0 | D29: =Summary!L6 -> 2025 | E29: ads | F29: clo | G29: clo29 | K29: -27 | N29: 0
A30: Capital Leases - Not in Gross | B30: =ROW() -> 30 | C30: =Summary!D4 -> 0 | D30: =Summary!L6 -> 2025 | E30: ads | F30: clo | G30: clo30 | K30: -28 | N30: 0
A31: Capital Leases - Not in Gross | B31: =ROW() -> 31 | C31: =Summary!D4 -> 0 | D31: =Summary!L6 -> 2025 | E31: ads | F31: clo | G31: clo31 | K31: -29 | N31: 0
A32: Capital Leases - Not in Gross | B32: =ROW() -> 32 | C32: =Summary!D4 -> 0 | D32: =Summary!L6 -> 2025 | E32: ads | F32: clo | G32: clo32 | K32: -30 | N32: 0
A33: Capital Leases - Not in Gross | B33: =ROW() -> 33 | C33: =Summary!D4 -> 0 | D33: =Summary!L6 -> 1905-07-17 | E33: ads | F33: clo | G33: =F32&ROW() -> clo33 | K33: -31 | N33: 0
A34: Capital Leases - Not in Gross | B34: =ROW() -> 34 | C34: =Summary!D4 -> 0 | D34: =Summary!L6 -> 1905-07-17 | E34: ads | F34: clo | G34: =F32&ROW() -> clo34 | K34: -32 | N34: 0
A35: Capital Leases - Not in Gross | B35: =ROW() -> 35 | C35: =Summary!D4 -> 0 | D35: =Summary!L6 -> 1905-07-17 | E35: ads | F35: clo | G35: =F32&ROW() -> clo35 | K35: -33 | N35: 0
A36: Capital Leases - Not in Gross | B36: =ROW() -> 36 | C36: =Summary!D4 -> 0 | D36: =Summary!L6 -> 1905-07-17 | E36: ads | F36: clo | G36: =F32&ROW() -> clo36 | K36: -34 | N36: 0
A37: Capital Leases - Not in Gross | B37: =ROW() -> 37 | C37: =Summary!D4 -> 0 | D37: =Summary!L6 -> 1905-07-17 | E37: ads | F37: clo | G37: =F32&ROW() -> clo37 | K37: -35 | N37: 0
A38: Capital Leases - Not in Gross | B38: =ROW() -> 38 | C38: =Summary!D4 -> 0 | D38: =Summary!L6 -> 1905-07-17 | E38: ads | F38: clo | G38: =F32&ROW() -> clo38 | K38: -36 | N38: 0
A39: Capital Leases - Not in Gross | B39: =ROW() -> 39 | C39: =Summary!D4 -> 0 | D39: =Summary!L6 -> 1905-07-17 | E39: ads | F39: clo | G39: =F32&ROW() -> clo39 | K39: -37 | N39: 0
A40: Capital Leases - Not in Gross | B40: =ROW() -> 40 | C40: =Summary!D4 -> 0 | D40: =Summary!L6 -> 1905-07-17 | E40: ads | F40: clo | G40: =F32&ROW() -> clo40 | K40: -38 | N40: 0
A41: Capital Leases - Not in Gross | B41: =ROW() -> 41 | C41: =Summary!D4 -> 0 | D41: =Summary!L6 -> 1905-07-17 | E41: ads | F41: clo | G41: =F32&ROW() -> clo41 | K41: -39 | N41: 0
A42: Capital Leases - Not in Gross | B42: =ROW() -> 42 | C42: =Summary!D4 -> 0 | D42: =Summary!L6 -> 1905-07-17 | E42: ads | F42: clo | G42: =F32&ROW() -> clo42 | K42: -40 | N42: 0
A43: Capital Leases - Not in Gross | B43: =ROW() -> 43 | C43: =Summary!D4 -> 0 | D43: =Summary!L6 -> 1905-07-17 | E43: ads | F43: clo | G43: =F32&ROW() -> clo43 | K43: -41 | N43: 0
A44: Capital Leases - Not in Gross | B44: =ROW() -> 44 | C44: =Summary!D4 -> 0 | D44: =Summary!L6 -> 1905-07-17 | E44: ads | F44: clo | G44: =F32&ROW() -> clo44 | K44: -42 | N44: 0
A45: Capital Leases - Not in Gross | B45: =ROW() -> 45 | C45: =Summary!D4 -> 0 | D45: =Summary!L6 -> 1905-07-17 | E45: ads | F45: clo | G45: =F32&ROW() -> clo45 | K45: -43 | N45: 0
A46: Capital Leases - Not in Gross | B46: =ROW() -> 46 | C46: =Summary!D4 -> 0 | D46: =Summary!L6 -> 1905-07-17 | E46: ads | F46: clo | G46: =F32&ROW() -> clo46 | K46: -44 | N46: 0
A47: Capital Leases - Not in Gross | B47: =ROW() -> 47 | C47: =Summary!D4 -> 0 | D47: =Summary!L6 -> 1905-07-17 | E47: ads | F47: clo | G47: =F32&ROW() -> clo47 | K47: -45 | N47: 0
A48: Capital Leases - Not in Gross | B48: =ROW() -> 48 | C48: =Summary!D4 -> 0 | D48: =Summary!L6 -> 1905-07-17 | E48: ads | F48: clo | G48: =F32&ROW() -> clo48 | K48: -46 | N48: 0
A49: Capital Leases - Not in Gross | B49: =ROW() -> 49 | C49: =Summary!D4 -> 0 | D49: =Summary!L6 -> 1905-07-17 | E49: ads | F49: clo | G49: =F32&ROW() -> clo49 | K49: -47 | N49: 0
A50: Capital Leases - Not in Gross | B50: =ROW() -> 50 | C50: =Summary!D4 -> 0 | D50: =Summary!L6 -> 1905-07-17 | E50: ads | F50: clo | G50: =F32&ROW() -> clo50 | K50: -48 | N50: 0
A51: Capital Leases - Not in Gross | B51: =ROW() -> 51 | C51: =Summary!D4 -> 0 | D51: =Summary!L6 -> 1905-07-17 | E51: ads | F51: clo | G51: =F32&ROW() -> clo51 | K51: -49 | N51: 0
A52: Capital Leases - Not in Gross | B52: =ROW() -> 52 | C52: =Summary!D4 -> 0 | D52: =Summary!L6 -> 1905-07-17 | E52: ads | F52: clo | G52: =F32&ROW() -> clo52 | K52: -50 | N52: 0
A53: Capital Leases - Not in Gross | B53: =ROW() -> 53 | C53: =Summary!D4 -> 0 | D53: =Summary!L6 -> 2025 | E53: ads | F53: bns | G53: =F32&ROW() -> clo53 | K53: Total Leases and Other Comittments | O53: =SUM(N3:N52) -> 0
A54: Capital Leases - Not in Gross | B54: =ROW() -> 54 | C54: =Summary!D4 -> 0 | D54: =Summary!L6 -> 2025 | E54: ads | F54: bsa | G54: =F32&ROW() -> clo54

Sheet Guarantees - Not in Gross
A1: =MID(CELL("filename",A1),FIND("]",CELL("filename",A1))+1,256) -> Guarantees - Not in Gross | B1: =ROW() -> 1 | C1: =Summary!D4 -> 0 | D1: =Summary!L6 -> 2025 | E1: ads | F1: gnic | G1: =F1&ROW() -> gnic1 | I1: Obligations NOT Included in Gross Debt
A2: Guarantees - Not in Gross | B2: =ROW() -> 2 | C2: =Summary!D4 -> 0 | D2: =Summary!L6 -> 2025 | E2: ads | F2: gnic | G2: =F2&ROW() -> gnic2 | I2: 2 | J2: Guarantees NOT included in Gross Debt - Public and Private
A3: Guarantees - Not in Gross | B3: =ROW() -> 3 | C3: =Summary!D4 -> 0 | D3: =Summary!L6 -> 2025 | E3: ads | F3: gnic | G3: gnic3 | K3: -1 | N3: 0
A4: Guarantees - Not in Gross | B4: =ROW() -> 4 | C4: =Summary!D4 -> 0 | D4: =Summary!L6 -> 2025 | E4: ads | F4: gnic | G4: gnic4 | K4: -2 | N4: 0
A5: Guarantees - Not in Gross | B5: =ROW() -> 5 | C5: =Summary!D4 -> 0 | D5: =Summary!L6 -> 2025 | E5: ads | F5: gnic | G5: gnic5 | K5: -3 | N5: 0
A6: Guarantees - Not in Gross | B6: =ROW() -> 6 | C6: =Summary!D4 -> 0 | D6: =Summary!L6 -> 2025 | E6: ads | F6: gnic | G6: gnic6 | K6: -4 | N6: 0
A7: Guarantees - Not in Gross | B7: =ROW() -> 7 | C7: =Summary!D4 -> 0 | D7: =Summary!L6 -> 2025 | E7: ads | F7: gnic | G7: gnic7 | K7: -5 | N7: 0
A8: Guarantees - Not in Gross | B8: =ROW() -> 8 | C8: =Summary!D4 -> 0 | D8: =Summary!L6 -> 2025 | E8: ads | F8: gnic | G8: gnic8 | K8: -6 | N8: 0
A9: Guarantees - Not in Gross | B9: =ROW() -> 9 | C9: =Summary!D4 -> 0 | D9: =Summary!L6 -> 2025 | E9: ads | F9: gnic | G9: gnic9 | K9: -7 | N9: 0
A10: Guarantees - Not in Gross | B10: =ROW() -> 10 | C10: =Summary!D4 -> 0 | D10: =Summary!L6 -> 2025 | E10: ads | F10: gnic | G10: gnic10 | K10: -8 | N10: 0
A11: Guarantees - Not in Gross | B11: =ROW() -> 11 | C11: =Summary!D4 -> 0 | D11: =Summary!L6 -> 2025 | E11: ads | F11: gnic | G11: gnic11 | K11: -9 | N11: 0
A12: Guarantees - Not in Gross | B12: =ROW() -> 12 | C12: =Summary!D4 -> 0 | D12: =Summary!L6 -> 2025 | E12: ads | F12: gnic | G12: gnic12 | K12: -10 | N12: 0
A13: Guarantees - Not in Gross | B13: =ROW() -> 13 | C13: =Summary!D4 -> 0 | D13: =Summary!L6 -> 2025 | E13: ads | F13: gnic | G13: gnic13 | K13: -11 | N13: 0
A14: Guarantees - Not in Gross | B14: =ROW() -> 14 | C14: =Summary!D4 -> 0 | D14: =Summary!L6 -> 2025 | E14: ads | F14: gnic | G14: gnic14 | K14: -12 | N14: 0
A15: Guarantees - Not in Gross | B15: =ROW() -> 15 | C15: =Summary!D4 -> 0 | D15: =Summary!L6 -> 2025 | E15: ads | F15: gnic | G15: gnic15 | K15: -13 | N15: 0
A16: Guarantees - Not in Gross | B16: =ROW() -> 16 | C16: =Summary!D4 -> 0 | D16: =Summary!L6 -> 2025 | E16: ads | F16: gnic | G16: gnic16 | K16: -14 | N16: 0
A17: Guarantees - Not in Gross | B17: =ROW() -> 17 | C17: =Summary!D4 -> 0 | D17: =Summary!L6 -> 2025 | E17: ads | F17: gnic | G17: gnic17 | K17: -15 | N17: 0
A18: Guarantees - Not in Gross | B18: =ROW() -> 18 | C18: =Summary!D4 -> 0 | D18: =Summary!L6 -> 2025 | E18: ads | F18: gnic | G18: gnic18 | K18: -16 | N18: 0
A19: Guarantees - Not in Gross | B19: =ROW() -> 19 | C19: =Summary!D4 -> 0 | D19: =Summary!L6 -> 2025 | E19: ads | F19: gnic | G19: gnic19 | K19: -17 | N19: 0
A20: Guarantees - Not in Gross | B20: =ROW() -> 20 | C20: =Summary!D4 -> 0 | D20: =Summary!L6 -> 2025 | E20: ads | F20: gnic | G20: gnic20 | K20: -18 | N20: 0
A21: Guarantees - Not in Gross | B21: =ROW() -> 21 | C21: =Summary!D4 -> 0 | D21: =Summary!L6 -> 2025 | E21: ads | F21: gnic | G21: gnic21 | K21: -19 | N21: 0
A22: Guarantees - Not in Gross | B22: =ROW() -> 22 | C22: =Summary!D4 -> 0 | D22: =Summary!L6 -> 2025 | E22: ads | F22: gnic | G22: gnic22 | K22: -20 | N22: 0
A23: Guarantees - Not in Gross | B23: =ROW() -> 23 | C23: =Summary!D4 -> 0 | D23: =Summary!L6 -> 2025 | E23: ads | F23: gnic | G23: gnic23 | K23: -21 | N23: 0
A24: Guarantees - Not in Gross | B24: =ROW() -> 24 | C24: =Summary!D4 -> 0 | D24: =Summary!L6 -> 2025 | E24: ads | F24: gnic | G24: gnic24 | K24: -22 | N24: 0
A25: Guarantees - Not in Gross | B25: =ROW() -> 25 | C25: =Summary!D4 -> 0 | D25: =Summary!L6 -> 2025 | E25: ads | F25: gnic | G25: gnic25 | K25: -23 | N25: 0
A26: Guarantees - Not in Gross | B26: =ROW() -> 26 | C26: =Summary!D4 -> 0 | D26: =Summary!L6 -> 2025 | E26: ads | F26: gnic | G26: gnic26 | K26: -24 | N26: 0
A27: Guarantees - Not in Gross | B27: =ROW() -> 27 | C27: =Summary!D4 -> 0 | E27: ads | F27: gnic | G27: gnic27 | K27: -25 | N27: 0
A28: Guarantees - Not in Gross | B28: =ROW() -> 28 | C28: =Summary!D4 -> 0 | D28: =Summary!L6 -> 2025 | E28: ads | F28: gnic | G28: gnic28 | K28: -26 | N28: 0
A29: Guarantees - Not in Gross | B29: =ROW() -> 29 | C29: =Summary!D4 -> 0 | D29: =Summary!L6 -> 2025 | E29: ads | F29: gnic | G29: gnic29 | K29: -27 | N29: 0
A30: Guarantees - Not in Gross | B30: =ROW() -> 30 | C30: =Summary!D4 -> 0 | D30: =Summary!L6 -> 2025 | E30: ads | F30: gnic | G30: gnic30 | K30: -28 | N30: 0
A31: Guarantees - Not in Gross | B31: =ROW() -> 31 | C31: =Summary!D4 -> 0 | D31: =Summary!L6 -> 2025 | E31: ads | F31: gnic | G31: gnic31 | K31: -29 | N31: 0
A32: Guarantees - Not in Gross | B32: =ROW() -> 32 | C32: =Summary!D4 -> 0 | D32: =Summary!L6 -> 2025 | E32: ads | F32: gnic | G32: gnic32 | K32: -30 | N32: 0
A33: Guarantees - Not in Gross | B33: =ROW() -> 33 | C33: =Summary!D4 -> 0 | D33: =Summary!L6 -> 1905-07-17 | E33: ads | F33: gnic | G33: =F32&ROW() -> gnic33 | K33: -31 | N33: 0
A34: Guarantees - Not in Gross | B34: =ROW() -> 34 | C34: =Summary!D4 -> 0 | D34: =Summary!L6 -> 1905-07-17 | E34: ads | F34: gnic | G34: =F32&ROW() -> gnic34 | K34: -32 | N34: 0
A35: Guarantees - Not in Gross | B35: =ROW() -> 35 | C35: =Summary!D4 -> 0 | D35: =Summary!L6 -> 1905-07-17 | E35: ads | F35: gnic | G35: =F32&ROW() -> gnic35 | K35: -33 | N35: 0
A36: Guarantees - Not in Gross | B36: =ROW() -> 36 | C36: =Summary!D4 -> 0 | D36: =Summary!L6 -> 1905-07-17 | E36: ads | F36: gnic | G36: =F32&ROW() -> gnic36 | K36: -34 | N36: 0
A37: Guarantees - Not in Gross | B37: =ROW() -> 37 | C37: =Summary!D4 -> 0 | D37: =Summary!L6 -> 1905-07-17 | E37: ads | F37: gnic | G37: =F32&ROW() -> gnic37 | K37: -35 | N37: 0
A38: Guarantees - Not in Gross | B38: =ROW() -> 38 | C38: =Summary!D4 -> 0 | D38: =Summary!L6 -> 1905-07-17 | E38: ads | F38: gnic | G38: =F32&ROW() -> gnic38 | K38: -36 | N38: 0
A39: Guarantees - Not in Gross | B39: =ROW() -> 39 | C39: =Summary!D4 -> 0 | D39: =Summary!L6 -> 1905-07-17 | E39: ads | F39: gnic | G39: =F32&ROW() -> gnic39 | K39: -37 | N39: 0
A40: Guarantees - Not in Gross | B40: =ROW() -> 40 | C40: =Summary!D4 -> 0 | D40: =Summary!L6 -> 1905-07-17 | E40: ads | F40: gnic | G40: =F32&ROW() -> gnic40 | K40: -38 | N40: 0
A41: Guarantees - Not in Gross | B41: =ROW() -> 41 | C41: =Summary!D4 -> 0 | D41: =Summary!L6 -> 1905-07-17 | E41: ads | F41: gnic | G41: =F32&ROW() -> gnic41 | K41: -39 | N41: 0
A42: Guarantees - Not in Gross | B42: =ROW() -> 42 | C42: =Summary!D4 -> 0 | D42: =Summary!L6 -> 1905-07-17 | E42: ads | F42: gnic | G42: =F32&ROW() -> gnic42 | K42: -40 | N42: 0
A43: Guarantees - Not in Gross | B43: =ROW() -> 43 | C43: =Summary!D4 -> 0 | D43: =Summary!L6 -> 1905-07-17 | E43: ads | F43: gnic | G43: =F32&ROW() -> gnic43 | K43: -41 | N43: 0
A44: Guarantees - Not in Gross | B44: =ROW() -> 44 | C44: =Summary!D4 -> 0 | D44: =Summary!L6 -> 1905-07-17 | E44: ads | F44: gnic | G44: =F32&ROW() -> gnic44 | K44: -42 | N44: 0
A45: Guarantees - Not in Gross | B45: =ROW() -> 45 | C45: =Summary!D4 -> 0 | D45: =Summary!L6 -> 1905-07-17 | E45: ads | F45: gnic | G45: =F32&ROW() -> gnic45 | K45: -43 | N45: 0
A46: Guarantees - Not in Gross | B46: =ROW() -> 46 | C46: =Summary!D4 -> 0 | D46: =Summary!L6 -> 1905-07-17 | E46: ads | F46: gnic | G46: =F32&ROW() -> gnic46 | K46: -44 | N46: 0
A47: Guarantees - Not in Gross | B47: =ROW() -> 47 | C47: =Summary!D4 -> 0 | D47: =Summary!L6 -> 1905-07-17 | E47: ads | F47: gnic | G47: =F32&ROW() -> gnic47 | K47: -45 | N47: 0
A48: Guarantees - Not in Gross | B48: =ROW() -> 48 | C48: =Summary!D4 -> 0 | D48: =Summary!L6 -> 1905-07-17 | E48: ads | F48: gnic | G48: =F32&ROW() -> gnic48 | K48: -46 | N48: 0
A49: Guarantees - Not in Gross | B49: =ROW() -> 49 | C49: =Summary!D4 -> 0 | D49: =Summary!L6 -> 1905-07-17 | E49: ads | F49: gnic | G49: =F32&ROW() -> gnic49 | K49: -47 | N49: 0
A50: Guarantees - Not in Gross | B50: =ROW() -> 50 | C50: =Summary!D4 -> 0 | D50: =Summary!L6 -> 1905-07-17 | E50: ads | F50: gnic | G50: =F32&ROW() -> gnic50 | K50: -48 | N50: 0
A51: Guarantees - Not in Gross | B51: =ROW() -> 51 | C51: =Summary!D4 -> 0 | D51: =Summary!L6 -> 1905-07-17 | E51: ads | F51: gnic | G51: =F32&ROW() -> gnic51 | K51: -49 | N51: 0
A52: Guarantees - Not in Gross | B52: =ROW() -> 52 | C52: =Summary!D4 -> 0 | D52: =Summary!L6 -> 1905-07-17 | E52: ads | F52: gnic | G52: =F32&ROW() -> gnic52 | K52: -50 | N52: 0
A53: Guarantees - Not in Gross | B53: =ROW() -> 53 | C53: =Summary!D4 -> 0 | D53: =Summary!L6 -> 2025 | E53: ads | F53: gnict | G53: =F32&ROW() -> gnic53 | K53: Total Guarantees NOT included in Gross Debt - Public and Private | O53: =SUM(N3:N52) -> 0
A54: Guarantees - Not in Gross | B54: =ROW() -> 54 | C54: =Summary!D4 -> 0 | D54: =Summary!L6 -> 2025 | E54: ads | F54: gnic | G54: =F32&ROW() -> gnic54
